Service Area,Expenses Type,Date,Transaction Number,Amount,Supplier Name
Housing Renewal Assistance,Capital Grants,16/09/2010,1900232521,"1,564.00",JOHN GROVES IW LTD
Housing Renewal Assistance,Capital Grants,16/09/2010,1900232512,"2,099.00",JOHN GROVES IW LTD
Housing Renewal Assistance,Capital Grants,22/09/2010,1900233058,"10,000.00",JOHN GROVES IW LTD
Democratic Representation & Management,Professional Subs,24/09/2010,5000103270,"5,115.00",BUCKINGHAMSHIRE COUNTY COUNCIL
"Options,Prevention & Register Team",Computer Maintenance,23/08/2010,5000097282,"1,881.00",CROSSPRINT LTD
Connexions - Resources & Publications,Printing Costs,22/07/2010,5000091860,"1,496.00",CROSSPRINT LTD
Housing - Admin,Printing Costs,23/09/2010,5000103092,629.00,CROSSPRINT LTD
Housing Benefit,Printing Costs,15/09/2010,5000101344,837.00,CROSSPRINT LTD
Leisure Management & Admin,Printing Costs,07/09/2010,5000099956,529.00,CROSSPRINT LTD
Leisure Management & Admin,Printing Costs,07/09/2010,5000099959,715.76,CROSSPRINT LTD
Leisure Management & Admin,Printing Costs,07/09/2010,5000099954,"1,247.00",CROSSPRINT LTD
School Reorganisation Consultation Costs,Printing Costs,19/07/2010,5000090971,922.00,CROSSPRINT LTD
TFG-Parenting Early Intervention,Printing Costs,26/08/2010,5000098038,731.00,CROSSPRINT LTD
WW Landscape Partnership,Printing Costs,21/09/2010,5000102529,999.00,CROSSPRINT LTD
SSEYCCG - FOUNDATION STAGE TRAINING,Professional Service,09/07/2010,5000089206,"1,660.00",DEVON COUNTY COUNCIL
SSEYCCG - FOUNDATION STAGE TRAINING,Professional Service,09/07/2010,5000089206,"4,150.00",DEVON COUNTY COUNCIL
SSEYCCG - FOUNDATION STAGE TRAINING,B/in Prof Svs - Curr,03/09/2010,5000099315,"1,500.00",DEVON COUNTY COUNCIL
Disabled Facilities Grants,Capital Grants,28/07/2010,1900208768,"3,709.20",WILLIAM DOWNER & SONS I W LTD
Disabled Facilities Grants,Capital Grants,21/09/2010,1900232979,"4,127.00",WILLIAM DOWNER & SONS I W LTD
TDA HLTA Support Staff,Train and Conference,12/07/2010,5000089505,850.00,HAMPSHIRE COUNTY COUNCIL
TDA HLTA Support Staff,Train and Conference,27/07/2010,5000092866,"1,360.00",HAMPSHIRE COUNTY COUNCIL
ICT Contracts,Computer Maintenance,19/08/2010,5000096828,"10,894.00",HAMPSHIRE COUNTY COUNCIL
Active England - Ryde,Hire of facilities,24/08/2010,5000097554,"1,450.00",HAMPSHIRE COUNTY COUNCIL
TDA HLTA Support Staff,Professional Service,06/09/2010,5000099527,"-1,360.00",HAMPSHIRE COUNTY COUNCIL
TDA HLTA Support Staff,Professional Service,17/08/2010,5000096401,"1,360.00",HAMPSHIRE COUNTY COUNCIL
TDA HLTA Support Staff,Professional Service,17/08/2010,5000096464,"2,000.00",HAMPSHIRE COUNTY COUNCIL
SEN Inter-Authority Recoupment,Pay to Other LAs,07/09/2010,5000099718,"14,743.43",HAMPSHIRE COUNTY COUNCIL
Youth Offending Team,Pay to Other LAs,06/07/2010,5000088420,"87,333.25",HAMPSHIRE COUNTY COUNCIL
Youth Offending Team,Pay to Other LAs,14/09/2010,5000101197,"87,333.25",HAMPSHIRE COUNTY COUNCIL
One Island Magazine,Publications,27/09/2010,5000103476,919.80,IW COUNTY PRESS LTD
October Walking Festival,Advertising & Public,29/09/2010,5000103914,781.83,IW COUNTY PRESS LTD
Traffic Management,Advertising & Public,22/07/2010,5000091854,608.00,IW COUNTY PRESS LTD
Traffic Management,Advertising & Public,09/07/2010,5000089325,684.00,IW COUNTY PRESS LTD
Traffic Management,Advertising & Public,09/09/2010,5000100489,684.00,IW COUNTY PRESS LTD
Traffic Management,Advertising & Public,09/09/2010,5000100487,"1,026.00",IW COUNTY PRESS LTD
Leisure Projects,Pay to Pvte Contract,20/08/2010,5000097188,"2,211.30",IW COUNTY PRESS LTD
Traffic Management,Other Capital Exp,10/09/2010,5000100677,684.00,IW COUNTY PRESS LTD
Youth- Newport,Building & Room Rent,21/09/2010,5105615057,"3,703.75",NEWPORT GRAMMAR SCH CHARITY TR[RE]
LA 21,Pay to Vol and Other,23/07/2010,5000091984,517.60,SEAVIEW SERVICES LTD
Planning Training,Catering Purchases,22/09/2010,5000102669,725.00,THE RIVERSIDE CENTRE LTD
Miscellaneous Non-rechargeable,Sundry Office Expens,09/07/2010,5000089222,648.00,THE RIVERSIDE CENTRE LTD
Miscellaneous Non-rechargeable,Sundry Office Expens,09/07/2010,5000089224,"2,512.00",THE RIVERSIDE CENTRE LTD
Carers Grant,Pay to Health Auth,14/09/2010,5000101072,"10,600.00",THE RIVERSIDE CENTRE LTD
Riverside Day Centre,Pay to Vol and Other,18/08/2010,5000096780,"33,799.00",THE RIVERSIDE CENTRE LTD
Vol Sector Grants - MH,Pay to Vol and Other,28/07/2010,5000092981,"16,101.00",THE RIVERSIDE CENTRE LTD
Play Development,Pay to Pvte Contract,16/07/2010,5000090677,648.00,THE RIVERSIDE CENTRE LTD
Play Development,Pay to Pvte Contract,16/07/2010,5000090675,822.21,THE RIVERSIDE CENTRE LTD
Play Development,Pay to Pvte Contract,22/09/2010,5000102733,959.65,THE RIVERSIDE CENTRE LTD
Play Development,Pay to Pvte Contract,22/09/2010,5000102806,"1,075.00",THE RIVERSIDE CENTRE LTD
Play Development,Pay to Pvte Contract,16/07/2010,5000090676,"1,268.32",THE RIVERSIDE CENTRE LTD
Play Development,Pay to Pvte Contract,16/07/2010,5000090674,"1,464.21",THE RIVERSIDE CENTRE LTD
Play Development,Pay to Pvte Contract,16/07/2010,5000090673,"1,492.00",THE RIVERSIDE CENTRE LTD
SEN Inter-Authority Recoupment,Pay to Other LAs,01/09/2010,5000098717,"3,806.00",SOMERSET COUNTY COUNCIL
Adelaide Resource Centre,Electricity,26/08/2010,1900221197,"1,729.33",SOUTHERN ELECTRIC
Adelaide Resource Centre,Electricity,03/08/2010,1900209438,"1,801.92",SOUTHERN ELECTRIC
Adelaide Resource Centre,Electricity,21/09/2010,1900232997,"1,890.61",SOUTHERN ELECTRIC
Castle Haven CP Scheme,Electricity,22/09/2010,5000102928,643.92,SOUTHERN ELECTRIC
"County Hall,Newport",Electricity,03/08/2010,1900209435,"11,701.37",SOUTHERN ELECTRIC
"County Hall,Newport",Electricity,21/09/2010,1900233003,"12,055.30",SOUTHERN ELECTRIC
"County Hall,Newport",Electricity,26/08/2010,1900221200,"12,245.76",SOUTHERN ELECTRIC
Dinosaur Isle Museum (Sandown Geology),Electricity,03/08/2010,1900209436,949.68,SOUTHERN ELECTRIC
Dinosaur Isle Museum (Sandown Geology),Electricity,26/08/2010,1900221199,"1,036.45",SOUTHERN ELECTRIC
Dinosaur Isle Museum (Sandown Geology),Electricity,21/09/2010,1900232999,"1,041.87",SOUTHERN ELECTRIC
Northwood House Functions,Electricity,03/08/2010,1900209439,608.46,SOUTHERN ELECTRIC
Northwood House Functions,Electricity,21/09/2010,1900232995,"1,248.60",SOUTHERN ELECTRIC
The Heights,Electricity,03/08/2010,1900209434,"6,174.01",SOUTHERN ELECTRIC
The Heights,Electricity,26/08/2010,1900221137,"6,261.93",SOUTHERN ELECTRIC
The Heights,Electricity,21/09/2010,1900233005,"6,361.82",SOUTHERN ELECTRIC
Ventnor Botanic Garden,Electricity,26/08/2010,1900221139,"2,182.33",SOUTHERN ELECTRIC
Ventnor Botanic Garden,Electricity,21/09/2010,1900233007,"2,182.41",SOUTHERN ELECTRIC
Ventnor Botanic Garden,Electricity,03/08/2010,1900209433,"2,194.32",SOUTHERN ELECTRIC
Waterside pool,Electricity,26/08/2010,1900221201,"1,879.38",SOUTHERN ELECTRIC
Waterside pool,Electricity,09/08/2010,1900214356,"1,943.34",SOUTHERN ELECTRIC
Waterside pool,Electricity,21/09/2010,1900232994,"2,145.49",SOUTHERN ELECTRIC
"Westridge, Ryde",Electricity,03/08/2010,1900209437,"1,859.88",SOUTHERN ELECTRIC
"Westridge, Ryde",Electricity,26/08/2010,1900221196,"2,084.34",SOUTHERN ELECTRIC
"Westridge, Ryde",Electricity,21/09/2010,1900233001,"2,140.97",SOUTHERN ELECTRIC
Library Mgmt & Central Support,Purchase of Books,29/09/2010,5000103936,"-2,721.00",ULVERSCROFT LARGE PRINT BOOKS LTD
Library Mgmt & Central Support,Purchase of Books,18/08/2010,5000096552,"2,721.00",ULVERSCROFT LARGE PRINT BOOKS LTD
PR - Bridges - Yarmouth,Highways Minor Works,01/07/2010,5000087757,"3,261.66",YARMOUTH (IW) HARBOUR COMMISSIONERS
PR - Bridges - Yarmouth,Highways Minor Works,10/08/2010,5000095072,"3,261.66",YARMOUTH (IW) HARBOUR COMMISSIONERS
PR - Bridges - Yarmouth,Highways Minor Works,02/09/2010,5000099126,"3,261.66",YARMOUTH (IW) HARBOUR COMMISSIONERS
Accountancy Team,Train and Conference,05/07/2010,5000088143,"1,340.00",CIPFA
Accountancy Team,Publications,16/09/2010,5000101643,"2,538.00",CIPFA
Energy Efficiency Management,Publications,16/09/2010,5000101643,"1,000.00",CIPFA
Newport Youth Centre 40% income susp,Bldg/Room Rental Inc,24/09/2010,1900233422,573.56,NEWPORT YOUTH CENTRE (KJ'S)
Carisbrooke Contact Centre,Train and Conference,09/09/2010,5000100517,"-1,019.00",ISLE OF WIGHT COLLEGE
Independent Sector Training,Train and Conference,09/08/2010,5000095018,520.00,ISLE OF WIGHT COLLEGE
Independent Sector Training,Train and Conference,28/09/2010,5000103875,520.00,ISLE OF WIGHT COLLEGE
Independent Sector Training,Train and Conference,02/08/2010,5000093868,544.00,ISLE OF WIGHT COLLEGE
Independent Sector Training,Train and Conference,29/09/2010,5000104090,719.00,ISLE OF WIGHT COLLEGE
Independent Sector Training,Train and Conference,09/08/2010,5000095031,"1,550.00",ISLE OF WIGHT COLLEGE
SSEYCCG - WORKFORCE DEVELOPME,Train and Conference,29/09/2010,5000103961,600.00,ISLE OF WIGHT COLLEGE
SSEYCCG - WORKFORCE DEVELOPME,Train and Conference,29/09/2010,5000103963,600.00,ISLE OF WIGHT COLLEGE
SSEYCCG - WORKFORCE DEVELOPME,Train and Conference,29/09/2010,5000103964,600.00,ISLE OF WIGHT COLLEGE
Training - Adelaide & Gouldings,Train and Conference,11/08/2010,5000095516,"1,575.00",ISLE OF WIGHT COLLEGE
Training - Adelaide & Gouldings,Train and Conference,29/09/2010,5000104094,"1,575.00",ISLE OF WIGHT COLLEGE
Training - Adelaide & Gouldings,Train and Conference,02/08/2010,5000093874,"2,982.00",ISLE OF WIGHT COLLEGE
Training - Childrens,Train and Conference,14/09/2010,5000101270,"2,250.00",ISLE OF WIGHT COLLEGE
Training - Homecare,Train and Conference,27/08/2010,5000098319,994.00,ISLE OF WIGHT COLLEGE
I W College - Home to College Transport,Transport of Clients,09/09/2010,5000100380,"4,500.00",ISLE OF WIGHT COLLEGE
I W College - Home to College Transport,Transport of Clients,09/09/2010,5000100381,"5,500.00",ISLE OF WIGHT COLLEGE
Regeneration,Professional Service,05/07/2010,1900197326,"105,280.00",ISLE OF WIGHT COLLEGE
Young Apprentice Programme LSC,Professional Service,16/09/2010,5000101600,"1,000.00",ISLE OF WIGHT COLLEGE
Young Apprentice Programme LSC,Professional Service,27/07/2010,5000092701,"9,975.00",ISLE OF WIGHT COLLEGE
Young Apprentice Programme LSC,Professional Service,28/07/2010,5000092969,"12,025.00",ISLE OF WIGHT COLLEGE
Young Apprentice Programme LSC,Professional Service,28/07/2010,5000092970,"18,500.00",ISLE OF WIGHT COLLEGE
Young Apprentice Programme LSC,Professional Service,01/07/2010,5000087603,"48,800.00",ISLE OF WIGHT COLLEGE
Post 16 Transport,Grants to Ext Bodies,16/09/2010,5000101719,"2,045.12",ISLE OF WIGHT COLLEGE
Gateway and Specialised Diplomas,Delgtd to Educ by LA,21/07/2010,5000091495,"2,000.00",ISLE OF WIGHT COLLEGE
Gateway and Specialised Diplomas,Delgtd to Educ by LA,01/07/2010,5000087602,"5,000.00",ISLE OF WIGHT COLLEGE
Building Fabric Planned Non Education,Ext Design & Superv,20/09/2010,5000102046,780.00,REDACTED PERSONAL DATA
Cemeteries,Cap Contractor Pmts,23/09/2010,5000103187,917.02,REDACTED PERSONAL DATA
Adelaide Resource Centre,Water and Sewerage,10/09/2010,1900227235,"1,379.21",SOUTHERN WATER AUTHORITY
Browns,Water and Sewerage,24/08/2010,1900220841,"1,021.09",SOUTHERN WATER AUTHORITY
"Bugle House,Newport",Water and Sewerage,28/09/2010,1900233741,505.33,SOUTHERN WATER AUTHORITY
"Bugle House,Newport",Water and Sewerage,08/07/2010,1900202015,"1,337.94",SOUTHERN WATER AUTHORITY
"County Hall,Newport",Water and Sewerage,07/07/2010,1900201952,"1,962.99",SOUTHERN WATER AUTHORITY
"County Hall,Newport",Water and Sewerage,28/09/2010,1900233740,"1,975.64",SOUTHERN WATER AUTHORITY
DO NOT USE - Public Con - General,Water and Sewerage,12/07/2010,1900202341,"1,747.09",SOUTHERN WATER AUTHORITY
Eastern Esplanade Ryde - Water A/C,Water and Sewerage,26/08/2010,1900221234,"4,088.55",SOUTHERN WATER AUTHORITY
Gouldings Resource Centre,Water and Sewerage,10/09/2010,1900227230,"1,943.09",SOUTHERN WATER AUTHORITY
Lynnbottom Leachate Treatment Works,Water and Sewerage,29/07/2010,5000093273,703.16,SOUTHERN WATER AUTHORITY
Lynnbottom Leachate Treatment Works,Water and Sewerage,17/09/2010,5000101910,"1,381.87",SOUTHERN WATER AUTHORITY
Lynnbottom Leachate Treatment Works,Water and Sewerage,03/09/2010,5000099285,"6,323.20",SOUTHERN WATER AUTHORITY
Operations & Fire Resilience,Water and Sewerage,28/09/2010,1900233775,919.30,SOUTHERN WATER AUTHORITY
Operations & Fire Resilience,Water and Sewerage,12/07/2010,1900202310,"1,947.47",SOUTHERN WATER AUTHORITY
Public Con - General (was Attendance),Water and Sewerage,20/07/2010,1700028929,"-1,059.27",SOUTHERN WATER AUTHORITY
Public Con - General (was Attendance),Water and Sewerage,20/07/2010,1700028930,"-1,059.27",SOUTHERN WATER AUTHORITY
Public Con - General (was Attendance),Water and Sewerage,18/08/2010,1900215949,501.92,SOUTHERN WATER AUTHORITY
Public Con - General (was Attendance),Water and Sewerage,12/08/2010,1900214846,530.59,SOUTHERN WATER AUTHORITY
Public Con - General (was Attendance),Water and Sewerage,08/07/2010,1900202119,578.00,SOUTHERN WATER AUTHORITY
Public Con - General (was Attendance),Water and Sewerage,02/09/2010,1900226267,588.03,SOUTHERN WATER AUTHORITY
Public Con - General (was Attendance),Water and Sewerage,22/09/2010,1900233276,634.56,SOUTHERN WATER AUTHORITY
Public Con - General (was Attendance),Water and Sewerage,15/09/2010,1900227370,663.62,SOUTHERN WATER AUTHORITY
Public Con - General (was Attendance),Water and Sewerage,28/07/2010,1900208835,678.60,SOUTHERN WATER AUTHORITY
Public Con - General (was Attendance),Water and Sewerage,24/08/2010,1900220836,762.90,SOUTHERN WATER AUTHORITY
Public Con - General (was Attendance),Water and Sewerage,26/08/2010,1900221185,828.45,SOUTHERN WATER AUTHORITY
Public Con - General (was Attendance),Water and Sewerage,22/09/2010,1900233274,"1,021.50",SOUTHERN WATER AUTHORITY
Public Con - General (was Attendance),Water and Sewerage,20/07/2010,1900203120,"1,059.27",SOUTHERN WATER AUTHORITY
Public Con - General (was Attendance),Water and Sewerage,18/08/2010,1900215950,"1,429.27",SOUTHERN WATER AUTHORITY
Public Con - General (was Attendance),Water and Sewerage,26/08/2010,1900221340,"1,747.10",SOUTHERN WATER AUTHORITY
Rechargeable Properties,Water and Sewerage,24/08/2010,1900220842,834.02,SOUTHERN WATER AUTHORITY
Ryde Concessions,Water and Sewerage,20/08/2010,1900220634,"4,947.69",SOUTHERN WATER AUTHORITY
Ryde Harbour,Water and Sewerage,28/07/2010,1900208829,633.82,SOUTHERN WATER AUTHORITY
Ryde Harbour,Water and Sewerage,26/08/2010,1900221130,723.14,SOUTHERN WATER AUTHORITY
Seaclose Offices,Water and Sewerage,24/09/2010,1900233610,"1,276.84",SOUTHERN WATER AUTHORITY
Seaclose Offices,Water and Sewerage,12/07/2010,1900202318,"4,809.17",SOUTHERN WATER AUTHORITY
St James Centre,Water and Sewerage,27/07/2010,1900208702,700.01,SOUTHERN WATER AUTHORITY
The Heights,Water and Sewerage,27/07/2010,1900208709,909.32,SOUTHERN WATER AUTHORITY
The Heights,Water and Sewerage,26/08/2010,1900221136,917.86,SOUTHERN WATER AUTHORITY
The Heights,Water and Sewerage,28/07/2010,1900209008,947.91,SOUTHERN WATER AUTHORITY
The Heights,Water and Sewerage,26/08/2010,1900221329,957.70,SOUTHERN WATER AUTHORITY
The Heights,Water and Sewerage,09/07/2010,1900202124,959.65,SOUTHERN WATER AUTHORITY
The Heights,Water and Sewerage,28/09/2010,1900233729,"1,061.40",SOUTHERN WATER AUTHORITY
Thompson House Admin,Water and Sewerage,22/09/2010,1900233289,639.85,SOUTHERN WATER AUTHORITY
Westminster House,Water and Sewerage,10/09/2010,1700030916,"-1,868.02",SOUTHERN WATER AUTHORITY
Westminster House,Water and Sewerage,28/07/2010,1900209012,"3,792.18",SOUTHERN WATER AUTHORITY
"Westridge, Ryde",Water and Sewerage,26/08/2010,1900221232,"1,236.45",SOUTHERN WATER AUTHORITY
Health and Safety,Fire Fighting Equipm,25/08/2010,5000097904,536.60,WIGHT FIRE CO LTD
Health and Safety,Fire Fighting Equipm,25/08/2010,5000097895,578.05,WIGHT FIRE CO LTD
Health and Safety,Fire Fighting Equipm,21/09/2010,5000102603,615.10,WIGHT FIRE CO LTD
Technical Support,Operational Equipmen,21/07/2010,5105601328,777.16,SPENCER RIGGING LTD
Chillerton Primary Devolved Capital,"Pl, Equip & Furn - C",16/08/2010,1900215107,"2,929.00",ISLAND COMPUTER SYSTEMS LTD
Chillerton Primary Devolved Capital,"Pl, Equip & Furn - C",16/08/2010,1900215106,"5,900.00",ISLAND COMPUTER SYSTEMS LTD
Godshill Primary Devolved Capital,"Pl, Equip & Furn - C",27/09/2010,1900233668,"2,220.00",ISLAND COMPUTER SYSTEMS LTD
Ryde Greenmount Primary Devolved Capital,"Pl, Equip & Furn - C",24/09/2010,1900233476,"2,725.00",ISLAND COMPUTER SYSTEMS LTD
Swanmore Middle Devolved Capital,"Pl, Equip & Furn - C",20/09/2010,1900232964,810.00,ISLAND COMPUTER SYSTEMS LTD
Whippingham Primary Devolved Capital,"Pl, Equip & Furn - C",12/08/2010,1900214734,598.00,ISLAND COMPUTER SYSTEMS LTD
Wootton Primary Devolved Capital,"Pl, Equip & Furn - C",29/07/2010,1900209184,595.00,ISLAND COMPUTER SYSTEMS LTD
Wootton Primary Devolved Capital,"Pl, Equip & Furn - C",29/07/2010,1900209185,"1,350.00",ISLAND COMPUTER SYSTEMS LTD
Wootton Primary Devolved Capital,"Pl, Equip & Furn - C",30/07/2010,1900209199,"1,800.00",ISLAND COMPUTER SYSTEMS LTD
Departmental Admin/Support,Fixtures and Fitting,05/07/2010,5000088188,532.00,WIGHT BUSINESS SERVICES
Gateway and Specialised Diplomas,Professional Service,02/08/2010,5000093788,"7,000.00",I W CHAMBER OF COMMERCE LIMITED
Education Bus Link Trans Support LSC,Pay to Pvte Contract,07/07/2010,5000088876,"31,561.00",I W CHAMBER OF COMMERCE LIMITED
Sandham Amusements,Catering Purchases,14/08/2010,5000095975,-552.66,MEDINA QUAY MEATS LTD
Sandham Amusements,Catering Purchases,11/08/2010,5000095575,552.66,MEDINA QUAY MEATS LTD
Adelaide Resource Centre,"Ref Collect, Disp &",07/09/2010,5000099876,997.62,BIFFA WASTE SERVICES LTD
Newport Harbour - General,"Ref Collect, Disp &",15/07/2010,5000090277,819.96,BIFFA WASTE SERVICES LTD
Technical Support,"Ref Collect, Disp &",20/07/2010,5000091299,570.12,BIFFA WASTE SERVICES LTD
Browns,Pay to Pvte Contract,02/09/2010,5000099241,502.54,BIFFA WASTE SERVICES LTD
The Heights,Pay to Pvte Contract,12/07/2010,5000089503,517.00,BIFFA WASTE SERVICES LTD
Shared Services Manager,Office Equipment,20/07/2010,5000091179,595.00,ISLAND FURNISHING LTD
Social Care Admin,Furniture & Fittings,09/09/2010,5000100558,515.00,ISLAND FURNISHING LTD
Cowes High Devolved Capital,"Pl, Equip & Furn - C",31/08/2010,1900221602,"1,568.00",ISLAND FURNISHING LTD
Sandown High Devolved Capital,"Pl, Equip & Furn - C",16/08/2010,1900215138,"1,445.00",ISLAND FURNISHING LTD
Medina Theatre,Printing Costs,27/08/2010,5000098196,575.00,ISLAND PRINTERS LTD
Premises Development,Vehicle Hire Externa,20/07/2010,5000091428,707.14,BARTLETTS SERVICE STATION
Premises Development,Vehicle Hire Externa,13/08/2010,5000095965,730.71,BARTLETTS SERVICE STATION
Premises Development,Vehicle Hire Externa,16/09/2010,5000101621,730.71,BARTLETTS SERVICE STATION
Development Control,Advertising & Public,11/08/2010,5000095532,542.04,ALEXANDER ADVERTISING (INT) LTD
Development Control,Advertising & Public,18/08/2010,5000096698,570.57,ALEXANDER ADVERTISING (INT) LTD
Development Control,Advertising & Public,26/07/2010,5000092479,651.40,ALEXANDER ADVERTISING (INT) LTD
Development Control,Advertising & Public,11/08/2010,5000095533,670.41,ALEXANDER ADVERTISING (INT) LTD
Development Control,Advertising & Public,24/08/2010,5000097646,756.00,ALEXANDER ADVERTISING (INT) LTD
Ventnor St Boniface Devolved Capital,"Pl, Equip & Furn - C",03/08/2010,1900209456,"3,268.95",NOTTINGHAM REHAB LTD
Wyevale-Grounds Mtce,General Materials,12/07/2010,5000089394,650.10,LEES & CO
Middle Sector Home to School Transport,Transport of Clients,27/07/2010,5000092505,752.00,METEOR TAXIS
Middle Sector Home to School Transport,Transport of Clients,01/07/2010,5000087797,846.00,METEOR TAXIS
Building Fabric Planned Non Education,Cap Contractor Pmts,16/07/2010,5000090590,"3,587.42",SOLAGLAS
Building Fabric Planned Non Education,Cap Contractor Pmts,31/08/2010,5000098624,"3,709.01",SOLAGLAS
e-learning Projects ACL,Computer Purch & Ren,22/07/2010,5000091829,670.00,MISCO COMPUTER SUPPLIES LTD
Gurnard Primary Devolved Capital,"Pl, Equip & Furn - C",13/08/2010,1900214901,"1,760.33",MISCO COMPUTER SUPPLIES LTD
Newport Summerfields Devolved Capital,"Pl, Equip & Furn - C",29/07/2010,1900209174,778.95,MISCO COMPUTER SUPPLIES LTD
Newport Summerfields Devolved Capital,"Pl, Equip & Furn - C",29/07/2010,1900209175,978.95,MISCO COMPUTER SUPPLIES LTD
Northwood Primary Devolved Capital,"Pl, Equip & Furn - C",13/08/2010,1900215035,"1,009.59",MISCO COMPUTER SUPPLIES LTD
Osborne Middle Devolved Capital,"Pl, Equip & Furn - C",30/07/2010,1900209203,"4,725.00",MISCO COMPUTER SUPPLIES LTD
Ryde Haylands Primary Devolved Capital,"Pl, Equip & Furn - C",30/07/2010,1900209205,"19,520.00",MISCO COMPUTER SUPPLIES LTD
Ventnor St Boniface Devolved Capital,"Pl, Equip & Furn - C",12/08/2010,1900214842,"1,400.00",MISCO COMPUTER SUPPLIES LTD
Wootton Primary Devolved Capital,"Pl, Equip & Furn - C",29/07/2010,1900209182,"4,520.00",MISCO COMPUTER SUPPLIES LTD
Wroxall Primary Devolved Capital,"Pl, Equip & Furn - C",27/09/2010,1900233671,525.00,MISCO COMPUTER SUPPLIES LTD
Wroxall Primary Devolved Capital,"Pl, Equip & Furn - C",29/07/2010,1900209168,700.00,MISCO COMPUTER SUPPLIES LTD
Wroxall Primary Devolved Capital,"Pl, Equip & Furn - C",23/07/2010,1900208577,"1,134.99",MISCO COMPUTER SUPPLIES LTD
Wroxall Primary Devolved Capital,"Pl, Equip & Furn - C",23/07/2010,1900208579,"1,134.99",MISCO COMPUTER SUPPLIES LTD
Wroxall Primary Devolved Capital,"Pl, Equip & Furn - C",23/07/2010,1900208578,"1,530.00",MISCO COMPUTER SUPPLIES LTD
English as an Additional Language,Computer Purch & Ren,19/08/2010,5105607542,597.75,XMA LTD
ICT Project,Computer Purch & Ren,02/08/2010,5000093751,"5,586.09",XMA LTD
ICT Refresh Programme,Computer Purch & Ren,02/08/2010,5000093694,"1,111.41",XMA LTD
16+ Team,Comp S/ware & Cons,22/07/2010,5000091885,"2,391.00",XMA LTD
Social Services Admin Computer Equipment,ICT H/ware & S/ware,19/08/2010,5105607542,597.75,XMA LTD
Hedgelaying Competition,Consultants Fees,23/08/2010,5000097261,"1,400.00",MEDINA VALLEY CENTRE LTD
School Music Service,Professional Service,09/09/2010,5000100374,"1,140.00",MEDINA VALLEY CENTRE LTD
Beach Safety & Inspection / Beach Awards,Pay to Pvte Contract,07/09/2010,5000099634,920.00,SIGNPOST EXPRESS
Waste Capital Programme,Cap Contractor Pmts,20/09/2010,5000102159,545.00,SIGNPOST EXPRESS
Coroner,Vehicle Hire Externa,17/08/2010,5000096501,"3,115.55",HAMILTON AND MARSHALL
Coroner,Transport of Clients,20/07/2010,5000091343,"-3,776.74",HAMILTON AND MARSHALL
Coroner,Transport of Clients,13/09/2010,5000100920,"3,277.08",HAMILTON AND MARSHALL
Coroner,Transport of Clients,20/07/2010,5000091344,"3,523.25",HAMILTON AND MARSHALL
Coroner,Transport of Clients,16/07/2010,5000090640,"3,776.74",HAMILTON AND MARSHALL
Environmental Health - Geographical Team,Pay to Pvte Contract,09/08/2010,5000095062,800.00,HAMILTON AND MARSHALL
Environmental Health - Geographical Team,Pay to Pvte Contract,09/08/2010,5000095064,937.00,HAMILTON AND MARSHALL
114 Pyle Street,Minor Works,14/07/2010,5000090221,512.39,CHANT LOCK & SECURITY SERVICE
"Registration Of Births,Deaths, Marriage",Minor Works,28/09/2010,5000103892,"1,640.00",CHANT LOCK & SECURITY SERVICE
Strategic Projects,Ext Design & Superv,18/08/2010,5000096645,868.08,CHANT LOCK & SECURITY SERVICE
Education Fair Funding Primary Schools,Cap Contractor Pmts,13/07/2010,5000089810,692.00,CHANT LOCK & SECURITY SERVICE
Chale Primary Devolved Capital,"Pl, Equip & Furn - C",28/09/2010,5000103724,564.90,CHANT LOCK & SECURITY SERVICE
Thompson House Tuition Centre,"Pl, Equip & Furn - C",16/08/2010,1900215144,"1,949.00",CHANT LOCK & SECURITY SERVICE
Dinosaur Isle Museum (Sandown Geology),Marketing Costs,22/07/2010,5000091721,"3,500.00",TOURISM SOUTH EAST
Exhibitions,Consultants Fees,07/09/2010,5000099861,"20,000.00",TOURISM SOUTH EAST
Research,Professional Service,28/07/2010,5000092980,"4,708.75",TOURISM SOUTH EAST
Research,Professional Service,28/07/2010,5000093161,"4,708.75",TOURISM SOUTH EAST
Research,Professional Service,23/07/2010,5000092095,"5,000.00",TOURISM SOUTH EAST
Events Team,Pay to Vol and Other,21/09/2010,5000102480,"3,500.00",TOURISM SOUTH EAST
Corporate Management (Treasurers),Professional Service,26/08/2010,5000098121,"3,045.00",AUDIT COMMISSION
Corporate Management (Treasurers),Professional Service,06/07/2010,5000088618,"3,208.37",AUDIT COMMISSION
Corporate Management (Treasurers),Professional Service,16/07/2010,5000090588,"3,500.00",AUDIT COMMISSION
Corporate Management (Treasurers),Professional Service,16/07/2010,5000090565,"25,828.00",AUDIT COMMISSION
Corporate Management (Treasurers),Professional Service,06/07/2010,5000088619,"27,089.38",AUDIT COMMISSION
Corporate Management (Treasurers),Professional Service,26/08/2010,5000098120,"28,300.00",AUDIT COMMISSION
PR - Bridges - Yarmouth,Highways Minor Works,26/08/2010,5000098058,765.00,MID-ANGLIA ENGINEERING LTD
PR - Bridges - Yarmouth,Highways Minor Works,01/09/2010,5000098743,"2,650.00",MID-ANGLIA ENGINEERING LTD
Homelessness,Accomm Costs - Lease,30/09/2010,5000104232,762.54,CALOR GAS LIMITED
Technical Support,Clothing & Laundry,30/07/2010,5000093602,855.00,MSA (BRITAIN) LTD
Technical Support,Clothing & Laundry,30/07/2010,5000093602,855.00,MSA (BRITAIN) LTD
Technical Support,Clothing & Laundry,30/07/2010,5000093602,"1,610.00",MSA (BRITAIN) LTD
CCTV - Control Room,Maint of Op Equip,19/07/2010,5000090859,"1,012.00",BRITISH TELECOM PLC
Gouldings Resource Centre,Pay to Pvte Contract,23/08/2010,5000097407,"1,061.00",REDACTED PERSONAL DATA
Library Mgmt & Central Support,Postage,23/09/2010,100303596,-838.41,ROYAL MAIL RETAIL
Library Mgmt & Central Support,Postage,30/07/2010,5000093502,838.41,ROYAL MAIL RETAIL
Diversity & Workforce,Train and Conference,24/09/2010,5000103262,-640.00,FIRE SERVICE COLLEGE
Diversity & Workforce,Train and Conference,06/07/2010,5000088667,"2,345.00",FIRE SERVICE COLLEGE
Diversity & Workforce,Train and Conference,23/08/2010,5000097425,"2,395.00",FIRE SERVICE COLLEGE
Carnival Learning Centre (Westridge),Hire of facilities,14/07/2010,5000090266,722.38,YELF'S HOTEL
Water Hygiene Programme,Ext Design & Superv,27/08/2010,5000098231,858.00,ENVIROCARE SERVICES LTD
Water Hygiene Programme,Ext Design & Superv,27/08/2010,5000098233,"1,963.50",ENVIROCARE SERVICES LTD
WIGHTBUS Trading Account,Vehicle Maint Costs,08/09/2010,5105612187,-580.00,ADAMS MOREY LTD
Business Support,Public Tspt Fares,05/07/2010,5000088311,525.60,WIGHTLINK LTD
Business Support,Public Tspt Fares,17/09/2010,5000101953,525.60,WIGHTLINK LTD
Foundation Learning (14-19),Professional Service,05/07/2010,5000088132,552.00,U K SAILING ACADEMY
Aiming High for Disabled Children,Grants to Ext Bodies,12/08/2010,1900214700,"9,500.00",U K SAILING ACADEMY
Cowes Youth Centre 40% income susp,Bldg/Room Rental Inc,24/09/2010,1900233433,903.12,COWES YOUTH CENTRE
Integrated Community Equipment Service,Operational Equipmen,05/07/2010,5000088301,"1,125.00",THE HELPING HAND COMPANY
Adelaide Resource Centre,Catering Purchases,06/09/2010,5000099538,927.30,3663 (BFS GROUP LTD)
Traffic Management,Printing Costs,19/07/2010,5105600293,862.50,KEY TRAFFIC SYSTEMS LTD
Transport Strategy,Printing Costs,19/07/2010,5105600293,862.50,KEY TRAFFIC SYSTEMS LTD
St Light - Mtce Contract,Pay to Pvte Contract,02/09/2010,5105611008,584.40,PUDSEY DIAMOND ENGINEERING LTD
Business Support,Fixed Telephones,09/08/2010,1900214288,887.50,BRITISH TELECOMMUNICATIONS PLC
Childrens Service Centre,Fixed Telephones,17/08/2010,1900215170,673.20,BRITISH TELECOMMUNICATIONS PLC
CSDP/Lifeline Telephone - OP,Fixed Telephones,24/08/2010,1900220835,585.53,BRITISH TELECOMMUNICATIONS PLC
CSDP/Lifeline Telephone - OP,Fixed Telephones,08/09/2010,1900226875,654.08,BRITISH TELECOMMUNICATIONS PLC
CSDP/Lifeline Telephone - PD,Fixed Telephones,24/08/2010,1900220833,852.56,BRITISH TELECOMMUNICATIONS PLC
Data & Information Mgmt,Fixed Telephones,16/09/2010,1900232548,"6,992.23",BRITISH TELECOMMUNICATIONS PLC
Library Mgmt & Central Support,Fixed Telephones,03/08/2010,1900209466,521.00,BRITISH TELECOMMUNICATIONS PLC
Library Mgmt & Central Support,Fixed Telephones,20/09/2010,1900232970,"2,001.00",BRITISH TELECOMMUNICATIONS PLC
Library Mgmt & Central Support,Fixed Telephones,12/08/2010,1900214845,"16,269.00",BRITISH TELECOMMUNICATIONS PLC
Miscellaneous Non-rechargeable,Fixed Telephones,09/08/2010,1900214288,887.50,BRITISH TELECOMMUNICATIONS PLC
Telephones,Fixed Telephones,17/08/2010,1900215170,"1,657.57",BRITISH TELECOMMUNICATIONS PLC
Telephones,Fixed Telephones,27/07/2010,1900208690,"14,868.00",BRITISH TELECOMMUNICATIONS PLC
Telephones,Fixed Telephones,30/07/2010,1900209344,"75,302.28",BRITISH TELECOMMUNICATIONS PLC
Fire Control,Mobilising & Callout,17/08/2010,1900215170,673.20,BRITISH TELECOMMUNICATIONS PLC
Ryde Greenmount Primary Devolved Capital,"Pl, Equip & Furn - C",24/09/2010,1900233475,683.97,THE CONSORTIUM
Ventnor St Boniface Devolved Capital,"Pl, Equip & Furn - C",02/09/2010,1900226249,599.88,THE CONSORTIUM
Strategic Projects,Cap Contractor Pmts,23/07/2010,5000091961,"1,682.00",VIKING BLINDS LTD
SSEYCCG - CHILDREN CENTRES (C,Catering Purchases,31/08/2010,5000098573,703.62,NEW HOLMWOOD HOTEL
SSEYCCG - WORKFORCE DEVELOPME,Catering Purchases,21/09/2010,5000102536,561.70,NEW HOLMWOOD HOTEL
Cycling festival - The hills killer,Marketing Costs,13/09/2010,5000100933,648.00,RECOGNITION EXPRESS SOUTHERN
Practice Teaching Training,Train and Conference,05/07/2010,5000088253,"-5,880.00",UNIVERSITY OF PORTSMOUTH
Practice Teaching Training,Train and Conference,15/09/2010,5000101427,-735.00,UNIVERSITY OF PORTSMOUTH
Practice Teaching Training,Train and Conference,26/08/2010,5000098037,735.00,UNIVERSITY OF PORTSMOUTH
SSEYCCG - GRADUATE LEADER FUND,Train and Conference,10/08/2010,5000095202,740.00,UNIVERSITY OF PORTSMOUTH
SSEYCCG - GRADUATE LEADER FUND,Train and Conference,10/08/2010,5000095204,740.00,UNIVERSITY OF PORTSMOUTH
SSEYCCG - GRADUATE LEADER FUND,Train and Conference,10/08/2010,5000095165,820.00,UNIVERSITY OF PORTSMOUTH
SSEYCCG - GRADUATE LEADER FUND,Train and Conference,10/08/2010,5000095167,820.00,UNIVERSITY OF PORTSMOUTH
SSEYCCG - GRADUATE LEADER FUND,Train and Conference,10/08/2010,5000095170,820.00,UNIVERSITY OF PORTSMOUTH
SSEYCCG - GRADUATE LEADER FUND,Train and Conference,10/08/2010,5000095175,820.00,UNIVERSITY OF PORTSMOUTH
SSEYCCG - GRADUATE LEADER FUND,Train and Conference,10/08/2010,5000095177,820.00,UNIVERSITY OF PORTSMOUTH
SSEYCCG - GRADUATE LEADER FUND,Train and Conference,10/08/2010,5000095179,820.00,UNIVERSITY OF PORTSMOUTH
SSEYCCG - GRADUATE LEADER FUND,Train and Conference,10/08/2010,5000095180,820.00,UNIVERSITY OF PORTSMOUTH
SSEYCCG - GRADUATE LEADER FUND,Train and Conference,10/08/2010,5000095183,820.00,UNIVERSITY OF PORTSMOUTH
SSEYCCG - GRADUATE LEADER FUND,Train and Conference,10/08/2010,5000095185,820.00,UNIVERSITY OF PORTSMOUTH
SSEYCCG - GRADUATE LEADER FUND,Train and Conference,07/09/2010,5000099725,820.00,UNIVERSITY OF PORTSMOUTH
SSEYCCG - GRADUATE LEADER FUND,Train and Conference,29/09/2010,5000103957,820.00,UNIVERSITY OF PORTSMOUTH
Training - Adult OP & PD Services,Train and Conference,07/09/2010,5000099880,820.00,UNIVERSITY OF PORTSMOUTH
Youth & Community Service,Grants to Ext Bodies,22/07/2010,5000091840,"14,158.25",ISLAND YOUTH WATER ACT.CTR(IW)LTD
Vol Sector Grants - Older People,Pay to Vol and Other,21/07/2010,5000091675,"34,000.00",IW CITIZENS ADVICE BUREAU [SB]
Vol Sector Grants - Older People,Pay to Vol and Other,30/09/2010,5000104339,"34,000.00",IW CITIZENS ADVICE BUREAU [SB]
Coroner,Professional Service,16/07/2010,5000090635,781.74,GLANVILLES
Medina Leisure Centre,Licences,02/08/2010,5105603701,508.25,PHONOGRAPHIC PERFORMANCE LTD
The Heights,Licences,02/08/2010,5105603701,687.86,PHONOGRAPHIC PERFORMANCE LTD
Technical Support,Operational Equipmen,08/09/2010,5000100029,762.00,RUTH LEE LTD
Fire Service to be allocated,"Pl, Equip & Furn - C",01/09/2010,5000098915,"1,680.00",DAVID LUTAS UPHOLSTERY
Traffic Mgt Mtce Cont - Other Roads,Pay to Pvte Contract,23/08/2010,5105607965,"4,059.03",SIMMONSIGNS LTD
"Westridge, Ryde",Grounds Maintenance,05/08/2010,5000094563,"-2,562.50",REDACTED PERSONAL DATA
"Westridge, Ryde",Grounds Maintenance,05/08/2010,5000094556,"2,562.50",REDACTED PERSONAL DATA
Provision  essential & emergency works,Cap Contractor Pmts,30/07/2010,5000093593,"2,494.00",HILLBANS PEST CONTROL LTD
Ventnor Botanic Garden,Vehicle Maint Costs,02/09/2010,5000099114,"1,233.94",REDACTED PERSONAL DATA
Business Support,Sundry Office Expens,08/07/2010,5000089146,"1,500.00",COWES YACHT HAVEN LTD
Parenting and Family Support,Hire of facilities,31/08/2010,5000098359,"-1,000.00",COWES YACHT HAVEN LTD
Parenting and Family Support,Hire of facilities,10/08/2010,5000095150,"1,000.00",COWES YACHT HAVEN LTD
SSEYCCG - WORKFORCE DEVELOPME,Hire of facilities,07/09/2010,5000099723,"-1,875.00",COWES YACHT HAVEN LTD
SSEYCCG - WORKFORCE DEVELOPME,Hire of facilities,31/08/2010,5000098359,"-1,125.00",COWES YACHT HAVEN LTD
SSEYCCG - WORKFORCE DEVELOPME,Hire of facilities,10/08/2010,5000095150,"1,125.00",COWES YACHT HAVEN LTD
PNP Newsletter Prod,Printing Costs,16/07/2010,5000090571,585.00,BILTMORE PRINTERS
Wightcare Control Room,Operational Equipmen,22/09/2010,5000102683,562.05,TUNSTALL TELECOM LTD
Adelaide Resource Centre,Maint of Op Equip,21/07/2010,5000091647,"2,265.07",TUNSTALL TELECOM LTD
Gouldings Resource Centre,Maint of Op Equip,21/07/2010,5000091648,"2,825.79",TUNSTALL TELECOM LTD
Wightcare Control Room,Maint of Op Equip,16/09/2010,5000101595,"13,444.55",TUNSTALL TELECOM LTD
Island Games - Talented & Gifted Prog,Hire of facilities,02/07/2010,5000087891,"3,607.65",ROYAL YACHT SQUADRON
Integrated Community Equipment Service,Operational Equipmen,21/07/2010,5000091615,524.00,QUEST 88 LTD
Integrated Community Equipment Service,Operational Equipmen,07/07/2010,5000088917,552.80,QUEST 88 LTD
Business Support Team,NJC General Staff GP,22/09/2010,5000102668,-514.40,ANCHOR RECRUITMENT
Business Support Team,NJC General Staff GP,16/08/2010,5000096078,504.00,ANCHOR RECRUITMENT
Business Support Team,NJC General Staff GP,20/09/2010,5000102333,514.40,ANCHOR RECRUITMENT
Business Support Team,NJC General Staff GP,22/09/2010,5000102670,516.00,ANCHOR RECRUITMENT
Gouldings Resource Centre,Agency staff,10/08/2010,5000095219,512.50,ANCHOR RECRUITMENT
Gouldings Resource Centre,Agency staff,25/08/2010,5000097939,562.30,ANCHOR RECRUITMENT
Gouldings Resource Centre,Agency staff,27/09/2010,5000103567,621.88,ANCHOR RECRUITMENT
Highways Design Temporary Staff,Agency staff,12/07/2010,5000089377,933.31,ANCHOR RECRUITMENT
ICT Service Development,Agency staff,12/07/2010,5000089411,544.00,ANCHOR RECRUITMENT
ICT Service Development,Agency staff,12/07/2010,5000089412,560.00,ANCHOR RECRUITMENT
Transforming Social Care,Agency staff,03/09/2010,5000099254,516.25,ANCHOR RECRUITMENT
Transforming Social Care,Agency staff,23/09/2010,5000103012,538.38,ANCHOR RECRUITMENT
Transforming Social Care,Agency staff,09/08/2010,5000094880,545.75,ANCHOR RECRUITMENT
Transforming Social Care,Agency staff,31/08/2010,5000098506,571.56,ANCHOR RECRUITMENT
Transforming Social Care,Agency staff,21/07/2010,5000091507,593.69,ANCHOR RECRUITMENT
Transforming Social Care,Agency staff,05/07/2010,5000088248,612.13,ANCHOR RECRUITMENT
Electoral Registration Canvassing,Postage,29/09/2010,5000104062,"1,117.43",ROYAL MAIL GROUP PLC
Electoral Registration Canvassing,Postage,22/09/2010,5000102750,"3,643.30",ROYAL MAIL GROUP PLC
Electoral Registration Canvassing,Postage,15/09/2010,5000101300,"4,160.78",ROYAL MAIL GROUP PLC
Electoral Registration Canvassing,Postage,07/09/2010,5000099804,"11,588.18",ROYAL MAIL GROUP PLC
Payroll,Postage,01/09/2010,1900221727,992.78,ROYAL MAIL GROUP PLC
"29,High St,Newport",Building & Room Rent,19/07/2010,5105600210,"11,000.00",IWCP RENT ACCOUNT [RE]
"29,High St,Newport",Building & Room Rent,25/09/2010,5105616514,"11,000.00",IWCP RENT ACCOUNT [RE]
Administration and Inspection Schemes,"Pl, Equip & Furn - C",23/07/2010,5000092176,"9,706.60",TEST VALLEY MOBILITY
Disabled Facilities Grants,Capital Grants,27/08/2010,1900221400,"1,495.00",TEST VALLEY MOBILITY
Disabled Facilities Grants,Capital Grants,10/08/2010,1900214409,"1,775.00",TEST VALLEY MOBILITY
Disabled Facilities Grants,Capital Grants,16/09/2010,1900232511,"2,031.50",TEST VALLEY MOBILITY
Outside Promotions,Pay to Pvte Contract,15/07/2010,1900202677,"3,372.58",HILLARY HALL
Works in Default,Capital Grants,13/07/2010,5000089695,"1,955.00",DIAL-A-ROD
Works in Default,Capital Grants,07/07/2010,5000088846,"2,500.00",DIAL-A-ROD
Cowes JS Whites SSC,Building & Room Rent,16/09/2010,5000101602,"7,735.09",GULLY HOWARD LTD [RE]
Safety Schemes,Professional Service,09/07/2010,5000089354,"1,176.32",KINGSTON & GRIST
Leader 2009/13 Grant Claims,Grants to Ext Bodies,13/08/2010,1900215021,"18,207.67",FRESHWATER PARISH COUNCIL
WW Landscape Partnership,Grants to Ext Bodies,09/08/2010,1900214375,615.00,FRESHWATER PARISH COUNCIL
Chale Primary Devolved Capital,Security of Building,22/07/2010,5000091911,-820.00,PAGE THE PACKERS
Chale Primary Devolved Capital,Security of Building,20/07/2010,5000091290,820.00,PAGE THE PACKERS
Chale Primary Devolved Capital,Eligible Supp and Sv,22/07/2010,5000091915,820.00,PAGE THE PACKERS
Financial Management Overheads,Professional Subs,06/07/2010,5000088620,"3,834.04",SOCIETY OF COUNTY TREASURERS
WL Training & Recruitment/Personnel,Train and Conference,03/09/2010,5000099379,598.00,ISRM
TIC Agency Income Suspense,Professional Service,05/08/2010,5000094453,"1,749.60",THE MAYFLOWER THEATRE TRUST LTD
TIC Agency Income Suspense,Professional Service,27/08/2010,5000098289,"1,876.50",THE MAYFLOWER THEATRE TRUST LTD
TIC Agency Income Suspense,Professional Service,09/07/2010,5000089199,"3,348.90",THE MAYFLOWER THEATRE TRUST LTD
Non-Delegated Building Maintenance,Prop Svs - Bldg mtce,21/09/2010,5000102347,804.70,COWAN CONSULTANCY LTD
Bridges Etc - General,Highways Minor Works,16/08/2010,5000096010,"1,250.00",COWAN CONSULTANCY LTD
Provision  essential & emergency works,Ext Design & Superv,23/08/2010,5000097264,"1,144.81",COWAN CONSULTANCY LTD
Speed Campaign,General Materials,09/07/2010,5000089349,780.00,VISION GRAPHIX
Coast Protection,Printing Costs,11/08/2010,5000095560,520.00,VISION GRAPHIX
A.O.N.B.,Pay to Other LAs,21/09/2010,5000102492,"1,066.00",SURREY COUNTY COUNCIL
Rights of Way Operations,General Materials,28/09/2010,5000103748,"-1,039.35",COUNTY FENCING SUPPLIES
Rights of Way Operations,General Materials,23/09/2010,5000103126,575.00,COUNTY FENCING SUPPLIES
Crematorium,Operational Equipmen,20/09/2010,5000102229,510.00,F G MARSHALL LTD
Crematorium,Stationery,14/09/2010,5000101080,532.35,F G MARSHALL LTD
Managerial & Administration,Conference Expenses,15/09/2010,5000101518,625.50,INST.OF REVENUES RATING & VALUATION
Parks and Gardens Capital,Cap Contractor Pmts,23/08/2010,5000097329,"8,320.00",WICKSTEED LEISURE LTD
Homelessness,Accom Csts Serv Usrs,17/09/2010,1900232703,"1,140.00",DALTON ENTERPRISES
Homelessness Prevention,Accom Csts Serv Usrs,23/09/2010,1900233297,900.00,DALTON ENTERPRISES
Beach Safety & Inspection / Beach Awards,Pay to Pvte Contract,15/07/2010,5000090495,"1,453.95",OFFSHORE MARINE SERVICES LTD
Shanklin Lift,Pay to Pvte Contract,24/09/2010,5000103228,"3,102.84",OTIS LTD
Cowes Week,Professional Service,09/08/2010,5000094962,860.00,ST JOHN AMBULANCE
School Music Service,Operational Equipmen,03/09/2010,5000099344,600.00,PORTSMOUTH CITY COUNCIL
Workforce Development (A&C Services),Pay to Other LAs,26/07/2010,5000092421,"7,801.45",PORTSMOUTH CITY COUNCIL
Research & Development,Building & Room Rent,07/07/2010,5000088870,874.99,IW RURAL COMMUNITY COUNCIL
RASP - Rural Community Council,Grants to Ext Bodies,23/07/2010,1900208383,"18,212.00",IW RURAL COMMUNITY COUNCIL
Structural Maintenance Other Roads,Highways Minor Works,25/08/2010,5000097753,549.00,H J BENNETT LTD
Drainage Works,Cap Contractor Pmts,07/09/2010,5000099917,975.00,H J BENNETT LTD
Other Highways maintenance,Cap Contractor Pmts,03/09/2010,5000099346,850.00,H J BENNETT LTD
Other Highways maintenance,Cap Contractor Pmts,08/09/2010,5000099985,"3,396.47",H J BENNETT LTD
IWHC Community Home - Beaulieu,Minor Works,30/07/2010,5000093567,"6,660.00",LIFELINE ALARM SYSTEMS LTD
Sandham Middle Devolved Capital,Cap Contractor Pmts,20/09/2010,1900232963,"1,442.00",LIFELINE ALARM SYSTEMS LTD
Ryde T.I.C.,Building & Room Rent,21/09/2010,5000102591,"2,312.50",ARCADIA (RYDE) LTD
Ryde THI,Grants to Ext Bodies,22/07/2010,5000091932,"51,944.00",ARCADIA (RYDE) LTD
Ryde THI,Capital Grants,21/09/2010,1900233030,"9,670.50",ARCADIA (RYDE) LTD
Ryde THI,Capital Grants,09/08/2010,5000094929,"13,428.00",ARCADIA (RYDE) LTD
Ryde THI,Capital Grants,23/07/2010,5000091947,"13,933.40",ARCADIA (RYDE) LTD
Ryde Cemetery HLF Project,Prop Svs - Bldg mtce,23/08/2010,5000097437,"2,261.85",BROXAP LTD
Public Seats  (incl.Dedicated Seats),Operational Equipmen,07/09/2010,5000099638,"4,175.00",BROXAP LTD
Ryde Cemetery HLF Project,"Pl, Equip & Furn - C",23/08/2010,5000097432,"4,378.00",BROXAP LTD
Ventnor Haven - General,Pay to Pvte Contract,09/09/2010,5000100519,"1,500.00",H ATTRILL & SONS (ISLE OF WIGHT)LTD
BSIP savings,Cleaning Contracts,10/08/2010,5000095131,"1,995.07",BIFFA WASTE SERVICES LTD
Library Mgmt & Central Support,"Ref Collect, Disp &",23/08/2010,5000097473,-702.50,BIFFA WASTE SERVICES LTD
Library Mgmt & Central Support,"Ref Collect, Disp &",11/08/2010,5000095416,-627.50,BIFFA WASTE SERVICES LTD
Library Mgmt & Central Support,"Ref Collect, Disp &",12/08/2010,5000095852,-627.50,BIFFA WASTE SERVICES LTD
Library Mgmt & Central Support,"Ref Collect, Disp &",18/08/2010,5000096617,680.00,BIFFA WASTE SERVICES LTD
Library Mgmt & Central Support,"Ref Collect, Disp &",23/09/2010,5000103111,680.00,BIFFA WASTE SERVICES LTD
Library Mgmt & Central Support,"Ref Collect, Disp &",23/08/2010,5000097465,702.50,BIFFA WASTE SERVICES LTD
Ryde Harbour,"Ref Collect, Disp &",30/07/2010,5000093490,"-1,729.98",BIFFA WASTE SERVICES LTD
Ryde Harbour,"Ref Collect, Disp &",12/07/2010,5000089502,"1,729.98",BIFFA WASTE SERVICES LTD
Concessionary Fares- Over 60s,Transport of Clients,07/07/2010,5000088712,"359,518.06",GO SOUTH COAST LTD
Subsidised Bus Services,Pub Trspt Subsidy,20/07/2010,5000091236,"11,613.00",GO SOUTH COAST LTD
Subsidised Bus Services,Pub Trspt Subsidy,17/08/2010,5000096474,"11,613.00",GO SOUTH COAST LTD
Subsidised Bus Services,Pub Trspt Subsidy,03/09/2010,5000099299,"11,613.00",GO SOUTH COAST LTD
Subsidised Bus Services,Pub Trspt Subsidy,30/09/2010,5000104257,"11,614.00",GO SOUTH COAST LTD
Concessionary Fares- Over 60s,Concessionary Fares,20/09/2010,5000102003,"362,636.31",GO SOUTH COAST LTD
Concessionary Fares- Over 60s,Concessionary Fares,03/08/2010,5000094109,"376,489.97",GO SOUTH COAST LTD
Concessionary Fares- Over 60s,Concessionary Fares,13/08/2010,5000095891,"388,101.85",GO SOUTH COAST LTD
Concessionary Fares- Youth,Concessionary Fares,20/09/2010,5000102002,"16,214.59",GO SOUTH COAST LTD
Concessionary Fares- Youth,Concessionary Fares,20/07/2010,5000091239,"17,010.99",GO SOUTH COAST LTD
Concessionary Fares- Youth,Concessionary Fares,17/08/2010,5000096475,"17,923.81",GO SOUTH COAST LTD
Concessionary Fares- Youth,Concessionary Fares,26/07/2010,1900208625,"129,758.62",GO SOUTH COAST LTD
Wootton Youth Centre 40% income susp,Bldg/Room Rental Inc,29/09/2010,1900233816,779.15,WOOTTON YOUTH CENTRE
TIC Agency Income Suspense,Professional Service,06/08/2010,1900214260,551.56,I W GHOST EXPERIENCES
TIC Agency Income Suspense,Professional Service,10/09/2010,1900226993,697.18,I W GHOST EXPERIENCES
SSEYCCG - WORKFORCE DEVELOPME,Hire of facilities,13/07/2010,5000089933,"1,112.98",APPLEY MANOR HOTEL
TIC Agency Income Suspense,Professional Service,08/07/2010,1900201981,539.65,HURST CASTLE FERRIES
TIC Agency Income Suspense,Professional Service,10/09/2010,1900227006,589.51,HURST CASTLE FERRIES
TIC Agency Income Suspense,Professional Service,06/08/2010,1900214211,881.62,HURST CASTLE FERRIES
A.O.N.B.,Train and Conference,07/09/2010,5105611914,780.28,UNIVERSITY OF SOUTHAMPTON
Planning Training,Train and Conference,07/09/2010,5105611914,699.72,UNIVERSITY OF SOUTHAMPTON
Local Development Framework,Consultants Fees,02/09/2010,5000099247,"3,537.50",UNIVERSITY OF SOUTHAMPTON
TIC Agency Income Suspense,Professional Service,06/08/2010,1900214237,598.78,REDACTED PERSONAL DATA
TIC Agency Income Suspense,Professional Service,10/09/2010,1900226992,963.07,WAVERLEY EXCURSIONS LTD
Ventnor Botanic Garden,Catering Purchases,27/08/2010,5000098215,-720.00,THE ROYAL HOTEL LTD
"Car Park - Little London,Newport",Building & Room Rent,29/09/2010,5000104072,"13,750.00",W HURST & SON (IW) LTD
S106 Capital Projects,Grants to Ext Bodies,28/09/2010,5000103723,"136,000.00",VECTIS HOUSING ASSOCIATION LTD
Homelessness,Accomm Costs - Lease,15/07/2010,5000090385,"5,995.20",VECTIS HOUSING ASSOCIATION LTD
Homelessness,Accomm Costs - Lease,08/09/2010,5000100302,"6,389.07",VECTIS HOUSING ASSOCIATION LTD
Homelessness,Accomm Costs - Lease,11/08/2010,5000095548,"7,494.00",VECTIS HOUSING ASSOCIATION LTD
Chief Fire Officer,Vehicle Maint Costs,03/08/2010,5000094045,530.10,PENTAGON LIMITED
Payroll,Consultants Fees,22/07/2010,5000091869,"2,174.00",PREMIER ENVOY LIMITED
Cs&Dp Act Adapts General,Cap Contractor Pmts,16/09/2010,5000101709,"-3,700.00",ISLAND MOBILITY
Cs&Dp Act Adapts General,Cap Contractor Pmts,16/09/2010,5000101706,"3,700.00",ISLAND MOBILITY
Disabled Facilities Grants,Capital Grants,27/08/2010,1900221376,740.00,ISLAND MOBILITY
Disabled Facilities Grants,Capital Grants,07/09/2010,5000099631,890.00,ISLAND MOBILITY
Disabled Facilities Grants,Capital Grants,26/07/2010,1900208606,950.00,ISLAND MOBILITY
Disabled Facilities Grants,Capital Grants,02/07/2010,1900197152,990.00,ISLAND MOBILITY
Disabled Facilities Grants,Capital Grants,21/09/2010,1900232977,"1,050.00",ISLAND MOBILITY
Disabled Facilities Grants,Capital Grants,02/09/2010,1900226236,"1,170.00",ISLAND MOBILITY
Disabled Facilities Grants,Capital Grants,16/09/2010,1900232520,"2,965.00",ISLAND MOBILITY
Disabled Facilities Grants,Capital Grants,27/08/2010,1900221396,"2,985.00",ISLAND MOBILITY
Disabled Facilities Grants,Capital Grants,27/08/2010,1900221402,"3,100.00",ISLAND MOBILITY
Disabled Facilities Grants,Capital Grants,11/08/2010,1900214524,"8,773.00",ISLAND MOBILITY
Housing Renewal Assistance,Capital Grants,24/09/2010,5000103304,995.00,ISLAND MOBILITY
Fire Service to be allocated,"Pl, Equip & Furn - C",16/08/2010,5000096080,"1,518.79",LUPTON AUTO ELECTRICAL LTD
Homelessness Prevention,Accom Csts Serv Usrs,09/08/2010,1900214373,650.00,ARTHUR WHEELER ESTATE AGENTS
Homelessness Prevention,Accom Csts Serv Usrs,08/07/2010,1900201990,660.00,ARTHUR WHEELER ESTATE AGENTS
Ryde Youth Centre 40% income susp,Bldg/Room Rental Inc,24/09/2010,1900233419,993.24,RYDE YOUTH CENTRE
Youth Offending Team,Building & Room Rent,14/07/2010,5000090175,925.50,LAMBOURNES CHARTERED SURVEYORS
Harnessing Technology Grant,ICT H/ware & S/ware,10/09/2010,5105612935,-781.00,RM EDUCATION PLC
Harnessing Technology Grant,ICT H/ware & S/ware,10/08/2010,5000095225,746.00,RM EDUCATION PLC
Harnessing Technology Grant,ICT H/ware & S/ware,10/08/2010,5000095225,"16,746.00",RM EDUCATION PLC
Harnessing Technology Grant,ICT H/ware & S/ware,10/08/2010,5000095225,"32,489.17",RM EDUCATION PLC
Harnessing Technology Grant,ICT H/ware & S/ware,05/07/2010,5000088119,"136,940.55",RM EDUCATION PLC
Environmental Health - Geographical Team,Train and Conference,13/07/2010,5000089914,"6,000.00",GOSPORT BOROUGH COUNCIL
Local Transport Plan,Printing Costs,12/08/2010,5000095848,550.00,EUROSIGNS (UK) LTD
ROW Capital Programme,Eligible Supp and Sv,10/09/2010,5000100693,540.00,EUROSIGNS (UK) LTD
Technical Support,Clothing & Laundry,01/07/2010,5000087594,775.00,SOUTHCOMBE BROTHERS LIMITED
Technical Support,Clothing & Laundry,23/08/2010,5000097332,775.00,SOUTHCOMBE BROTHERS LIMITED
Technical Support,Clothing & Laundry,23/08/2010,5000097332,"1,550.00",SOUTHCOMBE BROTHERS LIMITED
Library Mgmt & Central Support,Purchase of Books,21/07/2010,1900203146,807.65,PETERS LTD
Library Mgmt & Central Support,Purchase of Books,03/08/2010,1900209465,"1,397.88",PETERS LTD
Library Mgmt & Central Support,Purchase of Books,01/09/2010,1900223841,"1,837.20",PETERS LTD
Schools Library Service,Purchase of Books,16/09/2010,1900232669,748.92,PETERS LTD
Schools Library Service,Purchase of Books,25/08/2010,1900221105,875.48,PETERS LTD
Schools Library Service,Purchase of Books,03/08/2010,1900209468,"1,075.88",PETERS LTD
Schools Library Service,Purchase of Books,16/08/2010,1900215093,"1,318.32",PETERS LTD
Schools Library Service,Purchase of Books,03/08/2010,1900209458,"3,432.03",PETERS LTD
Wootton Prim Prop Maintenance Suspense,Purchase of Books,29/09/2010,1900238349,"1,074.07",PETERS LTD
PNP Growing Spaces,Grants to Ext Bodies,12/07/2010,5000089623,"3,000.00",MEDINA HOUSING ASSOC [RE]
S106 Agreements  Play/Rec Areas,Pay to Pvte Contract,14/09/2010,5000101255,"6,000.00",MEDINA HOUSING ASSOC [RE]
Vol Sector Grants - Physical Disability,Pay to Vol and Other,20/07/2010,5000091470,"43,215.00",ROYAL NAT INST FOR DEAF PEOPLE [SG]
Development Control,Train and Conference,27/09/2010,5000103469,"3,902.00",UNIVERSITY OF THE WEST OF ENGLAND
Highways PFI Project,Train and Conference,15/07/2010,5000090444,"1,400.00",BEVAN YOUNG ASSOCIATES
Highways PFI Project,Train and Conference,25/08/2010,5000097910,"1,750.00",BEVAN YOUNG ASSOCIATES
Highways PFI Project,Train and Conference,14/09/2010,5000101092,"2,100.00",BEVAN YOUNG ASSOCIATES
Human Resources,Professional Service,24/08/2010,5000097652,900.00,BEVAN YOUNG ASSOCIATES
Organisational Development ? Leadership,Pay to Pvte Contract,27/07/2010,5000092776,700.00,BEVAN YOUNG ASSOCIATES
Agency Placements,Pay to Vol and Other,27/07/2010,5105602441,"1,137.77",JACQUES HALL FOUNDATION
Agency Placements,Pay to Vol and Other,16/09/2010,5105614550,"61,635.84",JACQUES HALL FOUNDATION
Pupils with statements - Non-Maint Schs,Pay to Vol and Other,16/09/2010,5105614550,"17,741.38",JACQUES HALL FOUNDATION
"Bugle House,Newport",Building & Room Rent,16/07/2010,5000090734,"1,406.38",BAE SYSTEMS PENSION FUNDS TRUST.LTD
"Bugle House,Newport",Building & Room Rent,21/09/2010,5000102592,"1,976.40",BAE SYSTEMS PENSION FUNDS TRUST.LTD
"Bugle House,Newport",Building & Room Rent,16/09/2010,5000101605,"6,250.00",BAE SYSTEMS PENSION FUNDS TRUST.LTD
Technical Support,Operational Equipmen,15/09/2010,5000101292,647.50,PRECISION UNITS (DORSET) LTD
Medina Leisure Centre,Pay to Pvte Contract,09/09/2010,5000100550,"1,609.50",TECHNOGYM UK LTD
DFT Emergency Maintenance Works,Highways Minor Works,08/09/2010,5000100005,"2,020.05",SIEMENS PLC MOBILITY DIVISION
Traffic Management,Highways Minor Works,11/08/2010,5000095518,"1,115.45",SIEMENS PLC MOBILITY DIVISION
Traffic Signals Mtce - Other Roads,Highways Minor Works,08/09/2010,5000100007,714.20,SIEMENS PLC MOBILITY DIVISION
Traffic Signals Mtce - Other Roads,Highways Minor Works,28/09/2010,5000103709,"1,083.39",SIEMENS PLC MOBILITY DIVISION
Traffic Signals Mtce - Other Roads,Highways Minor Works,11/08/2010,5000095519,"1,184.36",SIEMENS PLC MOBILITY DIVISION
Traffic Signals Mtce - Principal Roads,Highways Minor Works,27/07/2010,5105602330,"-19,109.57",SIEMENS PLC MOBILITY DIVISION
Traffic Signals Mtce - Principal Roads,Highways Minor Works,27/07/2010,5105602333,"-19,109.57",SIEMENS PLC MOBILITY DIVISION
Traffic Signals Mtce - Principal Roads,Highways Minor Works,29/09/2010,5000104110,912.53,SIEMENS PLC MOBILITY DIVISION
Traffic Signals Mtce - Principal Roads,Highways Minor Works,11/08/2010,5000095520,941.97,SIEMENS PLC MOBILITY DIVISION
Traffic Signals Mtce - Principal Roads,Highways Minor Works,11/08/2010,5000095509,"1,117.54",SIEMENS PLC MOBILITY DIVISION
Traffic Signals Mtce - Principal Roads,Highways Minor Works,11/08/2010,5000095515,"1,332.53",SIEMENS PLC MOBILITY DIVISION
Traffic Signals Mtce - Principal Roads,Highways Minor Works,28/09/2010,5000103708,"1,820.28",SIEMENS PLC MOBILITY DIVISION
Traffic Signals Mtce - Principal Roads,Highways Minor Works,11/08/2010,5000095512,"2,442.33",SIEMENS PLC MOBILITY DIVISION
Traffic Signals Mtce - Principal Roads,Highways Minor Works,27/07/2010,5105602325,"18,761.30",SIEMENS PLC MOBILITY DIVISION
Traffic Signals Mtce - Principal Roads,Highways Minor Works,23/09/2010,5105616220,"18,761.30",SIEMENS PLC MOBILITY DIVISION
Traffic Signals Mtce - Principal Roads,Highways Minor Works,27/07/2010,5105602327,"19,109.57",SIEMENS PLC MOBILITY DIVISION
Traffic Signals Mtce - Principal Roads,Highways Minor Works,27/07/2010,5105602332,"19,109.57",SIEMENS PLC MOBILITY DIVISION
Bus Infrastructure,Cap Contractor Pmts,20/07/2010,5000091358,"3,491.95",SIEMENS PLC MOBILITY DIVISION
Other Highways maintenance,Cap Contractor Pmts,11/08/2010,5000095504,"2,204.38",SIEMENS PLC MOBILITY DIVISION
Safety Schemes,Cap Contractor Pmts,17/08/2010,5000096322,"3,801.15",SIEMENS PLC MOBILITY DIVISION
Safety Schemes,Cap Contractor Pmts,08/09/2010,5000100300,"11,059.90",SIEMENS PLC MOBILITY DIVISION
Traffic Management,Cap Contractor Pmts,17/08/2010,5000096412,"1,267.42",SIEMENS PLC MOBILITY DIVISION
Traffic Signals,Cap Contractor Pmts,20/07/2010,5000091357,"27,840.18",SIEMENS PLC MOBILITY DIVISION
SEN support for pupils with statements,Sch Learn Res - S Ed,16/09/2010,5000101653,"1,853.00",JAMES LECKEY DESIGN LTD
Integrated Community Equipment Service,Operational Equipmen,02/09/2010,5000099107,"1,598.00",JAMES LECKEY DESIGN LTD
Grounds Maintenance Contingency Non-Del,Grounds Maintenance,23/07/2010,5000092152,675.00,STADIA SPORTS INTERNATIONAL LTD
Ryde Library,Publications,07/07/2010,5000088883,526.70,AB NEWS
Pupils with statements - Non-Maint Schs,Transport of Clients,27/07/2010,5000092614,"3,407.60",SOUTHAMPTON CITY COUNCIL
Adoption Costs,Professional Service,19/08/2010,5000096811,"1,500.00",SOUTHAMPTON CITY COUNCIL
Statutory Assessment and Review Team,Pay to Other LAs,27/07/2010,5000092625,"8,345.63",SOUTHAMPTON CITY COUNCIL
Pupils with statements - Non-Maint Schs,Transport of Clients,09/07/2010,5000089240,780.00,AQUA CARS LTD
Litigation Costs,Legal Fees - Other P,10/08/2010,5000095239,"1,625.00",REDACTED PERSONAL DATA
Waterside pool,Fuel Oil,14/09/2010,5000101276,"-1,102.97",VECTIS OILS
Waterside pool,Fuel Oil,08/09/2010,5000100177,"-1,086.80",VECTIS OILS
Waterside pool,Fuel Oil,14/09/2010,5000101277,945.00,VECTIS OILS
Waterside pool,Fuel Oil,29/09/2010,5000103973,"1,002.20",VECTIS OILS
Waterside pool,Fuel Oil,14/09/2010,5000101248,"1,013.00",VECTIS OILS
Waterside pool,Fuel Oil,03/09/2010,5000099326,"1,102.97",VECTIS OILS
Waterside pool,Fuel Oil,12/08/2010,5000095655,"1,103.40",VECTIS OILS
Ferry Operation,Vehicle Fuel Costs,12/08/2010,5000095835,"1,222.54",VECTIS OILS
Ferry Operation,Vehicle Fuel Costs,19/08/2010,5000096896,"1,323.36",VECTIS OILS
School Escorts,Vehicle Fuel Costs,22/07/2010,5000091692,"1,322.88",VECTIS OILS
Litigation Costs,Legal Fees - Other P,10/08/2010,5000095251,750.00,REDACTED PERSONAL DATA
Litigation Costs,Legal Fees - Other P,29/09/2010,5000103902,975.00,REDACTED PERSONAL DATA
Litigation Costs,Professional Service,29/07/2010,5000093403,750.00,REDACTED PERSONAL DATA
Library Mgmt & Central Support,Vehicle Maint Costs,25/08/2010,5000097777,-584.01,ADAMS MOREY LTD
Library Mgmt & Central Support,Vehicle Maint Costs,08/09/2010,5000100121,584.01,ADAMS MOREY LTD
Library Mgmt & Central Support,Vehicle Maint Costs,17/08/2010,5000096376,700.60,ADAMS MOREY LTD
Library Mgmt & Central Support,Vehicle Maint Costs,28/07/2010,5000092986,"1,555.26",ADAMS MOREY LTD
Schools Library Service,Vehicle Maint Costs,22/09/2010,5000102934,626.14,ADAMS MOREY LTD
WIGHTBUS Trading Account,Vehicle Maint Costs,29/09/2010,5000104030,"-3,391.70",ADAMS MOREY LTD
WIGHTBUS Trading Account,Vehicle Maint Costs,25/08/2010,5000097772,-517.45,ADAMS MOREY LTD
WIGHTBUS Trading Account,Vehicle Maint Costs,22/09/2010,5000102931,532.67,ADAMS MOREY LTD
WIGHTBUS Trading Account,Vehicle Maint Costs,17/08/2010,5000096376,538.95,ADAMS MOREY LTD
WIGHTBUS Trading Account,Vehicle Maint Costs,22/09/2010,5000102931,543.42,ADAMS MOREY LTD
WIGHTBUS Trading Account,Vehicle Maint Costs,09/09/2010,5000100507,584.99,ADAMS MOREY LTD
WIGHTBUS Trading Account,Vehicle Maint Costs,17/08/2010,5000096510,610.65,ADAMS MOREY LTD
WIGHTBUS Trading Account,Vehicle Maint Costs,22/09/2010,5000102931,658.90,ADAMS MOREY LTD
WIGHTBUS Trading Account,Vehicle Maint Costs,28/07/2010,5000092986,667.35,ADAMS MOREY LTD
WIGHTBUS Trading Account,Vehicle Maint Costs,17/08/2010,5000096509,682.68,ADAMS MOREY LTD
WIGHTBUS Trading Account,Vehicle Maint Costs,17/08/2010,5000096375,697.14,ADAMS MOREY LTD
WIGHTBUS Trading Account,Vehicle Maint Costs,17/08/2010,5000096370,705.87,ADAMS MOREY LTD
WIGHTBUS Trading Account,Vehicle Maint Costs,09/09/2010,5000100507,706.09,ADAMS MOREY LTD
WIGHTBUS Trading Account,Vehicle Maint Costs,09/09/2010,5000100507,722.26,ADAMS MOREY LTD
WIGHTBUS Trading Account,Vehicle Maint Costs,17/08/2010,5000096375,755.84,ADAMS MOREY LTD
WIGHTBUS Trading Account,Vehicle Maint Costs,12/07/2010,5000089660,755.98,ADAMS MOREY LTD
WIGHTBUS Trading Account,Vehicle Maint Costs,22/09/2010,5000102934,775.42,ADAMS MOREY LTD
WIGHTBUS Trading Account,Vehicle Maint Costs,22/09/2010,5000102931,776.97,ADAMS MOREY LTD
WIGHTBUS Trading Account,Vehicle Maint Costs,17/08/2010,5000096375,782.99,ADAMS MOREY LTD
WIGHTBUS Trading Account,Vehicle Maint Costs,12/07/2010,5000089660,840.56,ADAMS MOREY LTD
WIGHTBUS Trading Account,Vehicle Maint Costs,03/08/2010,5000094042,956.75,ADAMS MOREY LTD
WIGHTBUS Trading Account,Vehicle Maint Costs,31/08/2010,5000098447,987.78,ADAMS MOREY LTD
WIGHTBUS Trading Account,Vehicle Maint Costs,31/08/2010,5000098447,992.93,ADAMS MOREY LTD
WIGHTBUS Trading Account,Vehicle Maint Costs,22/09/2010,5000102934,"1,138.63",ADAMS MOREY LTD
WIGHTBUS Trading Account,Vehicle Maint Costs,12/07/2010,5000089660,"1,194.11",ADAMS MOREY LTD
WIGHTBUS Trading Account,Vehicle Maint Costs,07/09/2010,5000099652,"1,736.89",ADAMS MOREY LTD
WIGHTBUS Trading Account,Vehicle Maint Costs,17/08/2010,5000096375,"1,760.97",ADAMS MOREY LTD
WIGHTBUS Trading Account,Vehicle Maint Costs,28/07/2010,5000092986,"1,845.66",ADAMS MOREY LTD
WIGHTBUS Trading Account,Vehicle Maint Costs,05/07/2010,5000088252,"2,024.12",ADAMS MOREY LTD
WIGHTBUS Trading Account,Vehicle Maint Costs,09/09/2010,5000100507,"2,584.33",ADAMS MOREY LTD
WIGHTBUS Trading Account,Vehicle Maint Costs,28/07/2010,5000092985,"2,840.29",ADAMS MOREY LTD
WIGHTBUS Trading Account,Vehicle Maint Costs,12/07/2010,5000089660,"3,025.21",ADAMS MOREY LTD
WIGHTBUS Trading Account,Vehicle Maint Costs,29/09/2010,5000104032,"3,256.70",ADAMS MOREY LTD
WIGHTBUS Trading Account,Vehicle Maint Costs,07/09/2010,5000099652,"3,391.70",ADAMS MOREY LTD
WIGHTBUS Trading Account,Vehicle Maint Costs,31/08/2010,5000098440,"3,550.00",ADAMS MOREY LTD
WIGHTBUS Trading Account,Vehicle Maint Costs,22/09/2010,5000102931,"4,423.82",ADAMS MOREY LTD
WIGHTBUS Trading Account,Vehicle Maint Costs,03/08/2010,5000094096,"15,350.28",ADAMS MOREY LTD
WIGHTBUS Trading Account,Vehicle Fuel Costs,12/07/2010,5000089659,"3,522.39",ADAMS MOREY LTD
Licensing Services,Operational Equipmen,18/08/2010,5000096574,598.00,ADAMS MOREY LTD
Licensing Services,Operational Equipmen,29/09/2010,5000103945,598.00,ADAMS MOREY LTD
Cemeteries Administration,Grounds Maintenance,08/07/2010,5000089076,"23,173.12",WYEVALE GROUNDS MAINTENANCE
Cemeteries Administration,Grounds Maintenance,14/07/2010,5000090120,"23,536.18",WYEVALE GROUNDS MAINTENANCE
Cemeteries-Ryde,Grounds Maintenance,16/09/2010,5000101589,"4,100.00",WYEVALE GROUNDS MAINTENANCE
Grounds Maintenance - Delegated,Grounds Maintenance,08/07/2010,5000089051,"1,924.31",WYEVALE GROUNDS MAINTENANCE
Grounds Maintenance - Delegated,Grounds Maintenance,10/08/2010,5000095089,"1,924.31",WYEVALE GROUNDS MAINTENANCE
Grounds Maintenance - Delegated,Grounds Maintenance,08/07/2010,5000089053,"8,877.46",WYEVALE GROUNDS MAINTENANCE
Grounds Maintenance - Delegated,Grounds Maintenance,10/08/2010,5000095091,"8,877.46",WYEVALE GROUNDS MAINTENANCE
Grounds Maintenance Contingency Non-Del,Grounds Maintenance,10/08/2010,5000095121,"1,181.10",WYEVALE GROUNDS MAINTENANCE
Grounds Maintenance Contingency Non-Del,Grounds Maintenance,08/07/2010,5000089057,"1,395.31",WYEVALE GROUNDS MAINTENANCE
Environmental Maintenance Other Roads,Pay to Pvte Contract,30/07/2010,5105603481,"2,265.75",WYEVALE GROUNDS MAINTENANCE
Environmental Maintenance Other Roads,Pay to Pvte Contract,03/09/2010,5105611484,"3,597.94",WYEVALE GROUNDS MAINTENANCE
Environmental Maintenance Other Roads,Pay to Pvte Contract,30/07/2010,5105603482,"22,112.95",WYEVALE GROUNDS MAINTENANCE
Environmental Maintenance Other Roads,Pay to Pvte Contract,26/07/2010,5105602140,"31,581.41",WYEVALE GROUNDS MAINTENANCE
Environmental Maintenance Principle Rds,Pay to Pvte Contract,03/09/2010,5105611484,634.93,WYEVALE GROUNDS MAINTENANCE
Environmental Maintenance Principle Rds,Pay to Pvte Contract,30/07/2010,5105603482,"3,902.29",WYEVALE GROUNDS MAINTENANCE
Environmental Maintenance Principle Rds,Pay to Pvte Contract,26/07/2010,5105602140,"5,573.19",WYEVALE GROUNDS MAINTENANCE
Public Realm contract gaps,Pay to Pvte Contract,05/07/2010,5000088357,900.12,WYEVALE GROUNDS MAINTENANCE
Public Realm contract gaps,Pay to Pvte Contract,10/08/2010,5000095095,"5,040.61",WYEVALE GROUNDS MAINTENANCE
Wyevale-Grounds Mtce,Pay to Pvte Contract,27/09/2010,5000103370,"18,311.13",WYEVALE GROUNDS MAINTENANCE
Wyevale-Grounds Mtce,Pay to Pvte Contract,29/07/2010,5000093386,"26,704.26",WYEVALE GROUNDS MAINTENANCE
Routine Repairs Other Roads,Highways Minor Works,23/07/2010,5105601861,"1,726.89",WYEVALE GROUNDS MAINTENANCE
School Music Service,Operational Equipmen,17/09/2010,5000101791,965.00,LMS MUSIC SUPPLIES
Public Con - General (was Attendance),Pay to Pvte Contract,10/08/2010,5000095099,750.00,JMC AG LTD
Schools Reorganisation,Ext Design & Superv,16/08/2010,5000096239,"2,350.00",KENT COUNTY COUNCIL
Seaclose Offices,Prop Svs-Planned Mtc,22/09/2010,5000102854,620.22,OTIS INVESTMENTS PLC
Provision Of Meals,Catering Equipment,22/09/2010,5000102719,550.00,NEWITT REFRIGERATION
Provision Of Meals,Catering Equipment,22/09/2010,5000102718,770.00,NEWITT REFRIGERATION
Provision Of Meals,Catering Equipment,22/09/2010,5000102718,850.00,NEWITT REFRIGERATION
Provision Of Meals,Catering Equipment,04/08/2010,5000094182,890.97,NEWITT REFRIGERATION
SSEYCCG - 0-7 PARTNERSHIP PILOT,Catering Purchases,20/07/2010,5000091456,575.32,THE QUAY ARTS TRADING COMPANY LTD
Lynnbottom Landfill Site,Pay to Pvte Contract,30/09/2010,5105617271,"2,852.82",ISLAND WASTE SERVICES LTD
Lynnbottom Leachate Treatment Works,Pay to Pvte Contract,30/09/2010,5105617271,"5,537.83",ISLAND WASTE SERVICES LTD
Public Realm contract gaps,Pay to Pvte Contract,09/08/2010,5105604799,-760.18,ISLAND WASTE SERVICES LTD
Island Waste Recycling Contract,Waste Contractors,12/08/2010,5105605827,"61,036.30",ISLAND WASTE SERVICES LTD
Island Waste Recycling Contract,Waste Contractors,29/09/2010,5105617025,"61,134.68",ISLAND WASTE SERVICES LTD
Island Waste Recycling Contract,Waste Contractors,28/09/2010,5105616790,"61,223.00",ISLAND WASTE SERVICES LTD
Island Waste Refuse Collection Contract,Waste Contractors,12/08/2010,5105605827,"6,781.81",ISLAND WASTE SERVICES LTD
Island Waste Refuse Collection Contract,Waste Contractors,29/09/2010,5105617025,"6,843.43",ISLAND WASTE SERVICES LTD
Island Waste Refuse Collection Contract,Waste Contractors,28/09/2010,5105616790,"6,853.32",ISLAND WASTE SERVICES LTD
Island Waste Refuse Collection Contract,Waste Contractors,29/09/2010,5105617025,"229,939.37",ISLAND WASTE SERVICES LTD
Island Waste Refuse Collection Contract,Waste Contractors,12/08/2010,5105605827,"230,097.17",ISLAND WASTE SERVICES LTD
Island Waste Refuse Collection Contract,Waste Contractors,28/09/2010,5105616790,"230,271.55",ISLAND WASTE SERVICES LTD
Island Waste Refuse Disposal Contract,Waste Contractors,12/08/2010,5105605827,"4,359.74",ISLAND WASTE SERVICES LTD
Island Waste Refuse Disposal Contract,Waste Contractors,29/09/2010,5105617025,"4,562.29",ISLAND WASTE SERVICES LTD
Island Waste Refuse Disposal Contract,Waste Contractors,28/09/2010,5105616790,"5,025.77",ISLAND WASTE SERVICES LTD
Island Waste Refuse Disposal Contract,Waste Contractors,28/09/2010,5105616790,"5,025.77",ISLAND WASTE SERVICES LTD
Island Waste Refuse Disposal Contract,Waste Contractors,29/09/2010,5105617025,"5,474.75",ISLAND WASTE SERVICES LTD
Island Waste Refuse Disposal Contract,Waste Contractors,12/08/2010,5105605827,"5,812.98",ISLAND WASTE SERVICES LTD
Island Waste Refuse Disposal Contract,Waste Contractors,29/09/2010,5105617025,"147,818.17",ISLAND WASTE SERVICES LTD
Island Waste Refuse Disposal Contract,Waste Contractors,28/09/2010,5105616790,"148,031.72",ISLAND WASTE SERVICES LTD
Island Waste Refuse Disposal Contract,Waste Contractors,12/08/2010,5105605827,"175,842.68",ISLAND WASTE SERVICES LTD
LD - Homecare,Chgs from Ind Provs,10/08/2010,5000095238,836.95,HAMPSHIRE AUTISTIC SOCIETY
LD - Homecare,Chgs from Ind Provs,10/08/2010,5000095231,"1,479.19",HAMPSHIRE AUTISTIC SOCIETY
School Music Service,Teaching Materials,06/07/2010,5000088526,"1,428.00",NORMANS
School Music Service,Teaching Materials,06/07/2010,5000088526,"1,526.00",NORMANS
DAT Team - Adult Treatment,Professional Service,25/08/2010,5000097778,"60,390.75",CRANSTOUN DRUG SERVICES
Drug Interventions Programme (DIP),Professional Service,25/08/2010,5000097778,"30,353.25",CRANSTOUN DRUG SERVICES
Drugs / Alcohol,Pay to Pvte Contract,25/08/2010,5000097778,"7,500.00",CRANSTOUN DRUG SERVICES
High Sector Home to School Transport,Transport of Clients,05/07/2010,5000088122,524.40,RYDE TAXIS LTD
SEN Transport,Transport of Clients,15/07/2010,5000090322,506.45,RYDE TAXIS LTD
SEN Transport,Transport of Clients,04/08/2010,5000094194,714.84,RYDE TAXIS LTD
SEN Transport,Transport of Clients,05/07/2010,5000088121,919.08,RYDE TAXIS LTD
Winter Gardens Operating Costs,Operational Equipmen,31/08/2010,5000098607,"1,000.00",DANIELLS HARRISON CHART.SURVEYORS
Schools Reorganisation,Cap Contractor Pmts,13/07/2010,5000089707,"1,500.00",DANIELLS HARRISON CHART.SURVEYORS
Care Matters (PEA),Computer Purch & Ren,18/08/2010,5000096542,"3,099.90",PC WORLD BUSINESS DIRECT
Education Social Workers - LACES,Computer Purch & Ren,24/08/2010,5000097555,"-1,123.36",PC WORLD BUSINESS DIRECT
Education Social Workers - LACES,Computer Purch & Ren,24/08/2010,5000097561,"1,123.40",PC WORLD BUSINESS DIRECT
Library Mgmt & Central Support,Purchase of Books,29/09/2010,1900238329,527.65,ASKEWS LIBRARY SERVICES LTD
Library Mgmt & Central Support,Purchase of Books,29/09/2010,1900238333,583.34,ASKEWS LIBRARY SERVICES LTD
Library Mgmt & Central Support,Purchase of Books,03/08/2010,1900209464,630.82,ASKEWS LIBRARY SERVICES LTD
Library Mgmt & Central Support,Purchase of Books,19/08/2010,1900220345,643.81,ASKEWS LIBRARY SERVICES LTD
Library Mgmt & Central Support,Purchase of Books,01/09/2010,1900222368,670.81,ASKEWS LIBRARY SERVICES LTD
Library Mgmt & Central Support,Purchase of Books,21/07/2010,1900208238,844.20,ASKEWS LIBRARY SERVICES LTD
Library Mgmt & Central Support,Purchase of Books,01/09/2010,1900221729,895.32,ASKEWS LIBRARY SERVICES LTD
Library Mgmt & Central Support,Purchase of Books,21/07/2010,1900203891,900.15,ASKEWS LIBRARY SERVICES LTD
Library Mgmt & Central Support,Purchase of Books,13/09/2010,1900227303,924.53,ASKEWS LIBRARY SERVICES LTD
Library Mgmt & Central Support,Purchase of Books,19/08/2010,1900220349,956.11,ASKEWS LIBRARY SERVICES LTD
Prison Library Service,Purchase of Books,09/08/2010,1900214364,547.32,ASKEWS LIBRARY SERVICES LTD
Prison Library Service,Purchase of Books,19/08/2010,1900220350,673.24,ASKEWS LIBRARY SERVICES LTD
Diversity & Workforce,Train and Conference,06/07/2010,5000088663,600.00,HAMPSHIRE FIRE AND RESCUE SERVICE
Diversity & Workforce,Train and Conference,18/08/2010,5000096667,894.10,HAMPSHIRE FIRE AND RESCUE SERVICE
Diversity & Workforce,Train and Conference,06/07/2010,5000088666,"2,676.00",HAMPSHIRE FIRE AND RESCUE SERVICE
Diversity & Workforce,Train and Conference,06/07/2010,5000088668,"5,106.00",HAMPSHIRE FIRE AND RESCUE SERVICE
Library Mgmt & Central Support,"Ref Collect, Disp &",23/08/2010,5000097470,"-1,913.04",ISLAND WASTE SERVICES
Library Mgmt & Central Support,"Ref Collect, Disp &",22/07/2010,5000091891,561.72,ISLAND WASTE SERVICES
Library Mgmt & Central Support,"Ref Collect, Disp &",29/09/2010,5000103919,561.72,ISLAND WASTE SERVICES
Library Mgmt & Central Support,"Ref Collect, Disp &",02/09/2010,5000099136,"1,685.09",ISLAND WASTE SERVICES
Library Mgmt & Central Support,"Ref Collect, Disp &",23/08/2010,5000097466,"1,913.04",ISLAND WASTE SERVICES
Library Mgmt & Central Support,"Ref Collect, Disp &",07/07/2010,5000088889,"2,246.88",ISLAND WASTE SERVICES
Library Mgmt & Central Support,"Ref Collect, Disp &",15/07/2010,5000090468,"2,451.04",ISLAND WASTE SERVICES
Library Mgmt & Central Support,General Materials,29/07/2010,5000093353,"-9,400.00",ISLAND WASTE SERVICES
Library Mgmt & Central Support,General Materials,28/09/2010,5000103632,"-2,448.00",ISLAND WASTE SERVICES
Library Mgmt & Central Support,General Materials,29/07/2010,5000093375,"-2,256.00",ISLAND WASTE SERVICES
Library Mgmt & Central Support,General Materials,28/09/2010,5000103620,"-2,256.00",ISLAND WASTE SERVICES
Library Mgmt & Central Support,General Materials,29/07/2010,5000093412,"-1,880.00",ISLAND WASTE SERVICES
Library Mgmt & Central Support,General Materials,20/07/2010,5000091298,"2,448.00",ISLAND WASTE SERVICES
Library Mgmt & Central Support,General Materials,28/07/2010,5000092960,"2,448.00",ISLAND WASTE SERVICES
Newport Help Centre,General Materials,13/07/2010,5000089835,765.95,ISLAND WASTE SERVICES
Island Waste Landfill Tax,Pay to Pvte Contract,27/08/2010,5000098300,"22,761.60",ISLAND WASTE SERVICES
Island Waste Landfill Tax,Pay to Pvte Contract,12/08/2010,5000095654,"39,903.36",ISLAND WASTE SERVICES
Island Waste Landfill Tax,Pay to Pvte Contract,09/07/2010,5000089201,"40,496.64",ISLAND WASTE SERVICES
Island Waste Landfill Tax,Pay to Pvte Contract,09/07/2010,5000089202,"40,658.88",ISLAND WASTE SERVICES
Island Waste Landfill Tax,Pay to Pvte Contract,17/09/2010,5000101776,"42,329.76",ISLAND WASTE SERVICES
Island Waste Landfill Tax,Pay to Pvte Contract,27/09/2010,5000103361,"43,258.56",ISLAND WASTE SERVICES
Island Waste Landfill Tax,Pay to Pvte Contract,09/09/2010,5000100508,"43,727.04",ISLAND WASTE SERVICES
Island Waste Landfill Tax,Pay to Pvte Contract,18/08/2010,5000096614,"45,565.44",ISLAND WASTE SERVICES
Island Waste Landfill Tax,Pay to Pvte Contract,23/08/2010,5000097441,"45,844.80",ISLAND WASTE SERVICES
Island Waste Landfill Tax,Pay to Pvte Contract,17/09/2010,5000101777,"47,126.88",ISLAND WASTE SERVICES
Island Waste Landfill Tax,Pay to Pvte Contract,05/08/2010,5000094586,"49,492.80",ISLAND WASTE SERVICES
Island Waste Landfill Tax,Pay to Pvte Contract,01/07/2010,5000087679,"51,155.52",ISLAND WASTE SERVICES
Island Waste Landfill Tax,Pay to Pvte Contract,05/08/2010,5000094585,"52,320.00",ISLAND WASTE SERVICES
Island Waste Landfill Tax,Pay to Pvte Contract,18/08/2010,5000096616,"52,377.60",ISLAND WASTE SERVICES
Island Waste Refuse Collection Contract,Pay to Pvte Contract,10/08/2010,5000095098,"6,040.00",ISLAND WASTE SERVICES
Street Cleansing Contract,Pay to Pvte Contract,22/07/2010,5000091690,"128,571.26",ISLAND WASTE SERVICES
Street Cleansing Contract,Pay to Pvte Contract,10/09/2010,5000100683,"131,324.38",ISLAND WASTE SERVICES
Street Cleansing Contract,Pay to Pvte Contract,21/09/2010,5000102582,"155,001.41",ISLAND WASTE SERVICES
Island Waste Refuse Collection Contract,Waste Contractors,28/09/2010,5000103675,-537.56,ISLAND WASTE SERVICES
Island Waste Refuse Collection Contract,Waste Contractors,13/09/2010,5000100947,537.56,ISLAND WASTE SERVICES
Adelaide Resource Centre,Cons Cleaning Materi,05/07/2010,5000088209,574.38,BETA PAK
Adelaide Resource Centre,Cons Cleaning Materi,14/09/2010,5000101066,752.17,BETA PAK
Gouldings Resource Centre,Cons Cleaning Materi,07/09/2010,5000099799,550.38,BETA PAK
Gouldings Resource Centre,Cons Cleaning Materi,22/07/2010,5000091912,584.94,BETA PAK
Sandown High Devolved Capital,"Pl, Equip & Furn - C",21/09/2010,1900233017,"1,049.93",BETA PAK
Sandown High Devolved Capital,"Pl, Equip & Furn - C",20/09/2010,1900232966,"2,887.50",BETA PAK
Sandown High Devolved Capital,"Pl, Equip & Furn - C",20/09/2010,1900232965,"3,903.34",BETA PAK
Childrens Service Centre,Minor Works,13/07/2010,5000089780,603.21,ADT FIRE AND SECURITY PLC
Strategic Projects,Security of Building,11/08/2010,5105605407,690.95,ADT FIRE AND SECURITY PLC
Youth- West Wight,Security of Building,16/07/2010,5000090755,693.72,ADT FIRE AND SECURITY PLC
The Heights,Maint of Op Equip,12/08/2010,5000095644,542.53,ADT FIRE AND SECURITY PLC
West Wight Middle Devolved Capital,Cap Contractor Pmts,17/09/2010,1900232713,"16,139.39",ADT FIRE AND SECURITY PLC
Education Fair Funding High Schools,Eligible Supp and Sv,12/08/2010,5000095641,508.55,ADT FIRE AND SECURITY PLC
Family Learning Centre  (STeague),General Materials,19/07/2010,5000090788,648.86,OGLANDER ROMAN TRUST
Wroxall Primary Devolved Capital,"Pl, Equip & Furn - C",29/07/2010,1900209166,966.00,INCLUSIVE TECHNOLOGY LTD
Vol Sector Grants - LD,Pay to Vol and Other,30/09/2010,5000104342,924.00,VECTIS SUPPORT GROUP [SG]
ICT Refresh Programme,Comp Software Licenc,19/07/2010,5000090873,741.96,INSIGHT DIRECT (UK) LTD
ICT Refresh Programme,Comp Software Licenc,19/07/2010,5000090873,927.39,INSIGHT DIRECT (UK) LTD
ICT Refresh Programme,Comp Software Licenc,19/07/2010,5000090873,"1,285.92",INSIGHT DIRECT (UK) LTD
ICT Refresh Programme,Comp Software Licenc,19/07/2010,5000090873,"1,676.76",INSIGHT DIRECT (UK) LTD
ICT Refresh Programme,Comp Software Licenc,19/07/2010,5000090873,"1,827.36",INSIGHT DIRECT (UK) LTD
ICT Refresh Programme,Comp Software Licenc,19/07/2010,5000090873,"1,854.78",INSIGHT DIRECT (UK) LTD
ICT Refresh Programme,Comp Software Licenc,19/07/2010,5000090873,"1,930.59",INSIGHT DIRECT (UK) LTD
ICT Refresh Programme,Comp Software Licenc,19/07/2010,5000090873,"2,374.02",INSIGHT DIRECT (UK) LTD
ICT Refresh Programme,Comp Software Licenc,19/07/2010,5000090873,"3,147.72",INSIGHT DIRECT (UK) LTD
ICT Refresh Programme,Comp Software Licenc,19/07/2010,5000090873,"6,918.66",INSIGHT DIRECT (UK) LTD
ICT Refresh Programme,Comp Software Licenc,19/07/2010,5000090873,"9,621.60",INSIGHT DIRECT (UK) LTD
ICT Refresh Programme,Comp Software Licenc,19/07/2010,5000090873,"11,557.32",INSIGHT DIRECT (UK) LTD
ICT Refresh Programme,Comp Software Licenc,23/08/2010,5000097476,"14,174.80",INSIGHT DIRECT (UK) LTD
ICT Refresh Programme,Comp Software Licenc,23/08/2010,5000097476,"27,958.08",INSIGHT DIRECT (UK) LTD
ICT Refresh Programme,Comp Software Licenc,19/07/2010,5000090873,"190,214.64",INSIGHT DIRECT (UK) LTD
Parking Machines /System,ICT H/ware & S/ware,23/08/2010,5000097313,"2,319.53",INSIGHT DIRECT (UK) LTD
Public Con - General (was Attendance),Prop Svs-Planned Mtc,02/08/2010,5000093679,501.30,D A R E S LTD
Public Con - General (was Attendance),Prop Svs-Planned Mtc,20/07/2010,5000091416,761.76,D A R E S LTD
Public Con - General (was Attendance),Prop Svs-Planned Mtc,02/08/2010,5000093687,"2,951.82",D A R E S LTD
Public Con - General (was Attendance),Prop Svs-Planned Mtc,14/09/2010,5000101254,"2,951.82",D A R E S LTD
SWHA Drainage Works,Consultants Fees,15/09/2010,5000101459,"2,940.00",D A R E S LTD
Structural Maintenance Other Roads,Highways Minor Works,01/07/2010,5000087722,"2,396.00",D A R E S LTD
LPSA 2 Night Time Economy,Grants to Ext Bodies,10/09/2010,5000100635,"5,000.00",THE HAMPTON TRUST(HANTS & I W)
LPSA 2 Night Time Economy,Grants to Ext Bodies,27/08/2010,5000098258,"9,870.00",THE HAMPTON TRUST(HANTS & I W)
LPSA 2 Night Time Economy,Grants to Ext Bodies,03/08/2010,5000094108,"9,870.19",THE HAMPTON TRUST(HANTS & I W)
LPSA 2 Night Time Economy,Grants to Ext Bodies,10/09/2010,5000100636,"15,000.00",THE HAMPTON TRUST(HANTS & I W)
LPSA 2 Night Time Economy,Grants to Ext Bodies,10/09/2010,5000100637,"15,000.00",THE HAMPTON TRUST(HANTS & I W)
LPSA 2 Night Time Economy,Grants to Ext Bodies,10/09/2010,5000100638,"15,000.00",THE HAMPTON TRUST(HANTS & I W)
Locality Manager North & East,Pay to Vol and Other,23/08/2010,5105607945,835.00,THE HAMPTON TRUST(HANTS & I W)
Locality Manager South,Pay to Vol and Other,23/08/2010,5105607945,832.50,THE HAMPTON TRUST(HANTS & I W)
Locality Manager West & Central,Pay to Vol and Other,23/08/2010,5105607945,832.50,THE HAMPTON TRUST(HANTS & I W)
ASB Projects,Pay to Pvte Contract,29/07/2010,5000093267,"30,000.00",THE HAMPTON TRUST(HANTS & I W)
SSEYCCG - 0-7 PARTNERSHIP PILOT,Professional Service,22/07/2010,5000091910,600.00,HOMESTART IOW
Highways PFI Project,Consultants Fees,14/09/2010,5000101186,"-38,000.00",WDM LIMITED
Highways PFI Project,Consultants Fees,30/09/2010,5000104177,"1,000.00",WDM LIMITED
Highways PFI Project,Consultants Fees,29/09/2010,5000104078,"2,748.54",WDM LIMITED
Highways PFI Project,Consultants Fees,10/08/2010,5000095215,"5,588.84",WDM LIMITED
Highways PFI Project,Consultants Fees,29/09/2010,5000104073,"21,736.81",WDM LIMITED
Highways PFI Project,Consultants Fees,09/07/2010,5000089361,"38,000.00",WDM LIMITED
Other Highways maintenance,Cap Contractor Pmts,03/08/2010,5000094065,"21,400.00",WDM LIMITED
Hunnyhill Primary Devolved Capital,"Pl, Equip & Furn - C",18/08/2010,1900215978,"1,409.00",DELL COMPUTER CORPORATION LTD
Ryde High Devolved Capital,"Pl, Equip & Furn - C",20/09/2010,1900232940,"4,030.43",DELL COMPUTER CORPORATION LTD
Ryde High Devolved Capital,"Pl, Equip & Furn - C",31/08/2010,1900221601,"7,915.10",DELL COMPUTER CORPORATION LTD
Ryde High Devolved Capital,"Pl, Equip & Furn - C",02/09/2010,1900226245,"8,768.93",DELL COMPUTER CORPORATION LTD
SSEYCCG - CHILDREN INFORMATIO,Advertising & Public,07/09/2010,5000099802,529.10,BRITISH TELECOMMUNICATIONS PLC
Departmental Admin/Support,Mobile Telecoms,31/08/2010,1900221610,623.70,VODAFONE LTD (PAGING)
Independent Sector Training,Train and Conference,05/07/2010,5000088250,504.00,RIVERSIDE VENTURES LTD
Independent Sector Training,Train and Conference,05/07/2010,5000088250,934.21,RIVERSIDE VENTURES LTD
Independent Sector Training,Catering Purchases,05/07/2010,5000088234,934.21,RIVERSIDE VENTURES LTD
Miscellaneous Non-rechargeable,Sundry Office Expens,02/07/2010,5000088003,"-1,302.34",RIVERSIDE VENTURES LTD
Miscellaneous Non-rechargeable,Sundry Office Expens,12/07/2010,5000089532,"-1,302.34",RIVERSIDE VENTURES LTD
Miscellaneous Non-rechargeable,Sundry Office Expens,21/09/2010,5000102379,"-1,234.31",RIVERSIDE VENTURES LTD
Miscellaneous Non-rechargeable,Sundry Office Expens,12/07/2010,5000089528,-880.00,RIVERSIDE VENTURES LTD
Miscellaneous Non-rechargeable,Sundry Office Expens,02/07/2010,5000088003,-560.00,RIVERSIDE VENTURES LTD
Miscellaneous Non-rechargeable,Sundry Office Expens,21/09/2010,5000102379,-555.00,RIVERSIDE VENTURES LTD
Miscellaneous Non-rechargeable,Sundry Office Expens,20/07/2010,5000091165,880.00,RIVERSIDE VENTURES LTD
Miscellaneous Non-rechargeable,Sundry Office Expens,12/07/2010,5000089635,"1,302.34",RIVERSIDE VENTURES LTD
Independent Sector Training,Hire of facilities,05/07/2010,5000088234,504.00,RIVERSIDE VENTURES LTD
2/4/5 Langley Court,Building & Room Rent,20/09/2010,5000102191,"1,500.00",S A PAYNE & CO [RE]
2/4/5 Langley Court,Building & Room Rent,20/09/2010,5000102193,"2,437.50",S A PAYNE & CO [RE]
2/4/5 Langley Court,Building & Room Rent,20/09/2010,5000102189,"7,050.00",S A PAYNE & CO [RE]
"7 High St,Newport",Building & Room Rent,20/09/2010,5000102225,"6,500.00",S A PAYNE & CO [RE]
Research,Professional Service,19/07/2010,5000090921,"1,285.00",ANNE HAHLO RESEARCH & MARKETING LTD
Highways Design Team,Computer Purch & Ren,17/08/2010,5105606862,"2,386.86",CADLINE LTD
Development Control,Computer Maintenance,17/08/2010,5105606862,586.88,CADLINE LTD
Structures,Computer Maintenance,17/08/2010,5105606862,"1,086.88",CADLINE LTD
Highway Maintenance Inspection,Operational Equipmen,17/08/2010,5105606862,586.88,CADLINE LTD
Property Services,Comp Software Licenc,17/08/2010,5105606862,"3,217.50",CADLINE LTD
Targeted School Meals Grant,Pay to Pvte Contract,05/08/2010,5000094406,843.56,PABULUM
Targeted School Meals Grant,Pay to Pvte Contract,24/08/2010,1900220817,"17,962.89",PABULUM
Targeted School Meals Grant,Pay to Pvte Contract,18/08/2010,5000096657,"129,038.00",PABULUM
LA 21,Consultants Fees,30/07/2010,5000093592,850.00,ISLAND 2000 TRUST
Fostering by Other Agencies,Pay to Vol and Other,10/08/2010,5000095331,"3,858.00",FIVE RIVERS CHILD CARE LTD
Fostering by Other Agencies,Pay to Vol and Other,10/08/2010,5000095334,"3,858.00",FIVE RIVERS CHILD CARE LTD
Fostering by Other Agencies,Pay to Vol and Other,10/08/2010,5000095332,"3,904.20",FIVE RIVERS CHILD CARE LTD
Fostering by Other Agencies,Pay to Vol and Other,15/07/2010,5000090337,"3,986.60",FIVE RIVERS CHILD CARE LTD
Fostering by Other Agencies,Pay to Vol and Other,15/07/2010,5000090346,"3,986.60",FIVE RIVERS CHILD CARE LTD
Fostering by Other Agencies,Pay to Vol and Other,15/07/2010,5000090347,"4,034.34",FIVE RIVERS CHILD CARE LTD
Fostering by Other Agencies,Pay to Vol and Other,10/08/2010,5000095338,"6,292.20",FIVE RIVERS CHILD CARE LTD
Fostering by Other Agencies,Pay to Vol and Other,15/07/2010,5000090350,"6,501.94",FIVE RIVERS CHILD CARE LTD
Fostering by Other Agencies,Pay to Vol and Other,10/08/2010,5000095336,"7,026.90",FIVE RIVERS CHILD CARE LTD
Fostering by Other Agencies,Pay to Vol and Other,10/08/2010,5000095339,"7,140.00",FIVE RIVERS CHILD CARE LTD
Fostering by Other Agencies,Pay to Vol and Other,15/07/2010,5000090349,"7,261.13",FIVE RIVERS CHILD CARE LTD
Fostering by Other Agencies,Pay to Vol and Other,15/07/2010,5000090334,"7,378.00",FIVE RIVERS CHILD CARE LTD
Fostering by Other Agencies,Pay to Vol and Other,14/09/2010,5000101018,"7,378.00",FIVE RIVERS CHILD CARE LTD
Departmental Admin/Support,Fixed Telephones,13/08/2010,5000095908,525.34,COLT TECHNOLOGY SERVICES
Departmental Admin/Support,Fixed Telephones,16/07/2010,5000090505,525.42,COLT TECHNOLOGY SERVICES
Technical Support,Maint of Op Equip,13/08/2010,5000095925,554.50,BOC LTD
Technical Support,Maint of Op Equip,13/08/2010,5000095925,554.50,BOC LTD
Technical Support,Maint of Op Equip,13/08/2010,5000095925,554.50,BOC LTD
Technical Support,Maint of Op Equip,23/08/2010,5000097462,832.00,BOC LTD
Beach Safety & Inspection / Beach Awards,Pay to Pvte Contract,20/09/2010,5000102234,770.00,BOC LTD
Technical Support,Operational Equipmen,28/09/2010,5000103655,612.50,JOHN DENNIS COACHBUILDERS LTD
Admissions/Student Finance,Printing Costs,09/09/2010,5000100513,"1,396.00",HOLBROOKS PRINTERS LIMITED
Print Unit,Printing Costs,23/07/2010,5000092039,774.00,HOLBROOKS PRINTERS LIMITED
Community & Family Learning,Marketing Costs,19/08/2010,5000096816,"1,424.00",HOLBROOKS PRINTERS LIMITED
Grounds Maintenance Contingency Non-Del,Grounds Maintenance,23/08/2010,5000097349,"3,280.00",HILLCROFT TURF SUPPLIES
Victoria Recreation Ground,Pay to Pvte Contract,16/07/2010,5000090514,750.00,NEWPORT VICTORIA SPORTS & SOCIAL CB
Administrative Buildings,Cleaning Contracts,13/09/2010,5000100887,"2,724.23",N-VIRO
Administrative Buildings,Cleaning Contracts,30/09/2010,5000104142,"22,847.30",N-VIRO
Administrative Buildings,Cleaning Contracts,30/09/2010,5000104144,"24,689.22",N-VIRO
Cowes T.I.C.,Cleaning Contracts,13/07/2010,5000089894,540.00,N-VIRO
Northwood House Functions,Cleaning Contracts,13/07/2010,5000089897,626.40,N-VIRO
Fostering,Stationery,19/08/2010,5000096809,631.40,BANNER BUSINESS SUPPLIES LTD
Transport Strategy,Stationery,02/09/2010,5000099030,521.84,BANNER BUSINESS SUPPLIES LTD
Library Mgmt & Central Support,Comp S/ware & Cons,02/09/2010,5000099124,503.16,BANNER BUSINESS SUPPLIES LTD
Highways PFI Project,Mobile Telecoms,06/09/2010,1900226514,868.59,ORANGE PERSONAL COMMUNIC SERVICES
Parking Attendants,Mobile Telecoms,01/09/2010,1900221717,930.25,ORANGE PERSONAL COMMUNIC SERVICES
Parking Attendants,Mobile Telecoms,09/08/2010,1900214363,"1,311.33",ORANGE PERSONAL COMMUNIC SERVICES
Support Section,Computer Purch & Ren,29/09/2010,5000104102,"1,604.24",COMPUTACENTER (UK) LTD
ICT Contracts,Computer Maintenance,19/08/2010,5000096873,"5,192.44",COMPUTACENTER (UK) LTD
TIC Agency Income Suspense,Professional Service,09/07/2010,1900202155,"11,790.20",HERITAGE CONCERTS PRODUCTIONS LTD
TIC Agency Income Suspense,Professional Service,06/08/2010,1900214257,"12,940.10",HERITAGE CONCERTS PRODUCTIONS LTD
LPSA2 Target 6 Quality & Flexible Care,Pay to Vol and Other,27/07/2010,5000092671,"6,885.00",AGE CONCERN ISLE OF WIGHT [SP]
LPSA2 Target 6 Quality & Flexible Care,Pay to Vol and Other,30/09/2010,5000104336,"6,885.00",AGE CONCERN ISLE OF WIGHT [SP]
Vol Sector Grants - Older People,Pay to Vol and Other,27/07/2010,5000092630,"1,275.00",AGE CONCERN ISLE OF WIGHT [SP]
Vol Sector Grants - Older People,Pay to Vol and Other,30/09/2010,5000104334,"1,275.00",AGE CONCERN ISLE OF WIGHT [SP]
Vol Sector Grants - Older People,Pay to Vol and Other,28/07/2010,5000092963,"3,825.00",AGE CONCERN ISLE OF WIGHT [SP]
Vol Sector Grants - Older People,Pay to Vol and Other,30/09/2010,5000104335,"3,825.00",AGE CONCERN ISLE OF WIGHT [SP]
Vol Sector Grants - Older People,Pay to Vol and Other,28/07/2010,5000092964,"6,375.00",AGE CONCERN ISLE OF WIGHT [SP]
Vol Sector Grants - Older People,Pay to Vol and Other,30/09/2010,5000104338,"6,375.00",AGE CONCERN ISLE OF WIGHT [SP]
Vol Sector Grants - Older People,Pay to Vol and Other,27/07/2010,5000092679,"10,200.00",AGE CONCERN ISLE OF WIGHT [SP]
Vol Sector Grants - Older People,Pay to Vol and Other,30/09/2010,5000104337,"10,200.00",AGE CONCERN ISLE OF WIGHT [SP]
Enterprise House,Building & Room Rent,29/09/2010,5000104051,"30,625.00",MJH DEVELOPMENTS[RE]
Operations & Fire Resilience,Prop Svs - Bldg mtce,12/07/2010,5000089651,545.00,KABA DOOR SYSTEMS LTD
Operations & Fire Resilience,Prop Svs - Bldg mtce,07/09/2010,5000099721,"1,342.00",KABA DOOR SYSTEMS LTD
Operations & Fire Resilience,Prop Svs-Planned Mtc,16/08/2010,5000096120,740.00,KABA DOOR SYSTEMS LTD
Print Unit,Printing Costs,06/07/2010,1900197423,518.77,CANON (UK) LTD
Print Unit,Printing Costs,06/09/2010,1900226605,"2,676.38",CANON (UK) LTD
Rapid Response Team,Professional Service,20/07/2010,5000091331,670.09,AMAZON WORLD ZOO PARK
TIC Agency Income Suspense,Professional Service,06/08/2010,1900214214,512.66,REDFORD & LEWIS ART & CRAFTS
TIC Agency Income Suspense,Professional Service,10/09/2010,1900227049,648.29,REDFORD & LEWIS ART & CRAFTS
Dinosaur Isle Museum (Sandown Geology),General Materials,24/09/2010,5000103263,850.00,WILD REPUBLIC UK LTD
Ferry Maintenance,Vehicle Maint Costs,17/08/2010,5000096399,"1,807.25",PREMIER SOLUTIONS
Crematorium,Operational Equipmen,19/07/2010,5000091002,974.00,THE COLUMBARIA COMPANY
Crematorium,Prop Svs - Bldg mtce,19/08/2010,5000096922,757.00,TECHNICAL ALARM SYSTEMS LTD
WIGHTBUS Trading Account,Vehicle Leas and Acq,28/07/2010,1900208998,"13,300.00",ALLIANCE & LEICESTER COMM.FIN. PLC
Transformation Costs,Computer Maintenance,27/08/2010,5000098308,"3,884.00",DATA INTEGRATION LTD
Server Farm,ICT H/ware & S/ware,19/07/2010,5000091051,"46,291.00",DATA INTEGRATION LTD
Strategic Projects,ICT H/ware & S/ware,03/08/2010,5000094081,"-4,032.80",DATA INTEGRATION LTD
Strategic Projects,ICT H/ware & S/ware,03/08/2010,5000094081,"-1,020.00",DATA INTEGRATION LTD
Strategic Projects,ICT H/ware & S/ware,31/08/2010,5000098533,700.00,DATA INTEGRATION LTD
Strategic Projects,ICT H/ware & S/ware,23/09/2010,5000103189,866.40,DATA INTEGRATION LTD
Strategic Projects,ICT H/ware & S/ware,03/08/2010,5000094076,"1,020.00",DATA INTEGRATION LTD
Strategic Projects,ICT H/ware & S/ware,06/08/2010,5000094766,"1,020.00",DATA INTEGRATION LTD
Strategic Projects,ICT H/ware & S/ware,10/09/2010,5000100766,"1,700.00",DATA INTEGRATION LTD
Strategic Projects,ICT H/ware & S/ware,12/08/2010,5000095815,"1,796.00",DATA INTEGRATION LTD
Strategic Projects,ICT H/ware & S/ware,03/08/2010,5000094076,"4,032.80",DATA INTEGRATION LTD
Strategic Projects,ICT H/ware & S/ware,06/08/2010,5000094662,"4,032.80",DATA INTEGRATION LTD
Strategic Projects,ICT H/ware & S/ware,31/08/2010,5000098533,"5,500.00",DATA INTEGRATION LTD
Strategic Projects,ICT H/ware & S/ware,12/08/2010,5000095815,"5,850.00",DATA INTEGRATION LTD
Strategic Projects,ICT H/ware & S/ware,10/09/2010,5000100766,"5,950.00",DATA INTEGRATION LTD
Strategic Projects,ICT H/ware & S/ware,03/08/2010,5000094107,"9,169.92",DATA INTEGRATION LTD
Strategic Projects,ICT H/ware & S/ware,10/09/2010,5000100766,"12,822.00",DATA INTEGRATION LTD
Strategic Projects,ICT H/ware & S/ware,29/09/2010,5000104068,"16,047.36",DATA INTEGRATION LTD
Strategic Projects,ICT H/ware & S/ware,27/08/2010,5000098308,"16,490.00",DATA INTEGRATION LTD
Strategic Projects,ICT H/ware & S/ware,27/08/2010,5000098308,"18,808.00",DATA INTEGRATION LTD
Educational Psychology Service,Agency staff,03/08/2010,5000094113,"11,750.00",REDACTED PERSONAL DATA
SEN Transport,Transport of Clients,01/07/2010,5000087610,941.20,JJ'S TAXIS
Heating and Loft insulation,Capital Grants,22/09/2010,1900233061,"1,350.00",GTI GLAZING SYSTEMS
Heating and Loft insulation,Capital Grants,28/09/2010,1900233720,"1,962.25",GTI GLAZING SYSTEMS
Heating and Loft insulation,Capital Grants,16/09/2010,1900232535,"3,452.00",GTI GLAZING SYSTEMS
Heating and Loft insulation,Capital Grants,06/07/2010,1900197396,"4,975.00",GTI GLAZING SYSTEMS
Housing Renewal Assistance,Capital Grants,18/08/2010,1900215207,"2,090.00",GTI GLAZING SYSTEMS
Housing Renewal Assistance,Capital Grants,21/09/2010,1900233035,"2,780.00",GTI GLAZING SYSTEMS
Beach Safety & Inspection / Beach Awards,Operational Equipmen,03/08/2010,5000093960,515.00,2CL COMMUNICATIONS LTD
Ryde High Devolved Capital,"Pl, Equip & Furn - C",02/09/2010,1900226251,"1,941.00",2CL COMMUNICATIONS LTD
Historic Environment Record,Med Fees & Staff Wel,22/09/2010,5000102932,800.00,REDACTED PERSONAL DATA
Fire Capital Projects,Cap Contractor Pmts,18/08/2010,5000096543,"5,760.00",TARI WILLIS ASSOCIATES
Pupils with statements - Non-Maint Schs,Pay to Vol and Other,02/09/2010,5000098992,"41,220.80",THE LODDON SCHOOL
Island Games - Talented & Gifted Prog,Operational Equipmen,16/07/2010,5000090549,"-2,062.80",BIG WIGHT T-SHIRT CO
Island Games - Talented & Gifted Prog,Operational Equipmen,16/07/2010,5000090549,-547.50,BIG WIGHT T-SHIRT CO
Island Games - Talented & Gifted Prog,Operational Equipmen,16/07/2010,5000090552,701.25,BIG WIGHT T-SHIRT CO
Island Games - Talented & Gifted Prog,Operational Equipmen,16/07/2010,5000090552,"2,004.80",BIG WIGHT T-SHIRT CO
World Youth Games,Operational Equipmen,16/07/2010,5000090554,"-1,819.48",BIG WIGHT T-SHIRT CO
World Youth Games,Operational Equipmen,16/07/2010,5000090558,"1,600.36",BIG WIGHT T-SHIRT CO
Financial Management Overheads,Stationery,06/07/2010,5000088517,734.40,PARAGON GROUP UK LTD
Children Centres Capital Schemes,Cap Contractor Pmts,02/09/2010,1900226257,"7,985.00",HALLAM'S BLINDS & SOFT FURNISHINGS
Sandwn Broadlea Primary Devolved Capital,Cap Contractor Pmts,12/08/2010,1900214736,736.50,HALLAM'S BLINDS & SOFT FURNISHINGS
Early Years NEG Payments for 4yr olds,Pay to Vol and Other,24/08/2010,1900220794,"1,011.02",REDACTED PERSONAL DATA
Adult Services-Mgmt,Professional Subs,13/08/2010,5000095880,650.00,CIPFA BUSINESS LTD
Adult Services-Mgmt,Professional Subs,13/08/2010,5000095880,650.00,CIPFA BUSINESS LTD
Adult Services-Mgmt,Professional Subs,13/08/2010,5000095880,850.00,CIPFA BUSINESS LTD
Adult Services-Mgmt,Professional Subs,13/08/2010,5000095880,900.00,CIPFA BUSINESS LTD
ICT Service Support Manager,Office Equipment,24/09/2010,5000103268,658.00,PROBRAND LIMITED
Fire Control,Computer Purch & Ren,13/08/2010,5000095907,949.41,PROBRAND LIMITED
Human Resources,Computer Purch & Ren,29/09/2010,5000104029,"1,545.37",PROBRAND LIMITED
Payment Services,Computer Purch & Ren,22/07/2010,5000091798,999.45,PROBRAND LIMITED
ICT Project,Computer Maintenance,29/07/2010,5105603156,"37,154.00",PROBRAND LIMITED
Identity Management,ICT H/ware & S/ware,26/08/2010,5000097980,"2,806.08",PROBRAND LIMITED
Identity Management,ICT H/ware & S/ware,26/08/2010,5000097980,"12,550.00",PROBRAND LIMITED
Identity Management,ICT H/ware & S/ware,26/08/2010,5000097980,"28,890.00",PROBRAND LIMITED
Identity Management,ICT H/ware & S/ware,07/07/2010,5000088718,"74,502.30",PROBRAND LIMITED
Identity Management,ICT H/ware & S/ware,29/07/2010,5105603156,"115,743.10",PROBRAND LIMITED
Parking Machines /System,ICT H/ware & S/ware,22/09/2010,5000102651,"1,858.40",PROBRAND LIMITED
Parking Machines /System,ICT H/ware & S/ware,22/09/2010,5000102651,"4,656.80",PROBRAND LIMITED
Strategic Projects,ICT H/ware & S/ware,31/08/2010,5000098383,679.33,PROBRAND LIMITED
Cowes Week,Professional Service,29/07/2010,5000093354,"12,000.00",HAMPSHIRE POLICE AUTHORITY
LPSA 2 Night Time Economy,Grants to Ext Bodies,10/09/2010,5000100641,"10,000.00",HAMPSHIRE POLICE AUTHORITY
LPSA 2 Night Time Economy,Grants to Ext Bodies,10/09/2010,5000100640,"12,000.00",HAMPSHIRE POLICE AUTHORITY
LPSA 2 Night Time Economy,Grants to Ext Bodies,17/09/2010,5000101770,"30,000.00",HAMPSHIRE POLICE AUTHORITY
WIGHTBUS Trading Account,Vehicle Maint Costs,09/08/2010,5000095022,669.25,DAWSON RENTALS BUS & COACH LTD
WIGHTBUS Trading Account,Vehicle Hire Externa,08/07/2010,5000089007,"1,188.50",DAWSON RENTALS BUS & COACH LTD
WIGHTBUS Trading Account,Vehicle Hire Externa,08/07/2010,5000089007,"1,188.50",DAWSON RENTALS BUS & COACH LTD
WIGHTBUS Trading Account,Vehicle Hire Externa,06/08/2010,5000094635,"1,188.50",DAWSON RENTALS BUS & COACH LTD
WIGHTBUS Trading Account,Vehicle Hire Externa,06/08/2010,5000094635,"1,188.50",DAWSON RENTALS BUS & COACH LTD
WIGHTBUS Trading Account,Vehicle Hire Externa,08/09/2010,5000100024,"1,188.50",DAWSON RENTALS BUS & COACH LTD
WIGHTBUS Trading Account,Vehicle Hire Externa,08/07/2010,5000089007,"1,259.74",DAWSON RENTALS BUS & COACH LTD
WIGHTBUS Trading Account,Vehicle Hire Externa,08/07/2010,5000089007,"1,259.74",DAWSON RENTALS BUS & COACH LTD
WIGHTBUS Trading Account,Vehicle Hire Externa,08/07/2010,5000089007,"1,259.74",DAWSON RENTALS BUS & COACH LTD
WIGHTBUS Trading Account,Vehicle Hire Externa,08/07/2010,5000089007,"1,259.74",DAWSON RENTALS BUS & COACH LTD
WIGHTBUS Trading Account,Vehicle Hire Externa,06/08/2010,5000094635,"1,259.74",DAWSON RENTALS BUS & COACH LTD
WIGHTBUS Trading Account,Vehicle Hire Externa,06/08/2010,5000094635,"1,259.74",DAWSON RENTALS BUS & COACH LTD
WIGHTBUS Trading Account,Vehicle Hire Externa,06/08/2010,5000094635,"1,259.74",DAWSON RENTALS BUS & COACH LTD
WIGHTBUS Trading Account,Vehicle Hire Externa,06/08/2010,5000094635,"1,259.74",DAWSON RENTALS BUS & COACH LTD
WIGHTBUS Trading Account,Vehicle Hire Externa,13/08/2010,5000095896,"1,259.74",DAWSON RENTALS BUS & COACH LTD
WIGHTBUS Trading Account,Vehicle Hire Externa,08/09/2010,5000100024,"1,259.74",DAWSON RENTALS BUS & COACH LTD
WIGHTBUS Trading Account,Vehicle Hire Externa,08/09/2010,5000100024,"1,259.74",DAWSON RENTALS BUS & COACH LTD
WIGHTBUS Trading Account,Vehicle Hire Externa,08/09/2010,5000100024,"1,259.74",DAWSON RENTALS BUS & COACH LTD
WIGHTBUS Trading Account,Vehicle Hire Externa,08/09/2010,5000100024,"1,259.74",DAWSON RENTALS BUS & COACH LTD
WIGHTBUS Trading Account,Vehicle Hire Externa,08/09/2010,5000100024,"1,259.74",DAWSON RENTALS BUS & COACH LTD
WIGHTBUS Trading Account,Vehicle Hire Externa,08/07/2010,5000089007,"1,859.77",DAWSON RENTALS BUS & COACH LTD
WIGHTBUS Trading Account,Vehicle Hire Externa,06/08/2010,5000094635,"1,859.77",DAWSON RENTALS BUS & COACH LTD
WIGHTBUS Trading Account,Vehicle Hire Externa,08/09/2010,5000100024,"1,859.77",DAWSON RENTALS BUS & COACH LTD
WIGHTBUS Trading Account,Vehicle Hire Externa,08/07/2010,5000089007,"1,995.46",DAWSON RENTALS BUS & COACH LTD
WIGHTBUS Trading Account,Vehicle Hire Externa,06/08/2010,5000094635,"1,995.46",DAWSON RENTALS BUS & COACH LTD
WIGHTBUS Trading Account,Vehicle Hire Externa,08/09/2010,5000100024,"1,995.46",DAWSON RENTALS BUS & COACH LTD
Electoral Registration Store,Professional Service,13/09/2010,5000100936,721.00,GHS-RECYCLING LTD
Leisure Management & Admin,Pay to Pvte Contract,25/08/2010,5000097954,875.00,GHS-RECYCLING LTD
Miscellaneous Non-rechargeable,Pay to Pvte Contract,25/08/2010,5000097909,647.50,GHS-RECYCLING LTD
Carnival Learning Centre (Westridge),Pay to Pvte Contract,27/07/2010,5000092824,"1,119.38",ISLAND MARQUEES LTD
Diversity & Workforce,Train and Conference,21/07/2010,5000091517,"1,800.00",HOSPITALITY TRAINING PARTNERSHIP IW
Training - Operational Support,Train and Conference,16/08/2010,5000096247,900.00,HOSPITALITY TRAINING PARTNERSHIP IW
Post 16 Transport,Grants to Ext Bodies,16/09/2010,5000101721,"3,030.72",HOSPITALITY TRAINING PARTNERSHIP IW
Integrated Community Equipment Service,Operational Equipmen,27/07/2010,5000092563,565.87,PATTERSON MEDICAL LTD
Integrated Community Equipment Service,Operational Equipmen,05/07/2010,5000088385,761.25,PATTERSON MEDICAL LTD
Integrated Community Equipment Service,Courier Costs,07/07/2010,5000088804,600.00,LEE ATKINS TRANSPORT
Integrated Community Equipment Service,Courier Costs,22/09/2010,5000102892,650.00,LEE ATKINS TRANSPORT
Integrated Community Equipment Service,Courier Costs,06/09/2010,5000099518,"1,400.00",LEE ATKINS TRANSPORT
SSEYCCG - CHILDREN CENTRES (C,Pay to Pvte Contract,15/07/2010,5000090294,"42,283.25",SPURGEON'S CHILD CARE
SSEYCCG - CHILDREN CENTRES (C,Pay to Pvte Contract,15/07/2010,5000090321,"49,476.50",SPURGEON'S CHILD CARE
Participatory budgeting,Hire of facilities,30/09/2010,5000104220,"1,256.60",WEST WIGHT SPORTS CENTRE TRUST LTD
Aiming High for Disabled Children,Grants to Ext Bodies,02/08/2010,1900209362,"10,000.00",WEST WIGHT SPORTS CENTRE TRUST LTD
Provision Of Meals,Catering Equipment,31/08/2010,5000098417,770.00,CATER WIGHT
Provision Of Meals,Catering Equipment,03/09/2010,5000099325,"1,395.00",CATER WIGHT
Provision Of Meals,Catering Equipment,06/09/2010,5000099445,"1,495.00",CATER WIGHT
Provision Of Meals,Catering Equipment,31/08/2010,5000098422,"1,550.00",CATER WIGHT
Provision Of Meals,Catering Equipment,10/09/2010,5000100621,"1,820.00",CATER WIGHT
Provision Of Meals,Catering Equipment,06/09/2010,5000099452,"2,050.00",CATER WIGHT
Provision Of Meals,Catering Equipment,02/09/2010,5000098986,"3,260.00",CATER WIGHT
Nodehill Middle Devolved Capital,"Pl, Equip & Furn - C",21/09/2010,1900233021,"18,000.20",CATER WIGHT
Support Section,Comp S/ware & Cons,06/07/2010,5000088584,550.00,METRO COMPUTER SUPPLIES
Support Section,Comp S/ware & Cons,06/07/2010,5000088584,"1,360.00",METRO COMPUTER SUPPLIES
Business Information Team,Professional Service,05/08/2010,5000094462,"6,444.77",EXPERIAN LTD
Council Tax,Professional Service,17/08/2010,5000096380,"-3,300.00",EXPERIAN LTD
Council Tax,Professional Service,13/08/2010,5000095944,"3,300.00",EXPERIAN LTD
Council Tax,Professional Service,20/09/2010,5105614993,"3,300.00",EXPERIAN LTD
Coast Protection,Pay to Pvte Contract,23/08/2010,5000097288,"2,471.69",HASKONING UK LIMITED
Coastal Capital Schenes,Cap Contractor Pmts,23/08/2010,5000097292,624.00,HASKONING UK LIMITED
Coastal Capital Schenes,Cap Contractor Pmts,22/09/2010,5000102927,"2,462.09",HASKONING UK LIMITED
Coastal Capital Schenes,Cap Contractor Pmts,23/08/2010,5000097294,"7,197.99",HASKONING UK LIMITED
Coastal Capital Schenes,Cap Contractor Pmts,23/08/2010,5000097289,"7,610.71",HASKONING UK LIMITED
Coastal Capital Schenes,Cap Contractor Pmts,04/08/2010,5000094243,"7,749.52",HASKONING UK LIMITED
Archives,Maint of Op Equip,02/08/2010,5000093748,558.00,KODAK LIMITED
Traffic Management,Train and Conference,09/07/2010,5000089321,550.00,TMS CONSULTANCY
Leisure Management & Admin,Professional Subs,27/07/2010,1900208717,"1,055.00",APSE
Medina Leisure Centre,Pay to Pvte Contract,28/09/2010,5000103802,735.00,GRIST ELECTRONICS LTD
Legal Services Section,Professional Subs,01/07/2010,5000087781,"1,500.00",ASSESSMENT NORTH EAST LIMITED
SSEYCCG - East Cowes Children Centre,Gen Educ Materials,03/08/2010,5000093952,-699.00,TTS GROUP LTD
Hunnyhill Primary Devolved Capital,"Pl, Equip & Furn - C",21/09/2010,1900233033,"2,299.20",TTS GROUP LTD
Fostering by Other Agencies,Pay to Vol and Other,10/08/2010,5000095357,"-24,168.20",FOSTER CARE ASSOCIATES LTD
Fostering by Other Agencies,Pay to Vol and Other,16/08/2010,5000096081,"-3,964.20",FOSTER CARE ASSOCIATES LTD
Fostering by Other Agencies,Pay to Vol and Other,06/09/2010,5000099496,"-3,964.20",FOSTER CARE ASSOCIATES LTD
Fostering by Other Agencies,Pay to Vol and Other,16/08/2010,5000096059,"-2,774.94",FOSTER CARE ASSOCIATES LTD
Fostering by Other Agencies,Pay to Vol and Other,06/09/2010,5000099434,-924.98,FOSTER CARE ASSOCIATES LTD
Fostering by Other Agencies,Pay to Vol and Other,16/09/2010,5000101627,579.00,FOSTER CARE ASSOCIATES LTD
Fostering by Other Agencies,Pay to Vol and Other,19/07/2010,5000090795,792.84,FOSTER CARE ASSOCIATES LTD
Fostering by Other Agencies,Pay to Vol and Other,16/09/2010,5000101622,805.38,FOSTER CARE ASSOCIATES LTD
Fostering by Other Agencies,Pay to Vol and Other,16/09/2010,5000101633,"2,115.00",FOSTER CARE ASSOCIATES LTD
Fostering by Other Agencies,Pay to Vol and Other,16/09/2010,5000101634,"2,185.50",FOSTER CARE ASSOCIATES LTD
Fostering by Other Agencies,Pay to Vol and Other,16/09/2010,5000101628,"2,895.00",FOSTER CARE ASSOCIATES LTD
Fostering by Other Agencies,Pay to Vol and Other,16/09/2010,5000101630,"2,991.50",FOSTER CARE ASSOCIATES LTD
Fostering by Other Agencies,Pay to Vol and Other,16/07/2010,5000090667,"3,964.20",FOSTER CARE ASSOCIATES LTD
Fostering by Other Agencies,Pay to Vol and Other,03/08/2010,5000093993,"3,964.20",FOSTER CARE ASSOCIATES LTD
Fostering by Other Agencies,Pay to Vol and Other,03/08/2010,5000093994,"3,964.20",FOSTER CARE ASSOCIATES LTD
Fostering by Other Agencies,Pay to Vol and Other,03/08/2010,5000093996,"3,964.20",FOSTER CARE ASSOCIATES LTD
Fostering by Other Agencies,Pay to Vol and Other,03/08/2010,5000093997,"3,964.20",FOSTER CARE ASSOCIATES LTD
Fostering by Other Agencies,Pay to Vol and Other,03/08/2010,5000093999,"3,964.20",FOSTER CARE ASSOCIATES LTD
Fostering by Other Agencies,Pay to Vol and Other,03/08/2010,5000094003,"3,964.20",FOSTER CARE ASSOCIATES LTD
Fostering by Other Agencies,Pay to Vol and Other,03/08/2010,5000094006,"3,964.20",FOSTER CARE ASSOCIATES LTD
Fostering by Other Agencies,Pay to Vol and Other,10/08/2010,5000095345,"3,964.20",FOSTER CARE ASSOCIATES LTD
Fostering by Other Agencies,Pay to Vol and Other,16/08/2010,5000096058,"3,964.20",FOSTER CARE ASSOCIATES LTD
Fostering by Other Agencies,Pay to Vol and Other,25/08/2010,5000097771,"3,964.20",FOSTER CARE ASSOCIATES LTD
Fostering by Other Agencies,Pay to Vol and Other,08/09/2010,5000100015,"3,964.20",FOSTER CARE ASSOCIATES LTD
Fostering by Other Agencies,Pay to Vol and Other,08/09/2010,5000100114,"3,964.20",FOSTER CARE ASSOCIATES LTD
Fostering by Other Agencies,Pay to Vol and Other,16/09/2010,5000101623,"4,026.90",FOSTER CARE ASSOCIATES LTD
Fostering by Other Agencies,Pay to Vol and Other,02/07/2010,5000088061,"4,093.24",FOSTER CARE ASSOCIATES LTD
Fostering by Other Agencies,Pay to Vol and Other,05/07/2010,5000088222,"4,096.34",FOSTER CARE ASSOCIATES LTD
Fostering by Other Agencies,Pay to Vol and Other,05/07/2010,5000088224,"4,096.34",FOSTER CARE ASSOCIATES LTD
Fostering by Other Agencies,Pay to Vol and Other,05/07/2010,5000088227,"4,096.34",FOSTER CARE ASSOCIATES LTD
Fostering by Other Agencies,Pay to Vol and Other,05/07/2010,5000088228,"4,096.34",FOSTER CARE ASSOCIATES LTD
Fostering by Other Agencies,Pay to Vol and Other,05/07/2010,5000088230,"4,096.34",FOSTER CARE ASSOCIATES LTD
Fostering by Other Agencies,Pay to Vol and Other,05/07/2010,5000088233,"4,096.34",FOSTER CARE ASSOCIATES LTD
Fostering by Other Agencies,Pay to Vol and Other,05/07/2010,5000088235,"4,096.34",FOSTER CARE ASSOCIATES LTD
Fostering by Other Agencies,Pay to Vol and Other,05/07/2010,5000088239,"4,096.34",FOSTER CARE ASSOCIATES LTD
Fostering by Other Agencies,Pay to Vol and Other,16/07/2010,5000090668,"4,096.34",FOSTER CARE ASSOCIATES LTD
Fostering by Other Agencies,Pay to Vol and Other,16/07/2010,5000090670,"4,096.34",FOSTER CARE ASSOCIATES LTD
Fostering by Other Agencies,Pay to Vol and Other,06/09/2010,5000099413,"4,096.34",FOSTER CARE ASSOCIATES LTD
Fostering by Other Agencies,Pay to Vol and Other,06/09/2010,5000099415,"4,096.34",FOSTER CARE ASSOCIATES LTD
Fostering by Other Agencies,Pay to Vol and Other,06/09/2010,5000099417,"4,096.34",FOSTER CARE ASSOCIATES LTD
Fostering by Other Agencies,Pay to Vol and Other,06/09/2010,5000099418,"4,096.34",FOSTER CARE ASSOCIATES LTD
Fostering by Other Agencies,Pay to Vol and Other,06/09/2010,5000099419,"4,096.34",FOSTER CARE ASSOCIATES LTD
Fostering by Other Agencies,Pay to Vol and Other,06/09/2010,5000099421,"4,096.34",FOSTER CARE ASSOCIATES LTD
Fostering by Other Agencies,Pay to Vol and Other,06/09/2010,5000099424,"4,096.34",FOSTER CARE ASSOCIATES LTD
Fostering by Other Agencies,Pay to Vol and Other,06/09/2010,5000099432,"4,096.34",FOSTER CARE ASSOCIATES LTD
Fostering by Other Agencies,Pay to Vol and Other,16/09/2010,5000101625,"4,161.13",FOSTER CARE ASSOCIATES LTD
Fostering by Other Agencies,Pay to Vol and Other,03/08/2010,5000094007,"7,928.40",FOSTER CARE ASSOCIATES LTD
Fostering by Other Agencies,Pay to Vol and Other,05/07/2010,5000088238,"8,192.68",FOSTER CARE ASSOCIATES LTD
Fostering by Other Agencies,Pay to Vol and Other,06/09/2010,5000099425,"8,192.68",FOSTER CARE ASSOCIATES LTD
Fostering by Other Agencies,Pay to Vol and Other,16/08/2010,5000096077,"24,168.20",FOSTER CARE ASSOCIATES LTD
Fostering - LAC 0-16,Regular Respite Care,23/07/2010,5000092161,939.68,FOSTER CARE ASSOCIATES LTD
Medina Leisure Centre,Pay to Pvte Contract,03/09/2010,5105611505,"1,331.76",BUNZL VENDING SERVICES LIMITED
The Heights,Pay to Pvte Contract,03/09/2010,5105611505,663.17,BUNZL VENDING SERVICES LIMITED
Waterside pool,Pay to Pvte Contract,03/09/2010,5105611505,711.89,BUNZL VENDING SERVICES LIMITED
7727 HW57 HCZ Renault Master Minibus,Vehicle Maint Costs,17/08/2010,5000096400,678.09,ISLAND COACHWORKS
7777 - HW52 FKE - Renault New Master,Vehicle Maint Costs,01/09/2010,5000098877,771.46,ISLAND COACHWORKS
7782 HN52 MRU LDV Convoy 17 Seat,Vehicle Maint Costs,19/08/2010,5000096866,858.05,ISLAND COACHWORKS
Clatterford Pupil Referral Unit (PRU),Vehicle Maint Costs,22/09/2010,5000102950,651.69,ISLAND COACHWORKS
Rights of Way Operations,Vehicle Maint Costs,08/07/2010,5000089135,800.00,ISLAND COACHWORKS
Rights of Way Operations,Vehicle Maint Costs,03/08/2010,5000094035,"1,954.30",ISLAND COACHWORKS
WIGHTBUS Trading Account,Vehicle Maint Costs,09/09/2010,5000100496,504.00,ISLAND COACHWORKS
WIGHTBUS Trading Account,Vehicle Maint Costs,19/07/2010,5000091022,"2,004.72",ISLAND COACHWORKS
Youth Mini-bus HN57BYJ (fleet no 6221),Vehicle Maint Costs,09/09/2010,5000100496,"1,107.49",ISLAND COACHWORKS
Youth Mini-bus HN57BYJ (fleet no 6221),Vehicle Maint Costs,09/09/2010,5000100496,"1,279.05",ISLAND COACHWORKS
WW Landscape Partnership,Professional Service,10/09/2010,5000100726,-748.94,NATIONAL TRUST
WW Landscape Partnership,Professional Service,25/08/2010,5000097946,748.94,NATIONAL TRUST
WW Landscape Partnership,Professional Service,16/09/2010,5000101656,880.00,NATIONAL TRUST
WW Landscape Partnership,Pay to Pvte Contract,01/09/2010,5105610622,"1,959.80",NATIONAL TRUST
WW Landscape Partnership,Pay to Pvte Contract,01/09/2010,5105610622,"2,140.20",NATIONAL TRUST
WW Landscape Partnership,Pay to Pvte Contract,20/08/2010,5000097026,"4,255.32",NATIONAL TRUST
WW Landscape Partnership,Pay to Pvte Contract,20/08/2010,5000097079,"8,673.00",NATIONAL TRUST
ICT Contracts,Computer Maintenance,28/07/2010,5000093115,"2,073.35",JBASE INTERNATIONAL LTD
Business Systems Improvement Project,Consultants Fees,18/08/2010,5000096565,650.00,CAPITA BUSINESS SERVICES LTD
Business Systems Improvement Project,Consultants Fees,18/08/2010,5000096565,"3,250.00",CAPITA BUSINESS SERVICES LTD
SSEYCCG - CHILDREN CENTRES (C,Pay to Pvte Contract,28/09/2010,5000103895,"13,000.00",CAPITA BUSINESS SERVICES LTD
Ventnor Botanic Garden,General Materials,08/09/2010,5000099970,640.00,TCE LTD
EF - Day Care - OP East,Chgs from Ind Provs,02/08/2010,5000093853,850.00,EXTRACTA CLEANING
Adelaide Resource Centre,Fixed Telephones,26/07/2010,5000092461,629.30,BT CONTRACT RENTALS LTD
Gouldings Resource Centre,Fixed Telephones,18/08/2010,5000096683,743.18,BT CONTRACT RENTALS LTD
Carers Grant,Pay to Vol and Other,14/09/2010,5000101074,"5,000.00",CARERS NATIONAL ASSOC (IW) [SG]
HLF Ryde Cemetery,Train and Conference,23/08/2010,5000097436,531.00,WIGHT STONEMASONRY LTD
HLF Ryde Cemetery,Train and Conference,23/08/2010,5000097429,"1,275.00",WIGHT STONEMASONRY LTD
HLF Ryde Cemetery,Train and Conference,03/09/2010,5000099284,"1,380.00",WIGHT STONEMASONRY LTD
Ryde Cemetery HLF Project,Cap Contractor Pmts,23/08/2010,5000097430,"9,500.00",WIGHT STONEMASONRY LTD
"Queensgate Prim, East Cowes, New 1/9/10",Sch ICT Learn Resour,16/07/2010,5000090645,564.00,DATASWIFT NETWORK SERVICES LIMITED
Cowes High Devolved Capital,"Pl, Equip & Furn - C",31/08/2010,1900221596,"2,282.50",DATASWIFT NETWORK SERVICES LIMITED
Hunnyhill Primary Devolved Capital,"Pl, Equip & Furn - C",13/08/2010,1900215030,518.00,DATASWIFT NETWORK SERVICES LIMITED
Ryde Dover Park Primary Devolved Capital,"Pl, Equip & Furn - C",21/07/2010,1900203887,"1,420.00",DATASWIFT NETWORK SERVICES LIMITED
Sandham Middle Devolved Capital,"Pl, Equip & Furn - C",13/08/2010,1900215033,627.20,DATASWIFT NETWORK SERVICES LIMITED
Sandown Primary Devolved Capital,"Pl, Equip & Furn - C",21/07/2010,1900208229,"12,265.90",DATASWIFT NETWORK SERVICES LIMITED
Thompson House Tuition Centre,"Pl, Equip & Furn - C",14/09/2010,5000101083,"6,712.00",DATASWIFT NETWORK SERVICES LIMITED
Tuition Centre - 63 Clatterford Rd,"Pl, Equip & Furn - C",21/07/2010,1900208228,"1,486.00",DATASWIFT NETWORK SERVICES LIMITED
Wootton Primary Devolved Capital,"Pl, Equip & Furn - C",21/07/2010,1900208230,"8,538.17",DATASWIFT NETWORK SERVICES LIMITED
School Reorganisation Consultation Costs,ICT H/ware & S/ware,06/09/2010,5000099503,830.00,DATASWIFT NETWORK SERVICES LIMITED
School Reorganisation Consultation Costs,ICT H/ware & S/ware,06/09/2010,5000099503,830.00,DATASWIFT NETWORK SERVICES LIMITED
School Reorganisation Consultation Costs,ICT H/ware & S/ware,06/09/2010,5000099503,830.00,DATASWIFT NETWORK SERVICES LIMITED
School Reorganisation Consultation Costs,ICT H/ware & S/ware,06/09/2010,5000099503,830.00,DATASWIFT NETWORK SERVICES LIMITED
School Reorganisation Consultation Costs,ICT H/ware & S/ware,06/09/2010,5000099503,"1,220.00",DATASWIFT NETWORK SERVICES LIMITED
Business Support Team,Interview & recruit,16/09/2010,5105614463,"1,543.43",CRIMINAL RECORDS BUREAU
Fostering,Interview & recruit,06/07/2010,5105697914,576.29,CRIMINAL RECORDS BUREAU
Human Resources,Interview & recruit,06/07/2010,5105697914,754.74,CRIMINAL RECORDS BUREAU
Human Resources,Interview & recruit,16/09/2010,5105614459,"1,849.85",CRIMINAL RECORDS BUREAU
Licensing Services,Interview & recruit,16/09/2010,5105614459,540.50,CRIMINAL RECORDS BUREAU
Licensing Services,Interview & recruit,06/07/2010,5105697914,784.94,CRIMINAL RECORDS BUREAU
Library Mgmt & Central Support,Purchase of Books,21/07/2010,1900203144,512.80,W F HOWES LTD
Cowes JS Whites SSC,Building & Room Rent,16/09/2010,5000101604,613.80,REDACTED PERSONAL DATA
Cowes JS Whites SSC,Building & Room Rent,23/09/2010,5000103068,"7,735.09",REDACTED PERSONAL DATA
Cowes JS Whites SSC,Premises Insurance,29/09/2010,5000103997,"2,406.04",REDACTED PERSONAL DATA
Business Information Team,Professional Service,30/09/2010,5000104179,600.00,GREATER LONDON AUTHORITY
Integrated Community Equipment Service,General Materials,24/09/2010,5000103241,506.00,AKW MEDI-CARE LTD
"County Hall,Newport",Prop Svs - Bldg mtce,08/09/2010,5000100171,568.00,MULTILINK ACCESS CONTROL SYSTEMS
Integrated Community Equipment Service,General Materials,28/07/2010,5000093220,544.60,NEWPORT STEEL & FABRICATION
Litigation Costs,Legal Fees - Other P,05/07/2010,5000088247,"-1,750.00",REDACTED PERSONAL DATA
Litigation Costs,Legal Fees - Other P,15/07/2010,5000090395,925.00,REDACTED PERSONAL DATA
Litigation Costs,Legal Fees - Other P,01/07/2010,5000087837,"1,750.00",REDACTED PERSONAL DATA
Litigation Costs,Legal Fees - Other P,06/07/2010,5000088646,"1,750.00",REDACTED PERSONAL DATA
Playbuilder Capital Schemes,Capital Grants,21/09/2010,1900233034,"25,000.00",BRADING TOWN COUNCIL
Equipment Purchases - County Youth Clubs,Publications,20/07/2010,5000091385,"1,924.95",THE PERFORMING RIGHT SOCIETY
Medina Theatre,Licences,27/07/2010,5000092792,"1,102.32",THE PERFORMING RIGHT SOCIETY
Outside Promotions,Pay to Pvte Contract,20/07/2010,1900203053,"3,280.00",IW SYMPHONY ORCHESTRA
Agency Placements,Pay to Vol and Other,24/08/2010,5000097541,"-2,628.01",THE MILLERS'HOMES FOR CHILDREN LTD
Agency Placements,Pay to Vol and Other,24/08/2010,5000097544,"-2,628.01",THE MILLERS'HOMES FOR CHILDREN LTD
Agency Placements,Pay to Vol and Other,26/07/2010,5000092340,"11,262.90",THE MILLERS'HOMES FOR CHILDREN LTD
Agency Placements,Pay to Vol and Other,01/07/2010,5000087618,"11,638.33",THE MILLERS'HOMES FOR CHILDREN LTD
Agency Placements,Pay to Vol and Other,01/07/2010,5000087622,"11,638.33",THE MILLERS'HOMES FOR CHILDREN LTD
Agency Placements,Pay to Vol and Other,02/09/2010,5000098984,"11,638.33",THE MILLERS'HOMES FOR CHILDREN LTD
Agency Placements,Pay to Vol and Other,14/09/2010,5000101023,"11,638.33",THE MILLERS'HOMES FOR CHILDREN LTD
Homelessness Prevention,Accom Csts Serv Usrs,01/09/2010,5000098684,"1,140.00",DALTON PROPERTY LTD
"Options,Prevention & Register Team",Pay to Pvte Contract,15/09/2010,5000101295,"2,500.00",IW LAW CENTRE LTD
"Options,Prevention & Register Team",Pay to Pvte Contract,15/09/2010,5000101296,"15,000.00",IW LAW CENTRE LTD
Safety Camera Partnership,Pay to Pvte Contract,31/08/2010,5000098423,"1,900.00",TRUVELO (UK) LTD
One School Pathfinder,Ext Design & Superv,26/08/2010,5000098076,600.00,MAYER BROWN LTD
One School Pathfinder,Ext Design & Superv,29/09/2010,5000103912,"2,018.66",MAYER BROWN LTD
One School Pathfinder,Ext Design & Superv,20/07/2010,5000091287,"7,981.34",MAYER BROWN LTD
Schools Reorganisation,Ext Design & Superv,20/07/2010,5000091287,806.75,MAYER BROWN LTD
Schools Reorganisation,Ext Design & Superv,20/07/2010,5000091287,"1,500.00",MAYER BROWN LTD
Bus Infrastructure,Cap Contractor Pmts,10/09/2010,5105612930,700.00,MAYER BROWN LTD
Bus Infrastructure,Cap Contractor Pmts,10/09/2010,5105612930,750.00,MAYER BROWN LTD
Bus Infrastructure,Cap Contractor Pmts,25/08/2010,5000097803,"1,400.00",MAYER BROWN LTD
Bus Infrastructure,Cap Contractor Pmts,10/09/2010,5105612930,"2,150.00",MAYER BROWN LTD
Bus Infrastructure,Cap Contractor Pmts,10/09/2010,5105612930,"2,950.00",MAYER BROWN LTD
Bus Infrastructure,Cap Contractor Pmts,10/09/2010,5105612930,"3,950.00",MAYER BROWN LTD
Ryde THI,Cap Contractor Pmts,25/08/2010,5000097803,600.00,MAYER BROWN LTD
Safety Schemes,Cap Contractor Pmts,10/09/2010,5105612930,950.00,MAYER BROWN LTD
Safety Schemes,Cap Contractor Pmts,10/09/2010,5105612930,"1,350.00",MAYER BROWN LTD
Safety Schemes,Cap Contractor Pmts,10/09/2010,5105612930,"1,750.00",MAYER BROWN LTD
One Island Magazine,Printing Costs,07/09/2010,5000099809,"6,021.46",BELMONT PRESS
Open space lettings,Prop Svs - Bldg mtce,14/07/2010,5000090141,"2,345.34",ERMC LTD
Coroner,Post Mortem Fees,12/07/2010,5000089511,595.90,REDACTED PERSONAL DATA
Property Services,Professional Service,31/08/2010,5000098604,"1,260.00",PRINCIPAL SURVEYORS LTD
Rating/Property Review Savings 2008+,Pay to Pvte Contract,02/09/2010,5000099103,828.26,PRINCIPAL SURVEYORS LTD
Educational Psychology Service,Agency staff,02/07/2010,5000087896,"2,000.00",REDACTED PERSONAL DATA
Educational Psychology Service,Agency staff,16/08/2010,5000096064,"2,750.00",REDACTED PERSONAL DATA
Pre-school Special Educational Needs,Agency staff,01/07/2010,5000087605,"2,000.00",REDACTED PERSONAL DATA
Targeted Mental Health in Schools,Professional Service,01/07/2010,5000087601,"4,000.00",REDACTED PERSONAL DATA
SEN Inter-Authority Recoupment,Pay to Other LAs,01/09/2010,5000098895,"1,530.00",REDACTED PERSONAL DATA
Library Mgmt & Central Support,Marketing Costs,28/09/2010,5000103684,"3,087.48",READ - THE READING AGENCY LTD
Independent Sector Training,Train and Conference,26/07/2010,5000092330,850.00,MAKING CONNECTIONS (IW) LTD
Mental Capacity Act Grant,Train and Conference,28/09/2010,5000103614,-765.00,MAKING CONNECTIONS (IW) LTD
Mental Capacity Act Grant,Train and Conference,02/08/2010,5000093879,765.00,MAKING CONNECTIONS (IW) LTD
Mental Capacity Act Grant,Train and Conference,21/09/2010,5000102365,765.00,MAKING CONNECTIONS (IW) LTD
Mental Capacity Act Grant,Train and Conference,27/09/2010,5000103484,765.00,MAKING CONNECTIONS (IW) LTD
Training - Safeguarding Adults,Train and Conference,03/08/2010,5000094019,"-6,650.00",MAKING CONNECTIONS (IW) LTD
Training - Safeguarding Adults,Train and Conference,10/08/2010,5000095324,850.00,MAKING CONNECTIONS (IW) LTD
Training - Safeguarding Adults,Train and Conference,05/07/2010,5000088242,"6,650.00",MAKING CONNECTIONS (IW) LTD
Administration and Inspection Schemes,Vehicle Leas and Acq,04/08/2010,5000094297,"43,995.00",PARK RESORTS LIMITED
Ventnor Haven - General,Pay to Pvte Contract,06/08/2010,5000094652,"2,100.00",CHEETAH MARINE LLP
Ventnor Haven - General,Pay to Pvte Contract,13/09/2010,5000100797,"3,519.00",CHEETAH MARINE LLP
Ventnor Haven - General,Pay to Pvte Contract,12/07/2010,5000089611,"7,241.06",CHEETAH MARINE LLP
Ventnor Haven - General,Pay to Pvte Contract,06/08/2010,5000094655,"7,421.56",CHEETAH MARINE LLP
Ventnor Haven - General,Pay to Pvte Contract,09/09/2010,5000100522,"7,421.56",CHEETAH MARINE LLP
Coastal Capital Schenes,Cap Contractor Pmts,24/08/2010,5000097598,"2,208.25",CHEETAH MARINE LLP
Cemeteries Administration,Grounds Maintenance,29/09/2010,5000104105,"1,400.00",NIGEL EARLEY SERVICES
Ryde Cemetery HLF Project,Grounds Maintenance,23/08/2010,5000097431,"3,000.00",NIGEL EARLEY SERVICES
Tree Felling / Replacement,Pay to Pvte Contract,27/07/2010,5000092530,600.00,NIGEL EARLEY SERVICES
Tree Felling / Replacement,Pay to Pvte Contract,06/09/2010,5000099440,"1,200.00",NIGEL EARLEY SERVICES
Tree Felling / Replacement,Pay to Pvte Contract,15/07/2010,5000090299,"1,385.00",NIGEL EARLEY SERVICES
Tree Felling / Replacement,Pay to Pvte Contract,09/08/2010,5000094987,"2,150.00",NIGEL EARLEY SERVICES
SEN Transport,Transport of Clients,30/07/2010,5000093429,580.00,TELTAX
SEN Transport,Transport of Clients,05/07/2010,5000088117,700.00,TELTAX
DAT Team - Adult Treatment,Operational Equipmen,18/08/2010,5000096540,"1,500.00",EXCHANGE SUPPLIES LTD
DAT Team - Adult Treatment,Operational Equipmen,02/09/2010,5000099222,"1,564.00",IW PHARMACY DEVELOPMENT GROUP
Integrated Community Equipment Service,Operational Equipmen,07/09/2010,5000099904,"6,386.52",HUNTLEIGH HEALTHCARE LTD
Integrated Community Equipment Service,Maint of Op Equip,12/07/2010,5000089481,835.38,HUNTLEIGH HEALTHCARE LTD
Integrated Community Equipment Service,Maint of Op Equip,21/09/2010,5000102544,835.38,HUNTLEIGH HEALTHCARE LTD
Car Park Permits,Professional Service,05/08/2010,5000094566,579.30,LIBERTY PRINTERS LTD
Early Years NEG Payments for 3yr olds,Pay to Vol and Other,24/08/2010,1900220788,505.51,REDACTED PERSONAL DATA
WW Landscape Partnership,Professional Service,14/09/2010,5000101259,"4,116.78",FOOTPRINT TRUST
SSEYCCG - WORKFORCE DEVELOPME,Professional Service,16/08/2010,5000096196,"-1,800.00",PEOPLE CONSULTING LTD
16+ Team,Transport of Clients,09/09/2010,5000100548,599.60,CAR-ES (UK) LTD
Fostering - LAC 0-16,Transport of Clients,05/07/2010,5000088359,"1,218.30",CAR-ES (UK) LTD
Secure Accommodation (Welfare),Transport of Clients,05/07/2010,5000088355,"1,533.00",CAR-ES (UK) LTD
Secure Accommodation (Welfare),Transport of Clients,12/07/2010,5000089455,"1,611.68",CAR-ES (UK) LTD
Ventnor Botanic Garden,Prop Svs-Planned Mtc,22/09/2010,5000102656,"1,340.40",THYSSENKRUPP ELEVATOR UK LTD
Gouldings Resource Centre,Professional Subs,28/07/2010,1900209047,596.00,CARE QUALITY COMMISSION
Medina Theatre,Pay to Pvte Contract,08/07/2010,1900202107,"1,986.66",MAD ABOUT PRODUCTIONS LTD
Transport Fleet Administration,Maint of Op Equip,19/07/2010,5000091019,-845.00,UNIPART AUTOMOTIVE
Transport Fleet Administration,Maint of Op Equip,27/08/2010,5000098164,517.89,UNIPART AUTOMOTIVE
Transport Fleet Administration,Maint of Op Equip,13/07/2010,5000089912,845.00,UNIPART AUTOMOTIVE
Transport Fleet Administration,Maint of Op Equip,19/07/2010,5000091020,845.00,UNIPART AUTOMOTIVE
On-Street Parking Operations,Operational Equipmen,08/09/2010,5105612186,"1,679.27",SPUR INFORMATION SOLUTIONS LTD
Parking Management,Pay to Pvte Contract,12/07/2010,5000089434,680.00,SPUR INFORMATION SOLUTIONS LTD
Parking Management,Pay to Pvte Contract,24/08/2010,5000097636,"9,193.94",SPUR INFORMATION SOLUTIONS LTD
Leisure Facility Improvement,"Pl, Equip & Furn - C",22/09/2010,5000102752,"2,695.92",MARSHALLS PLC
Court Work & Consultancy Services,Legal Fees - Other P,11/08/2010,5000095401,"2,879.25",REDACTED PERSONAL DATA
Integrated Community Equipment Service,Operational Equipmen,27/09/2010,5000103374,558.00,ROMA MEDICAL AIDS LTD
Integrated Community Equipment Service,Operational Equipmen,05/08/2010,5000094498,585.00,ROMA MEDICAL AIDS LTD
Integrated Community Equipment Service,Operational Equipmen,02/07/2010,5000087923,975.00,ROMA MEDICAL AIDS LTD
Integrated Community Equipment Service,Operational Equipmen,23/07/2010,5000092104,975.00,ROMA MEDICAL AIDS LTD
Post 16 Transport,Grants to Ext Bodies,16/09/2010,5000101727,-924.00,SMART TRAINING & RECRUITMENT
Post 16 Transport,Grants to Ext Bodies,16/09/2010,5000101718,924.00,SMART TRAINING & RECRUITMENT
Post 16 Transport,Grants to Ext Bodies,16/09/2010,5000101732,924.00,SMART TRAINING & RECRUITMENT
Meals On Wheels,Pay to Vol and Other,01/09/2010,1900221720,"1,265.57",WRVS FOOD SERVICES LTD [SB]
Meals On Wheels,Pay to Vol and Other,06/07/2010,1900197420,"1,615.82",WRVS FOOD SERVICES LTD [SB]
Meals On Wheels,Pay to Vol and Other,04/08/2010,1900210169,"1,667.19",WRVS FOOD SERVICES LTD [SB]
Meals On Wheels,Pay to Vol and Other,01/09/2010,1900221720,"28,300.20",WRVS FOOD SERVICES LTD [SB]
Meals On Wheels,Pay to Vol and Other,04/08/2010,1900210169,"28,664.46",WRVS FOOD SERVICES LTD [SB]
Meals On Wheels,Pay to Vol and Other,06/07/2010,1900197420,"35,221.14",WRVS FOOD SERVICES LTD [SB]
Meals On Wheels,Inc from Fees & Char,06/07/2010,1900197420,"-19,186.92",WRVS FOOD SERVICES LTD [SB]
Meals On Wheels,Inc from Fees & Char,04/08/2010,1900210169,"-16,492.70",WRVS FOOD SERVICES LTD [SB]
Meals On Wheels,Inc from Fees & Char,01/09/2010,1900221720,"-14,120.50",WRVS FOOD SERVICES LTD [SB]
Meals On Wheels,Inc from Fees & Char,04/08/2010,1900210169,"-6,905.40",WRVS FOOD SERVICES LTD [SB]
Meals On Wheels,Inc from Fees & Char,01/09/2010,1900221720,"-5,638.10",WRVS FOOD SERVICES LTD [SB]
Meals On Wheels,Inc from Fees & Char,06/07/2010,1900197420,-575.85,WRVS FOOD SERVICES LTD [SB]
Education Fair Funding High Schools,Eligible Supp and Sv,24/08/2010,5000097596,"2,385.00",DMR ENGINEERING (IW) LTD
Head of Environment and Waste Mgt,Recruitment Advertis,27/07/2010,5000092567,"4,294.00",SEDGLEY BELBIN WRIGHT LTD
Foundation Learning (14-19),Professional Service,20/07/2010,5000091454,862.50,CHALLENGE & ADVENTURE LTD
Foundation Learning (14-19),Professional Service,20/07/2010,5000091454,"1,380.00",CHALLENGE & ADVENTURE LTD
Local Safeguarding Childrens Board,Professional Service,27/09/2010,5000103560,"5,668.13",REDACTED PERSONAL DATA
Technical Support,Operational Equipmen,16/09/2010,5000101712,596.18,PTE GROUP LTD
Integrated Community Equipment Service,Operational Equipmen,29/07/2010,5000093303,"38,958.00",BRITISH RED CROSS SOCIETY
October Walking Festival,Printing Costs,21/09/2010,5000102631,"2,875.00",BISHOPS PRINTERS LTD
IWHC Community Home - Beaulieu,Professional Service,02/07/2010,5000088045,"1,420.10",OFSTED
Cycling festival - The hills killer,Professional Service,21/09/2010,5000102498,"1,441.50",SPORTIDENT UK LTD
Council Tax,Stationery,01/09/2010,5000098946,"1,760.09",ALLPAY.NET LTD
Quay Arts Centre,Grants to Ext Bodies,15/07/2010,5000090434,"11,250.00",STEVE ROSS FOUNDATION FOR ARTS
Extended Schools (ABG),Pay to Pvte Contract,29/09/2010,5000103958,"1,300.00",STEVE ROSS FOUNDATION FOR ARTS
Trading Standards,Publications,26/07/2010,5000092305,533.80,LEXISNEXIS BUTTERWORTHS
Trading Standards,Publications,26/07/2010,5000092305,565.20,LEXISNEXIS BUTTERWORTHS
Trans. Stocks - St. Light,Pay to Pvte Contract,19/07/2010,5000090830,"2,920.60",ZODION LTD
A.O.N.B.,Train and Conference,05/07/2010,5000088281,"1,090.00",NATIONAL ASSOCIATION FOR AONBS
Leisure Access System,Computer Purch & Ren,27/08/2010,5000098149,900.00,BOTTOMLINE TECHNOLOGIES EUROPE LTD
BSIP savings,Fixtures and Fitting,29/09/2010,5000103950,"2,637.50",DIBBENS REMOVALS
TIC Agency Income Suspense,Professional Service,08/07/2010,1900202105,"5,543.87",YARMOUTH OLD GAFFERS FESTIVAL
Aiming High for Disabled Children,Grants to Ext Bodies,02/08/2010,1900209350,"9,853.00",YMCA FAIRTHORNE GROUP
YMCA Childcare Contract,Pay to Pvte Contract,15/09/2010,5000101302,"20,250.00",YMCA FAIRTHORNE GROUP
YMCA Childcare Contract,Pay to Pvte Contract,17/09/2010,5000101935,"20,250.00",YMCA FAIRTHORNE GROUP
Administration and Inspection Schemes,"Pl, Equip & Furn - C",08/07/2010,5000089104,"2,400.00",YMCA FAIRTHORNE GROUP
Administration and Inspection Schemes,"Pl, Equip & Furn - C",17/08/2010,5000096458,"3,609.89",YMCA FAIRTHORNE GROUP
SSEYCCG - New Childcare Places,Grants from Gvt Bodi,26/07/2010,1900208588,"2,000.00",YMCA FAIRTHORNE GROUP
Connexions Grant,Pay to Pvte Contract,30/09/2010,5000104180,750.00,JADESTONE TRADERS LTD
Childrens Disability Team,Vehicle Leas and Acq,27/07/2010,5000092870,821.79,LEX AUTOLEASE LIMITED
Fostering,Vehicle Leas and Acq,17/09/2010,5000101938,821.79,LEX AUTOLEASE LIMITED
Castle Haven CP Scheme,Pay to Pvte Contract,14/07/2010,5000090249,766.17,HARRIER PNEUMATICS LIMITED
Crematorium,Professional Service,23/09/2010,1900233292,516.00,REDACTED PERSONAL DATA
Crematorium,Professional Service,23/07/2010,1900208490,528.00,REDACTED PERSONAL DATA
Integrated Community Equipment Service,Comp Software Licenc,12/07/2010,5000089658,"2,250.00",IDEALOGIC
Coroner,Post Mortem Fees,09/08/2010,5000094848,677.60,REDACTED PERSONAL DATA
Agency Placements,Pay to Vol and Other,15/07/2010,5000090342,"11,855.20",FAIRWAYS CARE (UK) LTD
Agency Placements,Pay to Vol and Other,28/07/2010,5000093016,"11,855.20",FAIRWAYS CARE (UK) LTD
Agency Placements,Pay to Vol and Other,13/08/2010,5000095875,"11,855.20",FAIRWAYS CARE (UK) LTD
Agency Placements,Pay to Vol and Other,20/08/2010,5000096985,"11,855.20",FAIRWAYS CARE (UK) LTD
Agency Placements,Pay to Vol and Other,06/09/2010,5000099411,"11,855.20",FAIRWAYS CARE (UK) LTD
Fostering by Other Agencies,Pay to Vol and Other,15/07/2010,5000090338,"2,970.60",FAIRWAYS CARE (UK) LTD
Fostering by Other Agencies,Pay to Vol and Other,28/07/2010,5000093014,"2,970.60",FAIRWAYS CARE (UK) LTD
Fostering by Other Agencies,Pay to Vol and Other,13/08/2010,5000095877,"2,970.60",FAIRWAYS CARE (UK) LTD
Fostering by Other Agencies,Pay to Vol and Other,20/08/2010,5000096984,"2,970.60",FAIRWAYS CARE (UK) LTD
Fostering by Other Agencies,Pay to Vol and Other,06/09/2010,5000099408,"2,970.60",FAIRWAYS CARE (UK) LTD
County Hall Admin,Agency staff,06/07/2010,5000088412,-599.02,PERTEMPS RECRUITMENT PARTNERSHP LTD
County Hall Admin,Agency staff,13/07/2010,5000089808,-579.91,PERTEMPS RECRUITMENT PARTNERSHP LTD
County Hall Admin,Agency staff,02/08/2010,5000093762,-565.95,PERTEMPS RECRUITMENT PARTNERSHP LTD
County Hall Admin,Agency staff,17/08/2010,5000096353,-554.92,PERTEMPS RECRUITMENT PARTNERSHP LTD
County Hall Admin,Agency staff,24/08/2010,5000097726,-554.92,PERTEMPS RECRUITMENT PARTNERSHP LTD
County Hall Admin,Agency staff,31/08/2010,5000098522,-547.57,PERTEMPS RECRUITMENT PARTNERSHP LTD
County Hall Admin,Agency staff,03/09/2010,5000099252,-543.90,PERTEMPS RECRUITMENT PARTNERSHP LTD
County Hall Admin,Agency staff,08/07/2010,5000089168,508.88,PERTEMPS RECRUITMENT PARTNERSHP LTD
County Hall Admin,Agency staff,15/07/2010,5000090478,508.88,PERTEMPS RECRUITMENT PARTNERSHP LTD
County Hall Admin,Agency staff,02/08/2010,5000093843,508.88,PERTEMPS RECRUITMENT PARTNERSHP LTD
County Hall Admin,Agency staff,24/08/2010,5000097490,508.88,PERTEMPS RECRUITMENT PARTNERSHP LTD
County Hall Admin,Agency staff,03/09/2010,5000099253,518.00,PERTEMPS RECRUITMENT PARTNERSHP LTD
County Hall Admin,Agency staff,17/08/2010,5000096355,521.50,PERTEMPS RECRUITMENT PARTNERSHP LTD
County Hall Admin,Agency staff,31/08/2010,5000098523,521.50,PERTEMPS RECRUITMENT PARTNERSHP LTD
County Hall Admin,Agency staff,24/08/2010,5000097728,530.25,PERTEMPS RECRUITMENT PARTNERSHP LTD
County Hall Admin,Agency staff,17/08/2010,5000096405,543.90,PERTEMPS RECRUITMENT PARTNERSHP LTD
County Hall Admin,Agency staff,02/08/2010,5000093763,546.00,PERTEMPS RECRUITMENT PARTNERSHP LTD
County Hall Admin,Agency staff,09/08/2010,5000094855,547.57,PERTEMPS RECRUITMENT PARTNERSHP LTD
County Hall Admin,Agency staff,16/07/2010,5000090708,554.92,PERTEMPS RECRUITMENT PARTNERSHP LTD
County Hall Admin,Agency staff,30/07/2010,5000093594,554.92,PERTEMPS RECRUITMENT PARTNERSHP LTD
County Hall Admin,Agency staff,23/08/2010,5000097242,558.50,PERTEMPS RECRUITMENT PARTNERSHP LTD
County Hall Admin,Agency staff,05/07/2010,5000088112,565.95,PERTEMPS RECRUITMENT PARTNERSHP LTD
County Hall Admin,Agency staff,27/09/2010,5000103354,568.75,PERTEMPS RECRUITMENT PARTNERSHP LTD
County Hall Admin,Agency staff,12/07/2010,5000089399,580.65,PERTEMPS RECRUITMENT PARTNERSHP LTD
County Hall Admin,Agency staff,31/08/2010,5000098432,614.25,PERTEMPS RECRUITMENT PARTNERSHP LTD
County Hall Admin,Agency staff,21/09/2010,5000102512,624.75,PERTEMPS RECRUITMENT PARTNERSHP LTD
School Reorganisation Consultation Costs,Agency staff,02/07/2010,5000087869,543.90,PERTEMPS RECRUITMENT PARTNERSHP LTD
School Reorganisation Consultation Costs,Agency staff,02/07/2010,5000087870,573.30,PERTEMPS RECRUITMENT PARTNERSHP LTD
Social Care Admin,Agency staff,06/09/2010,5000099517,508.88,PERTEMPS RECRUITMENT PARTNERSHP LTD
Social Care Admin,Agency staff,20/09/2010,5000102324,508.88,PERTEMPS RECRUITMENT PARTNERSHP LTD
Social Care Admin,Agency staff,23/09/2010,5000103096,508.88,PERTEMPS RECRUITMENT PARTNERSHP LTD
Wightcare Control Room,Agency staff,22/07/2010,5000091897,"-1,681.76",PERTEMPS RECRUITMENT PARTNERSHP LTD
Wightcare Control Room,Agency staff,13/07/2010,5000089951,"-1,532.03",PERTEMPS RECRUITMENT PARTNERSHP LTD
Wightcare Control Room,Agency staff,02/07/2010,5000088063,"1,532.03",PERTEMPS RECRUITMENT PARTNERSHP LTD
Wightcare Control Room,Agency staff,22/07/2010,5000091900,"1,622.09",PERTEMPS RECRUITMENT PARTNERSHP LTD
Wightcare Control Room,Agency staff,22/07/2010,5000091881,"1,681.75",PERTEMPS RECRUITMENT PARTNERSHP LTD
Agency Placements,Pay to Vol and Other,18/08/2010,5000096557,"9,225.00",CHILD FIRST
Agency Placements,Pay to Vol and Other,19/07/2010,5000090904,"12,300.00",CHILD FIRST
Integrated Community Equipment Service,Operational Equipmen,07/07/2010,5000088789,"1,800.00",INVACARE LTD
Litigation Costs,Legal Fees - Other P,02/09/2010,5000099220,600.00,REDACTED PERSONAL DATA
ICT Contracts,Computer Maintenance,19/08/2010,5000096822,"2,615.00",DOCUMENT OUTPUT SOLUTIONS UK LTD
Portable Antiquities,Consultants Fees,05/07/2010,5000088156,"6,619.00",REDACTED PERSONAL DATA
Fostering,Professional Service,19/07/2010,5000090958,639.60,REDACTED PERSONAL DATA
Fostering,Professional Service,06/07/2010,5000088513,704.16,REDACTED PERSONAL DATA
Devolved expenditure Clatterford PRU,Gen Educ Materials,23/09/2010,5000103090,719.00,EDUCATION DEVELOPMENT INTERNAT PLC
Devolved expenditure Thompson House PRU,B/in Prof Svs - Curr,07/09/2010,5000099692,799.00,EDUCATION DEVELOPMENT INTERNAT PLC
LD - Day Care,Taxis - Contract Hir,13/07/2010,5000089920,"1,066.00",NORTON TAXIS
SSEYCCG - CHILDREN CENTRES (C,Pay to Pvte Contract,12/07/2010,5000089385,"1,620.00",RHYTHM TIME ISLE OF WIGHT
SSEYCCG - CHILDREN CENTRES (C,Pay to Pvte Contract,08/09/2010,5000100257,"1,620.00",RHYTHM TIME ISLE OF WIGHT
IT Software Development,Train and Conference,14/07/2010,5000090239,550.00,ROCKET SOFTWARE UK LTD
Castle Haven CP Scheme,Pay to Pvte Contract,21/09/2010,5000102392,"2,141.25",GEOQUIP PROJECT SERVICES
Integrated Working,Train and Conference,10/08/2010,5000095319,635.00,UNIVERSITY OF CHICHESTER
SSEYCCG - GRADUATE LEADER FUND,Train and Conference,23/07/2010,5000092190,"-1,080.00",UNIVERSITY OF CHICHESTER
SSEYCCG - GRADUATE LEADER FUND,Train and Conference,23/07/2010,5000092191,"-1,080.00",UNIVERSITY OF CHICHESTER
SSEYCCG - GRADUATE LEADER FUND,Train and Conference,03/09/2010,5000099274,"-1,080.00",UNIVERSITY OF CHICHESTER
SSEYCCG - GRADUATE LEADER FUND,Train and Conference,03/09/2010,5000099276,-900.00,UNIVERSITY OF CHICHESTER
SSEYCCG - GRADUATE LEADER FUND,Train and Conference,06/08/2010,5000094801,720.00,UNIVERSITY OF CHICHESTER
SSEYCCG - GRADUATE LEADER FUND,Train and Conference,10/08/2010,5000095206,720.00,UNIVERSITY OF CHICHESTER
SSEYCCG - GRADUATE LEADER FUND,Train and Conference,10/08/2010,5000095207,720.00,UNIVERSITY OF CHICHESTER
SSEYCCG - GRADUATE LEADER FUND,Train and Conference,10/08/2010,5000095208,720.00,UNIVERSITY OF CHICHESTER
SSEYCCG - GRADUATE LEADER FUND,Train and Conference,10/08/2010,5000095209,720.00,UNIVERSITY OF CHICHESTER
SSEYCCG - GRADUATE LEADER FUND,Train and Conference,06/08/2010,5000094800,900.00,UNIVERSITY OF CHICHESTER
SSEYCCG - GRADUATE LEADER FUND,Train and Conference,10/08/2010,5000095190,900.00,UNIVERSITY OF CHICHESTER
SSEYCCG - GRADUATE LEADER FUND,Train and Conference,10/08/2010,5000095191,900.00,UNIVERSITY OF CHICHESTER
SSEYCCG - GRADUATE LEADER FUND,Train and Conference,10/08/2010,5000095192,900.00,UNIVERSITY OF CHICHESTER
SSEYCCG - GRADUATE LEADER FUND,Train and Conference,10/08/2010,5000095195,900.00,UNIVERSITY OF CHICHESTER
SSEYCCG - GRADUATE LEADER FUND,Train and Conference,10/08/2010,5000095197,900.00,UNIVERSITY OF CHICHESTER
SSEYCCG - GRADUATE LEADER FUND,Train and Conference,10/08/2010,5000095199,900.00,UNIVERSITY OF CHICHESTER
SSEYCCG - GRADUATE LEADER FUND,Train and Conference,22/07/2010,5000091926,"1,080.00",UNIVERSITY OF CHICHESTER
SSEYCCG - GRADUATE LEADER FUND,Train and Conference,22/07/2010,5000091928,"1,080.00",UNIVERSITY OF CHICHESTER
SSEYCCG - GRADUATE LEADER FUND,Train and Conference,22/07/2010,5000091930,"1,080.00",UNIVERSITY OF CHICHESTER
SSEYCCG - GRADUATE LEADER FUND,Train and Conference,22/07/2010,5000091931,"1,080.00",UNIVERSITY OF CHICHESTER
SSEYCCG - GRADUATE LEADER FUND,Train and Conference,23/07/2010,5000092167,"1,080.00",UNIVERSITY OF CHICHESTER
SSEYCCG - GRADUATE LEADER FUND,Train and Conference,23/07/2010,5000092168,"1,080.00",UNIVERSITY OF CHICHESTER
SSEYCCG - GRADUATE LEADER FUND,Train and Conference,23/07/2010,5000092169,"1,080.00",UNIVERSITY OF CHICHESTER
SSEYCCG - GRADUATE LEADER FUND,Train and Conference,23/07/2010,5000092170,"1,080.00",UNIVERSITY OF CHICHESTER
SSEYCCG - GRADUATE LEADER FUND,Train and Conference,23/07/2010,5000092171,"1,080.00",UNIVERSITY OF CHICHESTER
SSEYCCG - GRADUATE LEADER FUND,Train and Conference,23/07/2010,5000092173,"1,080.00",UNIVERSITY OF CHICHESTER
SSEYCCG - GRADUATE LEADER FUND,Train and Conference,06/08/2010,5000094798,"1,080.00",UNIVERSITY OF CHICHESTER
SSEYCCG - GRADUATE LEADER FUND,Train and Conference,03/08/2010,5000093973,"1,200.00",UNIVERSITY OF CHICHESTER
SSEYCCG - GRADUATE LEADER FUND,Train and Conference,03/08/2010,5000093975,"1,200.00",UNIVERSITY OF CHICHESTER
SSEYCCG - GRADUATE LEADER FUND,Train and Conference,20/09/2010,5000102314,"1,200.00",UNIVERSITY OF CHICHESTER
SSEYCCG - GRADUATE LEADER FUND,Train and Conference,29/09/2010,5000103955,"1,200.00",UNIVERSITY OF CHICHESTER
SSEYCCG - INCLUSION GRANTS,Train and Conference,13/07/2010,5000089972,-680.00,UNIVERSITY OF CHICHESTER
SSEYCCG - INCLUSION GRANTS,Train and Conference,13/07/2010,5000089966,680.00,UNIVERSITY OF CHICHESTER
SSEYCCG - INCLUSION GRANTS,Train and Conference,16/08/2010,5000096278,680.00,UNIVERSITY OF CHICHESTER
Disabled Facilities Grants,Capital Grants,21/09/2010,1900232976,"1,950.00",REDACTED PERSONAL DATA
Disabled Facilities Grants,Capital Grants,09/09/2010,1900226889,"3,470.00",REDACTED PERSONAL DATA
Disabled Facilities Grants,Capital Grants,28/07/2010,1900208769,"3,475.00",REDACTED PERSONAL DATA
Disabled Facilities Grants,Capital Grants,18/08/2010,1900215938,"3,535.00",REDACTED PERSONAL DATA
Disabled Facilities Grants,Capital Grants,09/09/2010,1900226919,"3,760.00",REDACTED PERSONAL DATA
Disabled Facilities Grants,Capital Grants,11/08/2010,1900214471,"3,855.00",REDACTED PERSONAL DATA
Disabled Facilities Grants,Capital Grants,24/08/2010,1900220814,"4,415.00",REDACTED PERSONAL DATA
Disabled Facilities Grants,Capital Grants,05/08/2010,1900214019,"5,000.00",REDACTED PERSONAL DATA
Disabled Facilities Grants,Capital Grants,28/09/2010,1900233722,"5,100.00",REDACTED PERSONAL DATA
Disabled Facilities Grants,Capital Grants,27/08/2010,1900221395,"9,000.00",REDACTED PERSONAL DATA
Disabled Facilities Grants,Capital Grants,28/07/2010,1900208770,"10,000.00",REDACTED PERSONAL DATA
Disabled Facilities Grants,Capital Grants,30/09/2010,1900238362,"10,910.00",REDACTED PERSONAL DATA
Disabled Facilities Grants,Capital Grants,13/07/2010,1900202398,"12,800.00",REDACTED PERSONAL DATA
Housing Renewal Assistance,Capital Grants,12/08/2010,1900214724,"2,091.50",REDACTED PERSONAL DATA
Housing Renewal Assistance,Capital Grants,02/08/2010,1900209363,"3,495.62",REDACTED PERSONAL DATA
LAC Team,Agency staff,21/07/2010,5000091534,"1,068.25",J&L PARTNERSHIP LTD
LAC Team,Agency staff,18/08/2010,5000096584,"1,259.25",J&L PARTNERSHIP LTD
Pupils with statements - Non-Maint Schs,Pay to Vol and Other,02/07/2010,5000087949,"41,257.65",CAMBIAN ASPERGER SYNDROM SERVS LTD
Pupils with statements - Non-Maint Schs,Pay to Vol and Other,22/07/2010,5000091756,"41,257.65",CAMBIAN ASPERGER SYNDROM SERVS LTD
Integrated Community Equipment Service,Operational Equipmen,07/09/2010,5000099893,570.00,SIDHIL LTD
Integrated Community Equipment Service,Operational Equipmen,07/09/2010,5000099893,"1,340.00",SIDHIL LTD
Integrated Community Equipment Service,Operational Equipmen,07/09/2010,5000099893,"5,990.00",SIDHIL LTD
Provision Of Milk,Sch Catering Contrac,06/08/2010,5000094660,"1,120.60",COOL MILK AT SCHOOL LTD
Provision Of Milk,Sch Catering Contrac,07/07/2010,5000088776,"1,438.06",COOL MILK AT SCHOOL LTD
Adoption Costs,Train and Conference,18/08/2010,5000096621,730.00,BAAF REGISTERED CHARITY
Adoption Costs,Train and Conference,24/08/2010,5000097501,730.00,BAAF REGISTERED CHARITY
Agency Placements,Pay to Vol and Other,23/08/2010,5105607954,"-1,000.00",CAMBIAN AUTISM SERVICES LTD
Agency Placements,Pay to Vol and Other,20/07/2010,5105600964,"53,544.42",CAMBIAN AUTISM SERVICES LTD
Agency Placements,Pay to Vol and Other,13/08/2010,5105606006,"53,544.42",CAMBIAN AUTISM SERVICES LTD
"County Hall,Newport",Prop Svs - Bldg mtce,01/09/2010,5000098921,795.68,GEA DENCO LTD
Image Campaign,Advertising & Public,17/09/2010,5000101921,"1,600.00",NEW MIND INTERNET CONSULTANCY LTD
Locality Manager North & East,Teaching Materials,29/07/2010,5000093405,575.00,KITBRIDGE ENTERPRISES TRUST
Agency Placements,Pay to Vol and Other,02/09/2010,5000098981,"7,200.00",ISLAND CHOICES
Agency Placements,Pay to Vol and Other,22/07/2010,5000091698,"7,600.00",ISLAND CHOICES
Agency Placements,Pay to Vol and Other,13/08/2010,5000095879,"7,600.00",ISLAND CHOICES
Agency Placements,Pay to Vol and Other,02/09/2010,5000098987,"7,600.00",ISLAND CHOICES
Agency Placements,Pay to Vol and Other,22/07/2010,5000091899,"9,000.00",ISLAND CHOICES
Primary Sector Home to School Transport,Transport of Clients,30/07/2010,5000093505,560.00,HAVEN TAXIS & PRIVATE HIRE
Primary Sector Home to School Transport,Transport of Clients,06/07/2010,5000088575,720.00,HAVEN TAXIS & PRIVATE HIRE
Technical Support,Clothing & Laundry,09/09/2010,5000100424,639.00,WEATHERWISE
Technical Support,Clothing & Laundry,09/09/2010,5000100424,639.00,WEATHERWISE
Provision Of Milk,Sch Catering Contrac,02/09/2010,5000099084,"2,091.18",COOL MILK LTD
Provision Of Milk,Sch Catering Contrac,06/08/2010,5000094657,"4,743.44",COOL MILK LTD
Provision Of Milk,Sch Catering Contrac,07/07/2010,5000088778,"5,240.82",COOL MILK LTD
Coroner,Post Mortem Fees,06/09/2010,5000099556,702.20,REDACTED PERSONAL DATA
Coroner,Post Mortem Fees,22/07/2010,5000091842,"1,533.10",REDACTED PERSONAL DATA
Coroner,Post Mortem Fees,06/07/2010,5000088679,"2,318.80",REDACTED PERSONAL DATA
Enterprise House,Building & Room Rent,20/08/2010,5000097076,"1,941.87",MJH DEVELOPMENTS LTD[RE]
Integrated Community Equipment Service,Building & Room Rent,29/09/2010,5000104050,"10,108.75",MJH DEVELOPMENTS LTD[RE]
SSEYCCG-RYDE CC OPERATIONAL,Prop Svs - Bldg mtce,29/07/2010,5000093252,"1,506.34",GARTEC LIMITED
Disabled Facilities Grants,Capital Grants,01/07/2010,1900197014,652.80,ANCHOR TRUST
Library Mgmt & Central Support,Computer Purch & Ren,23/08/2010,5000097469,-945.00,CIVICA UK LTD
Library Mgmt & Central Support,Computer Purch & Ren,23/08/2010,5000097467,945.00,CIVICA UK LTD
Library Mgmt & Central Support,Professional Subs,15/07/2010,5000090469,"1,040.00",CIVICA UK LTD
Cowes Week,Professional Service,01/09/2010,5000098713,-850.00,PANTHER SECURITY
Cowes Week,Professional Service,10/08/2010,5000095081,850.00,PANTHER SECURITY
Cowes Week,Professional Service,01/09/2010,5000098735,856.25,PANTHER SECURITY
S106 Agreements  Play/Rec Areas,Pay to Pvte Contract,13/09/2010,5000100805,"1,841.00",KOMPAN LTD
Homelessness Prevention,Self Directed Suppt,15/07/2010,1900202689,550.00,MORE LETTINGS CENTRE
Homelessness Prevention,Accom Csts Serv Usrs,17/09/2010,1900232717,550.00,MORE LETTINGS CENTRE
Secondary School Improvement Partners,B/in Prof Svs - Curr,27/07/2010,5000092696,"8,109.30",REDACTED PERSONAL DATA
Wightcare Control Room,Maint of Op Equip,14/07/2010,5000090190,"7,391.14",TUNSTALL RESPONSE LTD
Integrated Community Equipment Service,Operational Equipmen,31/08/2010,5000098495,"1,470.00",SUMED INTERNATIONAL (UK) LTD
Agency Placements,Pay to Vol and Other,03/09/2010,5105611422,"3,760.06",PRIORS COURT FOUNDATION
Agency Placements,Pay to Vol and Other,13/07/2010,5105699046,"7,445.74",PRIORS COURT FOUNDATION
Agency Placements,Pay to Vol and Other,11/08/2010,5105605376,"27,966.31",PRIORS COURT FOUNDATION
Agency Placements,Pay to Vol and Other,20/09/2010,5105615035,"27,966.31",PRIORS COURT FOUNDATION
TIC Agency Income Suspense,Professional Service,09/07/2010,1900202153,796.46,CHALIS LTD T/A YARMOUTH
TIC Agency Income Suspense,Professional Service,06/08/2010,1900214239,879.85,CHALIS LTD T/A YARMOUTH
TIC Agency Income Suspense,Professional Service,10/09/2010,1900226994,"1,116.36",CHALIS LTD T/A YARMOUTH
School Escorts,Train and Conference,15/09/2010,5000101330,528.00,IW NHS PRIMARY CARE TRUST
Hospital & Duty Service,Recruitment Advertis,07/09/2010,5105611875,"-3,220.50",IW NHS PRIMARY CARE TRUST
Hospital & Duty Service,Recruitment Advertis,02/08/2010,5000093857,"6,441.00",IW NHS PRIMARY CARE TRUST
Oak House - Assm't of Children with Dis,Electricity,08/09/2010,1900226881,"1,993.27",IW NHS PRIMARY CARE TRUST
Oak House - Assm't of Children with Dis,Gas,08/09/2010,1900226881,"1,528.47",IW NHS PRIMARY CARE TRUST
Sandown SSC,Building & Room Rent,21/09/2010,5000102590,"1,033.17",IW NHS PRIMARY CARE TRUST
Sandown SSC,Building & Room Rent,20/08/2010,5000097071,"7,038.00",IW NHS PRIMARY CARE TRUST
DAT Team - Adult Treatment,Operational Equipmen,25/08/2010,5000097854,"-9,368.00",IW NHS PRIMARY CARE TRUST
DAT Team - Adult Treatment,Operational Equipmen,07/09/2010,5105611839,"-8,446.50",IW NHS PRIMARY CARE TRUST
DAT Team - Adult Treatment,Operational Equipmen,29/07/2010,5000093410,"9,368.00",IW NHS PRIMARY CARE TRUST
DAT Team - Adult Treatment,Operational Equipmen,25/08/2010,5000097933,"17,814.50",IW NHS PRIMARY CARE TRUST
Oak House - Assm't of Children with Dis,Photocopying Costs,08/09/2010,1900226881,795.00,IW NHS PRIMARY CARE TRUST
Diversity & Workforce,Med Fees & Staff Wel,29/09/2010,5000103939,"1,210.83",IW NHS PRIMARY CARE TRUST
Diversity & Workforce,Med Fees & Staff Wel,27/07/2010,5000092729,"1,543.81",IW NHS PRIMARY CARE TRUST
Diversity & Workforce,Med Fees & Staff Wel,09/08/2010,5000095051,"2,173.05",IW NHS PRIMARY CARE TRUST
Human Resources,Med Fees & Staff Wel,29/09/2010,5000103938,"1,215.08",IW NHS PRIMARY CARE TRUST
Human Resources,Med Fees & Staff Wel,27/07/2010,5000092728,"2,501.01",IW NHS PRIMARY CARE TRUST
Human Resources,Med Fees & Staff Wel,09/08/2010,5000095052,"4,242.67",IW NHS PRIMARY CARE TRUST
Coroner,Post Mortem Fees,06/07/2010,5000088678,"6,729.67",IW NHS PRIMARY CARE TRUST
Coroner,Post Mortem Fees,01/09/2010,5000098790,"8,949.20",IW NHS PRIMARY CARE TRUST
Coroner,Post Mortem Fees,03/08/2010,5000094125,"13,264.04",IW NHS PRIMARY CARE TRUST
Coroner,Mortuary facilities,08/07/2010,5000089072,"30,000.00",IW NHS PRIMARY CARE TRUST
Chances 4 Change,Grants to Ext Bodies,21/07/2010,5000091521,"2,000.00",IW NHS PRIMARY CARE TRUST
LPSA 2 Night Time Economy,Grants to Ext Bodies,22/09/2010,5000102967,"-10,000.00",IW NHS PRIMARY CARE TRUST
LPSA 2 Night Time Economy,Grants to Ext Bodies,22/09/2010,5000102963,"10,000.00",IW NHS PRIMARY CARE TRUST
LPSA 2 Night Time Economy,Grants to Ext Bodies,22/09/2010,5000102968,"10,000.00",IW NHS PRIMARY CARE TRUST
CAMHS Grant,Pay to Health Auth,30/09/2010,5000104143,"-11,464.00",IW NHS PRIMARY CARE TRUST
CAMHS Grant,Pay to Health Auth,30/09/2010,5000104145,"11,463.20",IW NHS PRIMARY CARE TRUST
CAMHS Grant,Pay to Health Auth,07/07/2010,5000088887,"11,464.00",IW NHS PRIMARY CARE TRUST
Cross Solent Travel (cancer patients),Pay to Health Auth,09/09/2010,5000100418,"8,216.96",IW NHS PRIMARY CARE TRUST
DAT Team - Adult Treatment,Pay to Health Auth,07/09/2010,5000099894,"69,574.00",IW NHS PRIMARY CARE TRUST
Dementia Service,Pay to Health Auth,23/08/2010,5000097271,"7,722.28",IW NHS PRIMARY CARE TRUST
FNC Admin,Pay to Health Auth,23/08/2010,5000097277,"7,720.07",IW NHS PRIMARY CARE TRUST
IDAS (NHS Trust),Pay to Health Auth,07/09/2010,5000099894,"139,659.00",IW NHS PRIMARY CARE TRUST
Medina Adult Training Centre,Pay to Health Auth,01/09/2010,5000098744,"68,210.38",IW NHS PRIMARY CARE TRUST
Medina Adult Training Centre,Pay to Health Auth,09/09/2010,5000100420,"204,631.13",IW NHS PRIMARY CARE TRUST
Mental Capacity Act Grant,Pay to Health Auth,23/08/2010,5000097276,"5,299.25",IW NHS PRIMARY CARE TRUST
Mental Health Grant,Pay to Health Auth,23/08/2010,5000097275,"5,658.33",IW NHS PRIMARY CARE TRUST
Mental Health Management,Pay to Health Auth,23/08/2010,5000097270,"37,092.50",IW NHS PRIMARY CARE TRUST
White Lodge Campus Closure,Pay to Vol and Other,24/08/2010,5000097606,"8,101.66",IW NHS PRIMARY CARE TRUST
Medina Adult Training Centre,Chgs from Ind Provs,09/09/2010,5000100419,"12,690.21",IW NHS PRIMARY CARE TRUST
Medina Adult Training Centre,Chgs from Ind Provs,01/09/2010,5000098757,"38,474.95",IW NHS PRIMARY CARE TRUST
SEN Transport,Transport of Clients,20/08/2010,5000096959,930.00,A.B.A. TAXIS
SEN Transport,Transport of Clients,13/07/2010,5000089899,"1,116.00",A.B.A. TAXIS
Library Mgmt & Central Support,Purchase of Books,01/09/2010,1900226190,607.50,THE HOLT JACKSON BOOK CO LTD
Library Mgmt & Central Support,Purchase of Books,21/07/2010,1900203890,642.96,THE HOLT JACKSON BOOK CO LTD
Library Mgmt & Central Support,Purchase of Books,01/09/2010,1900222365,"1,184.32",THE HOLT JACKSON BOOK CO LTD
Library Mgmt & Central Support,Purchase of Books,13/09/2010,1900227305,"1,251.63",THE HOLT JACKSON BOOK CO LTD
Library Mgmt & Central Support,Purchase of Books,06/09/2010,1900226518,"1,392.38",THE HOLT JACKSON BOOK CO LTD
Library Mgmt & Central Support,Purchase of Books,13/09/2010,1900227307,"1,488.45",THE HOLT JACKSON BOOK CO LTD
Library Mgmt & Central Support,Purchase of Books,21/07/2010,1900208239,"1,538.48",THE HOLT JACKSON BOOK CO LTD
Library Mgmt & Central Support,Purchase of Books,29/09/2010,1900238338,"1,540.53",THE HOLT JACKSON BOOK CO LTD
Library Mgmt & Central Support,Purchase of Books,03/08/2010,1900209461,"1,833.96",THE HOLT JACKSON BOOK CO LTD
Library Mgmt & Central Support,Purchase of Books,10/08/2010,1900214430,"1,981.16",THE HOLT JACKSON BOOK CO LTD
Library Mgmt & Central Support,Purchase of Books,29/09/2010,1900238336,"2,019.43",THE HOLT JACKSON BOOK CO LTD
Library Mgmt & Central Support,Purchase of Books,19/08/2010,1900220351,"2,266.87",THE HOLT JACKSON BOOK CO LTD
Library Mgmt & Central Support,Purchase of Books,19/08/2010,1900220347,"2,566.42",THE HOLT JACKSON BOOK CO LTD
Library Mgmt & Central Support,Purchase of Books,22/07/2010,1900208371,"2,742.05",THE HOLT JACKSON BOOK CO LTD
Library Mgmt & Central Support,Purchase of Books,23/07/2010,1900208494,"2,910.73",THE HOLT JACKSON BOOK CO LTD
Prison Library Service,Purchase of Books,01/09/2010,1900226190,"1,510.67",THE HOLT JACKSON BOOK CO LTD
2/4/5 Langley Court,Electricity,13/07/2010,1900202380,"1,132.48",EDF ENERGY 1 LTD
"24 Daish Way, Newport (WISE)",Electricity,09/08/2010,1900214280,697.98,EDF ENERGY 1 LTD
"29,High St,Newport",Electricity,12/07/2010,1900202343,714.59,EDF ENERGY 1 LTD
"7 High St,Newport",Electricity,13/07/2010,1900202377,860.01,EDF ENERGY 1 LTD
Browns,Electricity,25/08/2010,1900221085,"2,897.21",EDF ENERGY 1 LTD
"Bugle House,Newport",Electricity,09/08/2010,1900214271,541.19,EDF ENERGY 1 LTD
"Bugle House,Newport",Electricity,09/08/2010,1900214278,"2,629.29",EDF ENERGY 1 LTD
Car Park - Legal Services,Electricity,07/09/2010,1900226640,961.96,EDF ENERGY 1 LTD
Car Park - Legal Services,Electricity,07/09/2010,1900226640,"1,744.35",EDF ENERGY 1 LTD
Carisbrooke Contact Centre,Electricity,05/08/2010,1900214028,513.37,EDF ENERGY 1 LTD
Cemeteries-Newport,Electricity,10/08/2010,1900214452,-946.75,EDF ENERGY 1 LTD
Cemeteries-Newport,Electricity,10/08/2010,1900214452,642.82,EDF ENERGY 1 LTD
Cemeteries-Northwood,Electricity,20/08/2010,1900220636,510.06,EDF ENERGY 1 LTD
Childrens Service Centre,Electricity,03/08/2010,1900209444,"1,011.37",EDF ENERGY 1 LTD
"Civic Centre,Sandown",Electricity,03/09/2010,1900226416,701.71,EDF ENERGY 1 LTD
"Civic Centre,Sandown",Electricity,12/07/2010,1900202342,"1,051.15",EDF ENERGY 1 LTD
"Civic Centre,Sandown",Electricity,24/08/2010,1900220829,"1,082.37",EDF ENERGY 1 LTD
Cowes Library,Electricity,22/09/2010,1900233280,592.89,EDF ENERGY 1 LTD
Crematorium,Electricity,08/07/2010,1900202117,522.49,EDF ENERGY 1 LTD
Crematorium,Electricity,24/08/2010,1900220834,596.95,EDF ENERGY 1 LTD
Crematorium,Electricity,03/09/2010,1900226419,600.06,EDF ENERGY 1 LTD
Departmental Admin/Support,Electricity,03/08/2010,1900209440,812.10,EDF ENERGY 1 LTD
E Cowes Paddling Pool,Electricity,25/08/2010,1700030358,-948.76,EDF ENERGY 1 LTD
E Cowes Paddling Pool,Electricity,13/08/2010,1900215051,948.76,EDF ENERGY 1 LTD
E Cowes Paddling Pool,Electricity,25/08/2010,1700030358,"1,270.52",EDF ENERGY 1 LTD
Enterprise House,Electricity,10/09/2010,1900227232,"1,389.03",EDF ENERGY 1 LTD
Enterprise House,Electricity,12/07/2010,1900202320,"1,438.07",EDF ENERGY 1 LTD
Enterprise House,Electricity,24/08/2010,1900220843,"1,464.26",EDF ENERGY 1 LTD
Gouldings Resource Centre,Electricity,12/07/2010,1900202316,"2,881.49",EDF ENERGY 1 LTD
"Guildhall,Newport",Electricity,13/07/2010,1900202390,635.26,EDF ENERGY 1 LTD
"Guildhall,Newport",Electricity,13/07/2010,1900202390,635.26,EDF ENERGY 1 LTD
Integrated Community Equipment Service,Electricity,09/08/2010,1900214382,793.40,EDF ENERGY 1 LTD
Island Waste Refuse Disposal Contract,Electricity,02/09/2010,1900226363,"1,164.14",EDF ENERGY 1 LTD
Island Waste Refuse Disposal Contract,Electricity,12/07/2010,1900202339,"2,176.00",EDF ENERGY 1 LTD
IWHC Community Home - Beaulieu,Electricity,03/08/2010,1900209442,"1,337.45",EDF ENERGY 1 LTD
Jubilee Stores,Electricity,09/08/2010,1900214276,799.75,EDF ENERGY 1 LTD
Jubilee Stores,Electricity,09/08/2010,1900214277,"1,209.58",EDF ENERGY 1 LTD
LACES - Childrens Fund,Electricity,23/07/2010,1900208400,998.85,EDF ENERGY 1 LTD
Llanbrynmair,Electricity,25/08/2010,1700030355,"-3,047.03",EDF ENERGY 1 LTD
Llanbrynmair,Electricity,25/08/2010,1700030355,978.64,EDF ENERGY 1 LTD
Llanbrynmair,Electricity,25/08/2010,1700030355,"1,209.04",EDF ENERGY 1 LTD
Lynnbottom Leachate Treatment Works,Electricity,25/08/2010,1900221076,"1,394.24",EDF ENERGY 1 LTD
Newport Harbour - General,Electricity,13/08/2010,1900214887,555.11,EDF ENERGY 1 LTD
Newport Harbour - General,Electricity,09/08/2010,1900214270,620.22,EDF ENERGY 1 LTD
Newport Library,Electricity,12/07/2010,1900202327,"2,765.64",EDF ENERGY 1 LTD
Newport SSC,Electricity,13/07/2010,1900202383,528.49,EDF ENERGY 1 LTD
Newport SSC,Electricity,12/07/2010,1900202325,"1,058.18",EDF ENERGY 1 LTD
Operations & Fire Resilience,Electricity,12/07/2010,1900202314,565.25,EDF ENERGY 1 LTD
Operations & Fire Resilience,Electricity,26/08/2010,1900221348,"1,584.12",EDF ENERGY 1 LTD
Operations & Fire Resilience,Electricity,12/07/2010,1900202324,"2,864.21",EDF ENERGY 1 LTD
Parking Management,Electricity,25/08/2010,1700030357,-983.33,EDF ENERGY 1 LTD
Play Areas Health & Safety work,Electricity,27/09/2010,1900233629,755.38,EDF ENERGY 1 LTD
Properties  - Other Properties,Electricity,25/08/2010,1900221084,500.14,EDF ENERGY 1 LTD
Public Con - General (was Attendance),Electricity,25/08/2010,1700030359,"-1,060.18",EDF ENERGY 1 LTD
Public Con - General (was Attendance),Electricity,28/09/2010,1900233765,-845.16,EDF ENERGY 1 LTD
Public Con - General (was Attendance),Electricity,28/09/2010,1900233765,500.39,EDF ENERGY 1 LTD
Public Con - General (was Attendance),Electricity,09/08/2010,1900214381,640.89,EDF ENERGY 1 LTD
Public Con - General (was Attendance),Electricity,25/08/2010,1700030359,"1,375.63",EDF ENERGY 1 LTD
Public Con - General (was Attendance),Electricity,28/09/2010,1900233765,"1,707.58",EDF ENERGY 1 LTD
Rew Valley Sports Centre Mgmt,Electricity,24/08/2010,1900220822,"1,087.88",EDF ENERGY 1 LTD
Roman Villa Newport,Electricity,12/07/2010,1900202328,767.27,EDF ENERGY 1 LTD
Ryde Greenmount Home to School Transport,Electricity,03/09/2010,1900226418,553.43,EDF ENERGY 1 LTD
Ryde Greenmount Home to School Transport,Electricity,23/08/2010,1900220648,596.26,EDF ENERGY 1 LTD
Ryde Library,Electricity,26/08/2010,1900221345,"1,087.99",EDF ENERGY 1 LTD
Ryde Paddling Pool,Electricity,10/09/2010,1700030876,-600.00,EDF ENERGY 1 LTD
Ryde Paddling Pool,Electricity,23/08/2010,1900220651,562.22,EDF ENERGY 1 LTD
Ryde Paddling Pool,Electricity,10/09/2010,1700030876,779.25,EDF ENERGY 1 LTD
Ryde Town Hall,Electricity,12/07/2010,1900202315,645.44,EDF ENERGY 1 LTD
Ryde Town Hall,Electricity,26/08/2010,1900221351,660.95,EDF ENERGY 1 LTD
"Salisbury Gardens, Ventnor",Electricity,12/08/2010,1900214847,"1,224.37",EDF ENERGY 1 LTD
Sandown SSC,Electricity,25/08/2010,1900221099,770.10,EDF ENERGY 1 LTD
Seaclose Offices,Electricity,02/09/2010,1900226354,699.21,EDF ENERGY 1 LTD
Seaclose Offices,Electricity,24/08/2010,1900220827,763.29,EDF ENERGY 1 LTD
Seaclose Offices,Electricity,12/07/2010,1900202336,887.04,EDF ENERGY 1 LTD
Shanklin Lift,Electricity,24/08/2010,1900220826,"1,102.70",EDF ENERGY 1 LTD
SSEYCCG - East Cowes Children Centre,Electricity,06/07/2010,1900197421,635.72,EDF ENERGY 1 LTD
St James Centre,Electricity,10/08/2010,1900214437,984.21,EDF ENERGY 1 LTD
St Light - Other Maintenance,Electricity,02/09/2010,1900226264,727.10,EDF ENERGY 1 LTD
St.Nicholas House,Electricity,12/07/2010,1900202321,"1,147.47",EDF ENERGY 1 LTD
Stag Lane Landfill Site,Electricity,04/08/2010,1700028997,-663.49,EDF ENERGY 1 LTD
Thompson House Admin,Electricity,02/09/2010,1900226362,788.34,EDF ENERGY 1 LTD
Thompson House Admin,Electricity,23/08/2010,1900220642,973.60,EDF ENERGY 1 LTD
Thompson House Admin,Electricity,09/07/2010,1900202127,"1,183.15",EDF ENERGY 1 LTD
Westminster House,Electricity,13/08/2010,1900214876,"1,094.35",EDF ENERGY 1 LTD
Winter Maintenance,Electricity,13/08/2010,1700029608,-671.34,EDF ENERGY 1 LTD
WW Landscape Partnership,Electricity,23/07/2010,1900208564,861.89,EDF ENERGY 1 LTD
Youth- Newport,Electricity,16/08/2010,1900215091,589.81,EDF ENERGY 1 LTD
Youth- Sandown/Lake,Electricity,02/09/2010,1900226275,876.70,EDF ENERGY 1 LTD
Youth- Ventnor,Electricity,25/08/2010,1900221079,592.73,EDF ENERGY 1 LTD
Public Con - General (was Attendance),Water and Sewerage,15/09/2010,1700031057,-663.62,EDF ENERGY 1 LTD
Public Con - General (was Attendance),Water and Sewerage,10/09/2010,1900227209,663.62,EDF ENERGY 1 LTD
Childrens Disability Team,Professional Service,05/07/2010,5000088223,"1,050.00",REDACTED PERSONAL DATA
Childrens Disability Team,Professional Service,05/07/2010,5000088388,"1,062.91",REDACTED PERSONAL DATA
Cowes High Devolved Capital,"Pl, Equip & Furn - C",27/07/2010,1900208708,"2,184.42",BT BUSINESS DIRECT
Cowes High Devolved Capital,"Pl, Equip & Furn - C",19/08/2010,1900220332,"16,800.00",BT BUSINESS DIRECT
16+ Team,Professional Service,13/07/2010,5105699042,660.00,I W ADVOCACY TRUST
Child Protection Team,Professional Service,13/07/2010,5105699042,660.00,I W ADVOCACY TRUST
LD - Day Care,Chgs from Ind Provs,24/08/2010,5000097742,"1,062.60",I W ADVOCACY TRUST
LD - Day Care,Chgs from Ind Provs,27/09/2010,5000103388,"1,201.00",I W ADVOCACY TRUST
LD - Day Care,Chgs from Ind Provs,20/07/2010,5000091468,"1,452.20",I W ADVOCACY TRUST
Transforming Social Care,Chgs from Ind Provs,23/08/2010,5000097279,"56,603.00",I W ADVOCACY TRUST
Diversity & Workforce,Catering Purchases,20/09/2010,5000102283,891.00,WIGHT BITES
Agency Placements,Pay to Vol and Other,07/09/2010,5000099720,"4,255.68",FAMILIES FOR CHILDREN (SOUTH) LTD
Fostering by Other Agencies,Pay to Vol and Other,15/07/2010,5000090351,"4,255.68",FAMILIES FOR CHILDREN (SOUTH) LTD
Fostering by Other Agencies,Pay to Vol and Other,10/08/2010,5000095366,"4,255.68",FAMILIES FOR CHILDREN (SOUTH) LTD
Strategic Projects,Train and Conference,02/08/2010,5000093839,"4,635.00",QA LTD
Strategic Projects,Train and Conference,02/08/2010,5000093840,"6,030.00",QA LTD
Ferry Operation,Vehicle Fuel Costs,26/08/2010,5000098047,"1,219.92",PACE PETROLEUM LTD
Ferry Operation,Vehicle Fuel Costs,30/09/2010,5000104205,"1,237.68",PACE PETROLEUM LTD
Ferry Operation,Vehicle Fuel Costs,09/08/2010,5000095000,"1,265.04",PACE PETROLEUM LTD
Ferry Operation,Vehicle Fuel Costs,29/09/2010,5000104028,"2,409.60",PACE PETROLEUM LTD
Binstead Primary Devolved Capital,"Pl, Equip & Furn - C",13/08/2010,1900214897,520.36,EQUANET
Binstead Primary Devolved Capital,"Pl, Equip & Furn - C",13/08/2010,1900215031,"1,500.00",EQUANET
Binstead Primary Devolved Capital,"Pl, Equip & Furn - C",13/08/2010,1900215028,"11,413.92",EQUANET
Identity Management,ICT H/ware & S/ware,13/09/2010,5000100997,521.92,EQUANET
Identity Management,ICT H/ware & S/ware,22/09/2010,5000102720,534.00,EQUANET
Identity Management,ICT H/ware & S/ware,22/09/2010,5000102728,"1,277.94",EQUANET
Identity Management,ICT H/ware & S/ware,22/09/2010,5000102728,"1,826.46",EQUANET
Identity Management,ICT H/ware & S/ware,22/09/2010,5000102728,"7,332.60",EQUANET
Identity Management,ICT H/ware & S/ware,13/07/2010,5000089923,"59,060.82",EQUANET
Strategic Projects,ICT H/ware & S/ware,30/09/2010,5000104333,"3,802.35",EQUANET
Transport Fleet Administration,Vehicle Maint Costs,22/07/2010,5000091695,"2,395.00",SOUTHERN TYRES SERVICE(COMM)LTD
Transport Fleet Administration,Vehicle Maint Costs,06/08/2010,5000094716,"2,395.00",SOUTHERN TYRES SERVICE(COMM)LTD
Transport Fleet Administration,Vehicle Maint Costs,25/08/2010,5000097831,"2,395.00",SOUTHERN TYRES SERVICE(COMM)LTD
WIGHTBUS Trading Account,Vehicle Maint Costs,06/07/2010,5000088534,508.88,SOUTHERN TYRES SERVICE(COMM)LTD
WIGHTBUS Trading Account,Vehicle Maint Costs,06/07/2010,5000088534,508.88,SOUTHERN TYRES SERVICE(COMM)LTD
WIGHTBUS Trading Account,Vehicle Maint Costs,22/07/2010,5000091701,508.88,SOUTHERN TYRES SERVICE(COMM)LTD
WIGHTBUS Trading Account,Vehicle Maint Costs,06/07/2010,5000088534,556.50,SOUTHERN TYRES SERVICE(COMM)LTD
WIGHTBUS Trading Account,Vehicle Maint Costs,06/07/2010,5000088535,556.50,SOUTHERN TYRES SERVICE(COMM)LTD
WIGHTBUS Trading Account,Vehicle Maint Costs,31/08/2010,5000098615,556.50,SOUTHERN TYRES SERVICE(COMM)LTD
WIGHTBUS Trading Account,Vehicle Maint Costs,02/09/2010,5000099118,556.50,SOUTHERN TYRES SERVICE(COMM)LTD
WIGHTBUS Trading Account,Vehicle Maint Costs,07/09/2010,5000099653,556.50,SOUTHERN TYRES SERVICE(COMM)LTD
WIGHTBUS Trading Account,Vehicle Maint Costs,06/08/2010,5000094715,583.00,SOUTHERN TYRES SERVICE(COMM)LTD
WIGHTBUS Trading Account,Vehicle Maint Costs,18/08/2010,5000096640,742.00,SOUTHERN TYRES SERVICE(COMM)LTD
WIGHTBUS Trading Account,Vehicle Maint Costs,25/08/2010,5000097834,742.00,SOUTHERN TYRES SERVICE(COMM)LTD
Licensing Services,Operational Equipmen,10/08/2010,5000095087,"1,376.00",MOGO (UK)
Concessionary Fares- Over 60s,Concessionary Fares,29/07/2010,5000093350,"3,548.75",STAGECOACH SOUTH WESTERN TRAINS LTD
Concessionary Fares- Over 60s,Concessionary Fares,26/08/2010,5000097999,"3,548.75",STAGECOACH SOUTH WESTERN TRAINS LTD
Concessionary Fares- Over 60s,Concessionary Fares,27/09/2010,5000103397,"3,548.75",STAGECOACH SOUTH WESTERN TRAINS LTD
Sandown High Devolved Capital,"Pl, Equip & Furn - C",12/08/2010,1900214732,"1,929.90",WSTORE UK LTD
Sandown High Devolved Capital,"Pl, Equip & Furn - C",12/08/2010,1900214730,"2,200.00",WSTORE UK LTD
St Helens Primary Devolved Capital,"Pl, Equip & Furn - C",16/08/2010,1900215141,"6,152.98",WSTORE UK LTD
Mental Capacity Act Grant,Pay to Vol and Other,13/07/2010,5000089711,"13,186.00",SOLENT MIND
Telephones,Fixed Telephones,21/09/2010,1900233040,"1,217.49",VERIZON UK LTD
Telephones,Fixed Telephones,30/07/2010,1900209216,"1,315.00",VERIZON UK LTD
Telephones,Fixed Telephones,31/08/2010,1900221605,"1,315.00",VERIZON UK LTD
Telephones,Fixed Telephones,21/09/2010,1900233043,"1,315.00",VERIZON UK LTD
Telephones,Fixed Telephones,16/07/2010,1900202850,"1,328.66",VERIZON UK LTD
Telephones,Fixed Telephones,08/09/2010,1900226880,"1,382.95",VERIZON UK LTD
Telephones,Fixed Telephones,28/07/2010,1900209038,"1,421.75",VERIZON UK LTD
Public Conveniences,Ext Design & Superv,30/09/2010,5400000989,"-1,571.50",BIGGS TALBOT ARCHITECTS
Public Conveniences,Ext Design & Superv,01/07/2010,5000087607,542.00,BIGGS TALBOT ARCHITECTS
Public Conveniences,Ext Design & Superv,01/07/2010,5000087609,"1,563.00",BIGGS TALBOT ARCHITECTS
Public Conveniences,Ext Design & Superv,30/09/2010,5000104204,"3,144.00",BIGGS TALBOT ARCHITECTS
Ryde Cemetery HLF Project,Cap Contractor Pmts,29/09/2010,5000104106,"1,295.33",BIGGS TALBOT ARCHITECTS
Ryde Cemetery HLF Project,Cap Contractor Pmts,13/08/2010,5000095938,"2,093.83",BIGGS TALBOT ARCHITECTS
Ryde Cemetery HLF Project,Cap Contractor Pmts,13/08/2010,5000095939,"2,093.83",BIGGS TALBOT ARCHITECTS
Ryde Cemetery HLF Project,Cap Contractor Pmts,29/09/2010,5000104107,"2,543.83",BIGGS TALBOT ARCHITECTS
Strategic Projects,Cap Contractor Pmts,29/09/2010,5000104049,850.00,BIGGS TALBOT ARCHITECTS
Reducing Teenage Pregnancies Grant,Consultants Fees,17/09/2010,5000101884,"2,910.00",REDACTED PERSONAL DATA
TIC Agency Income Suspense,Professional Service,09/07/2010,1900202157,"5,756.42",NATIONAL EXPRESS LTD
TIC Agency Income Suspense,Professional Service,06/08/2010,1900214256,"6,673.29",NATIONAL EXPRESS LTD
TIC Agency Income Suspense,Professional Service,10/09/2010,1900226988,"6,804.72",NATIONAL EXPRESS LTD
Benefit Reviews & Overpayments,Agency staff,05/07/2010,5000088322,749.25,MORGAN HUNT PUBLIC SECTOR LTD
Benefit Reviews & Overpayments,Agency staff,26/07/2010,5000092261,"1,269.00",MORGAN HUNT PUBLIC SECTOR LTD
Graphic Design Team,Professional Service,27/07/2010,5000092891,549.00,PHOTOLIBRARY GROUP LIMITED
Middle Sector Home to School Transport,Transport of Clients,27/07/2010,5000092556,-748.00,MINIBUS-PLUS.COM/TOP TAXI
Middle Sector Home to School Transport,Transport of Clients,27/07/2010,5000092508,748.00,MINIBUS-PLUS.COM/TOP TAXI
Middle Sector Home to School Transport,Transport of Clients,30/07/2010,5000093510,748.00,MINIBUS-PLUS.COM/TOP TAXI
SEN Transport,Transport of Clients,30/07/2010,5000093507,528.00,MINIBUS-PLUS.COM/TOP TAXI
Building Fabric Planned Non Education,Cap Contractor Pmts,20/07/2010,5000091237,"9,129.00",COMMERCIAL & SPECIALISED DIVING LTD
Building Fabric Planned Non Education,Ext Design & Superv,13/08/2010,5000095892,"1,150.00",BUILDING DESIGN SERVICES
Capital Receipts,Cap Contractor Pmts,18/08/2010,5000096537,650.00,BUILDING DESIGN SERVICES
Miscellaneous Non-rechargeable,Sundry Office Expens,09/08/2010,5000094924,845.00,EXPOLINK EUROPE LIMITED
Miscellaneous Non-rechargeable,Sundry Office Expens,02/09/2010,5000099249,845.00,EXPOLINK EUROPE LIMITED
Miscellaneous Non-rechargeable,Sundry Office Expens,21/09/2010,5000102612,"5,070.00",EXPOLINK EUROPE LIMITED
Medina Leisure Centre,Printing Costs,12/07/2010,5105698837,650.00,MARACIS SOLUTIONS LIMITED
The Heights,Printing Costs,12/07/2010,5105698837,650.00,MARACIS SOLUTIONS LIMITED
Hospital Advocacy & Brokerage Service,Pay to Vol and Other,13/07/2010,5000089737,"28,500.00",HELP AND CARE [SG]
Transforming Social Care,Pay to Vol and Other,27/07/2010,5000092726,"9,541.50",HELP AND CARE [SG]
Local Involvement Networks (LINks),Pay to Pvte Contract,20/07/2010,5000091469,"27,725.00",HELP AND CARE [SG]
Sandown T.I.C.,Building & Room Rent,02/08/2010,5105603586,"1,937.50",G.DEAN&CO (SANDOWN) LTD [RE]
Sandown T.I.C.,Building & Room Rent,27/09/2010,5000103513,"1,937.50",G.DEAN&CO (SANDOWN) LTD [RE]
Sandown T.I.C.,Building & Room Rent,29/09/2010,5105616818,"1,937.50",G.DEAN&CO (SANDOWN) LTD [RE]
Human Resources,Agency staff,01/09/2010,5000098932,-900.00,CAPITA RESOURCING LTD
Human Resources,Agency staff,05/07/2010,5000088135,800.00,CAPITA RESOURCING LTD
Human Resources,Agency staff,03/09/2010,5000099375,841.50,CAPITA RESOURCING LTD
Human Resources,Agency staff,01/09/2010,5000098934,891.40,CAPITA RESOURCING LTD
Human Resources,Agency staff,16/08/2010,5000096075,900.00,CAPITA RESOURCING LTD
Human Resources,Agency staff,05/07/2010,5000088135,"6,664.00",CAPITA RESOURCING LTD
Human Resources,Agency staff,03/09/2010,5000099375,"6,664.00",CAPITA RESOURCING LTD
Human Resources,Agency staff,16/08/2010,5000096075,"8,671.85",CAPITA RESOURCING LTD
Directorate,Interview & recruit,02/07/2010,5000087881,-515.08,CAPITA RESOURCING LTD
Directorate,Interview & recruit,01/07/2010,5000087809,515.08,CAPITA RESOURCING LTD
Directorate,Interview & recruit,02/07/2010,5000087883,515.08,CAPITA RESOURCING LTD
Children's Services Strategic Management,Recruitment Advertis,19/07/2010,5000090840,"15,596.25",CAPITA RESOURCING LTD
Youth & Community Service,Consultants Fees,05/07/2010,5000088375,"8,720.00",ARCLAN LTD
Youth & Community Service,Consultants Fees,03/08/2010,5000094120,"8,720.00",ARCLAN LTD
Youth & Community Service,Consultants Fees,03/09/2010,5000099316,"8,720.00",ARCLAN LTD
Children's Services Strategic Management,B/in Prof Svs - Curr,15/07/2010,5000090419,"12,800.00",ARCLAN LTD
Children's Services Strategic Management,B/in Prof Svs - Curr,01/09/2010,5000098801,"12,800.00",ARCLAN LTD
Children's Services Strategic Management,B/in Prof Svs - Curr,15/07/2010,5000090422,"14,400.00",ARCLAN LTD
Children's Services Strategic Management,B/in Prof Svs - Curr,30/07/2010,5000093589,"17,600.00",ARCLAN LTD
ICT Refresh Programme,Computer Purch & Ren,24/09/2010,5000103294,"-1,500.00",LANODE LIMITED
ICT Refresh Programme,Computer Purch & Ren,26/08/2010,5000098113,"1,500.00",LANODE LIMITED
ICT Refresh Programme,Computer Purch & Ren,24/09/2010,5000103295,"1,500.00",LANODE LIMITED
"Registration Of Births,Deaths, Marriage",Computer Purch & Ren,23/08/2010,5000097256,"1,508.33",LANODE LIMITED
School Reorganisation Consultation Costs,ICT H/ware & S/ware,23/07/2010,5000092096,"1,500.00",LANODE LIMITED
School Reorganisation Consultation Costs,ICT H/ware & S/ware,23/07/2010,5000092096,"1,500.00",LANODE LIMITED
Coroner,Post Mortem Fees,12/07/2010,5000089507,"1,151.20",REDACTED PERSONAL DATA
Coroner,Post Mortem Fees,17/08/2010,5000096499,"1,730.70",REDACTED PERSONAL DATA
Coroner,Post Mortem Fees,14/09/2010,5000101233,"2,147.80",REDACTED PERSONAL DATA
Litigation Costs,Legal Fees - Other P,10/09/2010,5000100672,"2,350.00",REDACTED PERSONAL DATA
Ryde Harbour,Pay to Pvte Contract,09/07/2010,5000089287,650.00,BKS SECURITY SERVICES
Ryde Harbour,Pay to Pvte Contract,20/07/2010,5000091446,700.00,BKS SECURITY SERVICES
Telephones,Fixed Telephones,13/09/2010,1900227331,"3,547.02",VIRGIN MEDIA PAYMENTS LTD
Telephones,Fixed Telephones,24/08/2010,1900220825,"3,740.66",VIRGIN MEDIA PAYMENTS LTD
LEA Developments,Train and Conference,30/07/2010,5000093448,"2,952.00",WORKLIFE SUPPORT LIMITED
Schools Leadership Succession Programme,Train and Conference,30/07/2010,5000093449,"7,500.00",WORKLIFE SUPPORT LIMITED
Coroner,Post Mortem Fees,23/07/2010,5000092058,"2,254.50",SOUTHAMPTON UNIV HOSPITAL NHS TRUST
Building Control,Consultants Fees,11/08/2010,5105605441,"-1,004.61",MONSON ENGINEERING LTD
Building Control,Consultants Fees,11/08/2010,5105605430,"1,004.61",MONSON ENGINEERING LTD
Building Control,Consultants Fees,27/07/2010,5000092515,"1,046.31",MONSON ENGINEERING LTD
Library Mgmt & Central Support,Music and Video,03/08/2010,1900209460,552.75,LIBRARY MULTIMEDIA SUPPLIES LIMITED
Library Mgmt & Central Support,Music and Video,19/08/2010,1900220342,567.60,LIBRARY MULTIMEDIA SUPPLIES LIMITED
Library Mgmt & Central Support,Music and Video,01/09/2010,1900226202,585.31,LIBRARY MULTIMEDIA SUPPLIES LIMITED
Library Mgmt & Central Support,Music and Video,23/07/2010,1900208572,606.42,LIBRARY MULTIMEDIA SUPPLIES LIMITED
Library Mgmt & Central Support,Music and Video,19/08/2010,1900220353,676.32,LIBRARY MULTIMEDIA SUPPLIES LIMITED
Library Mgmt & Central Support,Music and Video,29/09/2010,1900234509,873.30,LIBRARY MULTIMEDIA SUPPLIES LIMITED
Branstone Farm Studies Centre,General Materials,29/09/2010,5000103960,570.90,REDACTED PERSONAL DATA
Branstone Farm Studies Centre,Professional Service,05/07/2010,5000088130,909.15,REDACTED PERSONAL DATA
Gateway and Specialised Diplomas,Professional Service,08/07/2010,5000089159,"5,000.00",PARTNERSHIP NETWORK
Leisure Access System,Pay to Pvte Contract,16/08/2010,5000096195,700.00,CLARITY RETAIL SYSTEMS LTD
Leisure Access System,Pay to Pvte Contract,14/07/2010,5000090161,"2,681.90",CLARITY RETAIL SYSTEMS LTD
Leisure Access System,Pay to Pvte Contract,14/07/2010,5000090159,"13,611.09",CLARITY RETAIL SYSTEMS LTD
Primary School Improvement Partners,B/in Prof Svs - Curr,10/08/2010,5000095244,"2,400.00",ST MARGARETS CEP SCHOOL
Litigation Costs,Legal Fees - Other P,07/07/2010,5000088710,650.00,REDACTED PERSONAL DATA
Compliance & Risk Manager,Agency staff,05/07/2010,5000088264,"7,800.00",HERONSFORD SOLUTIONS LTD [SB]
Compliance & Risk Manager,Agency staff,05/08/2010,5000094508,"8,400.00",HERONSFORD SOLUTIONS LTD [SB]
Compliance & Risk Manager,Agency staff,08/09/2010,5000100233,"10,800.00",HERONSFORD SOLUTIONS LTD [SB]
The Heights,Cons Cleaning Materi,30/07/2010,5000093572,"-1,705.75",COMPLETE POOL CONTROLS LTD
The Heights,Cons Cleaning Materi,30/07/2010,5000093562,"-1,694.65",COMPLETE POOL CONTROLS LTD
The Heights,Cons Cleaning Materi,05/07/2010,5000088297,"1,694.65",COMPLETE POOL CONTROLS LTD
The Heights,Cons Cleaning Materi,30/07/2010,5000093568,"1,705.75",COMPLETE POOL CONTROLS LTD
The Heights,Cons Cleaning Materi,30/07/2010,5000093573,"1,705.75",COMPLETE POOL CONTROLS LTD
Waterside pool,Cons Cleaning Materi,30/07/2010,5000093572,"-1,705.75",COMPLETE POOL CONTROLS LTD
Waterside pool,Cons Cleaning Materi,30/07/2010,5000093562,"-1,694.65",COMPLETE POOL CONTROLS LTD
Waterside pool,Cons Cleaning Materi,05/07/2010,5000088297,"1,694.65",COMPLETE POOL CONTROLS LTD
Waterside pool,Cons Cleaning Materi,30/07/2010,5000093568,"1,705.75",COMPLETE POOL CONTROLS LTD
Waterside pool,Cons Cleaning Materi,30/07/2010,5000093573,"1,705.75",COMPLETE POOL CONTROLS LTD
Concessionary Fares- Over 60s,Pay to Pvte Contract,05/08/2010,5000094474,"1,441.00",FUJITSU SERVICES LTD
Common Assessment Framework Project,Consultants Fees,08/07/2010,5000089085,"2,617.30",GOLDEN PEAR LTD
Common Assessment Framework Project,Consultants Fees,30/07/2010,5000093541,"2,795.00",GOLDEN PEAR LTD
Common Assessment Framework Project,Consultants Fees,31/08/2010,5000098439,"2,795.00",GOLDEN PEAR LTD
Independent Sector Training,Train and Conference,07/07/2010,5000088757,850.00,JACKIE POOL ASSOCIATES
SSEYCCG - BUSINESS & MARKETING SUPPORT,B/in Prof Svs - Curr,09/09/2010,5000100427,800.00,HELIOS COMPUTING LTD
Business Information Team,Professional Service,06/09/2010,5000099504,"-1,800.00",IDOX SOFTWARE LTD
Business Information Team,Professional Service,06/09/2010,5000099505,900.00,IDOX SOFTWARE LTD
Business Information Team,Professional Service,24/08/2010,5000097642,"1,800.00",IDOX SOFTWARE LTD
Director of Resources,Agency staff,08/09/2010,5000100234,"10,850.00",DAVE BURBAGE CONSULTING LTD[SB]
Director of Resources,Agency staff,02/08/2010,5000093801,"11,550.00",DAVE BURBAGE CONSULTING LTD[SB]
Director of Resources,Agency staff,05/07/2010,5000088263,"16,500.00",DAVE BURBAGE CONSULTING LTD[SB]
HLF Ryde Cemetery,Train and Conference,08/09/2010,5105612259,-513.83,HANTS&ISLE OF WIGHT WILDLIFE TRUST
HLF Ryde Cemetery,Train and Conference,23/08/2010,5000097433,"3,450.00",HANTS&ISLE OF WIGHT WILDLIFE TRUST
WW Landscape Partnership,Grants to Ext Bodies,20/09/2010,1900232917,"7,500.00",HANTS&ISLE OF WIGHT WILDLIFE TRUST
WW Landscape Partnership,Pay to Pvte Contract,17/08/2010,5105606915,530.58,HANTS&ISLE OF WIGHT WILDLIFE TRUST
WW Landscape Partnership,Pay to Pvte Contract,17/08/2010,5105606915,"2,979.42",HANTS&ISLE OF WIGHT WILDLIFE TRUST
Ind Domestic Violence Advisor IDVA,Grants to Ext Bodies,21/09/2010,5000102474,"15,000.00",ISLAND WOMENS REFUGE [SB]
Ind Domestic Violence Advisor IDVA,Grants to Ext Bodies,21/09/2010,5000102475,"15,000.00",ISLAND WOMENS REFUGE [SB]
LPSA 2 Night Time Economy,Grants to Ext Bodies,21/09/2010,5000102477,"5,000.00",ISLAND WOMENS REFUGE [SB]
LPSA 2 Night Time Economy,Grants to Ext Bodies,21/09/2010,5000102477,"20,000.00",ISLAND WOMENS REFUGE [SB]
TIC Agency Income Suspense,Professional Service,06/08/2010,1900214258,525.09,REDACTED PERSONAL DATA
TIC Agency Income Suspense,Professional Service,08/07/2010,1900202104,529.50,REDACTED PERSONAL DATA
TIC Agency Income Suspense,Professional Service,10/09/2010,1900227000,935.45,REDACTED PERSONAL DATA
LD - Residential,Chgs from Ind Provs,07/09/2010,5000099696,"8,431.07",AUTISM SOLUTIONS LTD [SB]
LD - Residential,Chgs from Ind Provs,14/07/2010,5000090056,"8,712.10",AUTISM SOLUTIONS LTD [SB]
LD - Residential,Chgs from Ind Provs,24/08/2010,5000097731,"8,712.10",AUTISM SOLUTIONS LTD [SB]
Ferry Maintenance,Maint of Op Equip,01/09/2010,5000098920,"1,183.75",THE NATURAL SOLUTION CLEANING LTD
Pupils with statements - Non-Maint Schs,Pay to Vol and Other,16/07/2010,5000090586,"18,621.00",FARNEY CLOSE SCHOOL LTD
16+ Team,Supp Looked After Ch,08/07/2010,5000089163,"-1,320.00",ISLE OF WIGHT ADVOCACY TRUST
Library Mgmt & Central Support,Purchase of Books,18/08/2010,1900215970,525.00,GAP BOOKS
SSEYCCG - Children's Centre Teacher,Hire of facilities,02/08/2010,5000093869,510.00,ISLE OF WIGHT RAILWAY COMAPNY LTD
SSEYCCG - Children's Centre Teacher,Hire of facilities,02/08/2010,5000093884,600.00,ISLE OF WIGHT RAILWAY COMAPNY LTD
Trading Standards,Publications,05/07/2010,5000088351,"2,695.60",TRADING STANDARDS SOUTH EAST LTD
Electoral Registration Canvassing,Printing Costs,13/09/2010,5000100938,"5,396.44",SCI PRINT LTD
Human Resources,Train and Conference,02/07/2010,5000087946,620.00,PERSONNEL HEALTH AND SAFETY CONSULT
Human Resources,Train and Conference,15/07/2010,5000090436,620.00,PERSONNEL HEALTH AND SAFETY CONSULT
Human Resources,Train and Conference,15/07/2010,5000090437,620.00,PERSONNEL HEALTH AND SAFETY CONSULT
Human Resources,Train and Conference,10/08/2010,5000095377,620.00,PERSONNEL HEALTH AND SAFETY CONSULT
Human Resources,Train and Conference,21/07/2010,5000091545,"1,240.00",PERSONNEL HEALTH AND SAFETY CONSULT
Human Resources,Train and Conference,10/08/2010,5000095299,"1,240.00",PERSONNEL HEALTH AND SAFETY CONSULT
Human Resources,Train and Conference,15/07/2010,5000090432,"1,860.00",PERSONNEL HEALTH AND SAFETY CONSULT
Integrated Community Equipment Service,Maint of Op Equip,04/08/2010,5000094136,"1,096.98",JOERNS HEALTHCARE LTD
SSEYCCG - CHILDREN CENTRES (C,Publications,17/09/2010,5000101885,"3,091.50",INCREDIBLE YEARS WALES TRAINING LTD
Playbuilder Capital Schemes,Capital Grants,21/09/2010,1900232984,"25,000.00",NORTHWOOD PARISH COUNCIL
TIC Agency Income Suspense,Professional Service,10/09/2010,1900227060,"2,088.00",SOLO PROMOTERS LTD
TIC Agency Income Suspense,Professional Service,08/07/2010,1900202103,"37,543.50",SOLO PROMOTERS LTD
TIC Agency Income Suspense,Professional Service,06/08/2010,1900214209,"56,937.00",SOLO PROMOTERS LTD
Human Resources,Recruitment Advertis,05/07/2010,5000088337,"1,065.90",SOUTHWEST ONE LTD
Human Resources,Recruitment Advertis,05/07/2010,5000088341,"2,975.64",SOUTHWEST ONE LTD
Court Work & Consultancy Services,Legal Fees - Other P,15/07/2010,100265011,-700.00,HMCS
Court Work & Consultancy Services,Legal Fees - Other P,15/07/2010,100265012,-700.00,HMCS
Court Work & Consultancy Services,Legal Fees - Other P,16/07/2010,1900202797,700.00,HMCS
Court Work & Consultancy Services,Legal Fees - Other P,16/07/2010,1900202811,700.00,HMCS
Court Work & Consultancy Services,Legal Fees - Other P,22/07/2010,1900208260,"2,225.00",HMCS
Court Work & Consultancy Services,Legal Fees - Other P,22/07/2010,1900208261,"2,225.00",HMCS
Court Work & Consultancy Services,Legal Fees - Other P,22/07/2010,1900208262,"2,225.00",HMCS
Court Work & Consultancy Services,Legal Fees - Other P,22/07/2010,1900208272,"2,225.00",HMCS
Court Work & Consultancy Services,Legal Fees - Other P,23/07/2010,1900208500,"2,225.00",HMCS
Court Work & Consultancy Services,Legal Fees - Other P,02/09/2010,1900226221,"2,225.00",HMCS
Court Work & Consultancy Services,Legal Fees - Other P,02/09/2010,1900226224,"2,225.00",HMCS
Court Work & Consultancy Services,Legal Fees - Other P,02/09/2010,1900226227,"2,225.00",HMCS
Court Work & Consultancy Services,Legal Fees - Other P,02/09/2010,1900226228,"2,225.00",HMCS
Court Work & Consultancy Services,Legal Fees - Other P,02/09/2010,1900226237,"2,225.00",HMCS
Court Work & Consultancy Services,Legal Fees - Other P,02/09/2010,1900226246,"2,225.00",HMCS
Court Work & Consultancy Services,Legal Fees - Other P,08/09/2010,1900226647,"2,225.00",HMCS
Court Work & Consultancy Services,Legal Fees - Other P,08/09/2010,1900226657,"2,225.00",HMCS
Court Work & Consultancy Services,Legal Fees - Other P,08/09/2010,1900226676,"2,225.00",HMCS
Contracting,Conference Expenses,10/08/2010,5000095107,560.00,PSC BUSINESS CONSLUTANTS
Folly Moorings,Pay to Pvte Contract,09/09/2010,5000100523,"2,466.17",FOLLY VENTURES
Folly Moorings,Pay to Pvte Contract,12/07/2010,5000089613,"2,919.32",FOLLY VENTURES
Folly Moorings,Pay to Pvte Contract,05/08/2010,5000094455,"3,111.60",FOLLY VENTURES
Ventnor Botanic Garden,Pay to Pvte Contract,04/09/2010,5000099384,520.00,HELPING HANDS GROUP
SSEYCCG - WORKFORCE DEVELOPME,Train and Conference,06/09/2010,5000099579,775.00,BOOGIE MITES UK LTD
Fire Capital Projects,Cap Contractor Pmts,20/09/2010,5000102042,"3,780.00",GREEN WOOD BUILDING SRVCS CONSULT'S
LPSA 1 Reward - Graffiti Project,Pay to Pvte Contract,04/08/2010,5000094156,630.00,COMMUNITY CLEAN
LPSA 1 Reward - Graffiti Project,Pay to Pvte Contract,02/07/2010,5000087933,898.00,COMMUNITY CLEAN
LPSA 1 Reward - Graffiti Project,Pay to Pvte Contract,01/09/2010,5000098909,"1,119.00",COMMUNITY CLEAN
Outside Promotions,Comm Fee Income,05/08/2010,1900214027,"1,727.00",REDACTED PERSONAL DATA
Road Safety trailer,Pay to Pvte Contract,21/07/2010,5000091656,600.00,HOCKNULL'S SOLID FUEL MERCHANTS
Independent Sector Training,Train and Conference,28/09/2010,5000103794,-719.00,Isle Of College
Independent Sector Training,Train and Conference,28/09/2010,5000103890,-719.00,Isle Of College
Independent Sector Training,Train and Conference,29/09/2010,5000104060,-719.00,Isle Of College
Independent Sector Training,Train and Conference,28/09/2010,5000103882,-520.00,Isle Of College
Independent Sector Training,Train and Conference,05/07/2010,5000088270,520.00,Isle Of College
Independent Sector Training,Train and Conference,13/07/2010,5000089710,719.00,Isle Of College
Independent Sector Training,Train and Conference,16/08/2010,5000096152,719.00,Isle Of College
Independent Sector Training,Train and Conference,28/09/2010,5000103891,719.00,Isle Of College
Training - Adelaide & Gouldings,Train and Conference,20/07/2010,5000091372,"-1,575.00",Isle Of College
Training - Adelaide & Gouldings,Train and Conference,05/07/2010,5000088237,"1,575.00",Isle Of College
Highways PFI Project,Catering Purchases,05/08/2010,5000094446,599.16,DLA Piper Uk LLP
Concessionary Fares- Over 60s,Legal Fees - Other P,11/08/2010,5000095511,"3,584.00",DLA Piper Uk LLP
Highways PFI Project,Professional Service,06/07/2010,5000088500,696.39,DLA Piper Uk LLP
Highways PFI Project,Professional Service,06/09/2010,5000099479,747.82,DLA Piper Uk LLP
Highways PFI Project,Professional Service,05/08/2010,5000094444,"10,187.20",DLA Piper Uk LLP
Highways PFI Project,Professional Service,06/09/2010,5000099479,"17,794.20",DLA Piper Uk LLP
Highways PFI Project,Professional Service,06/07/2010,5000088500,"32,979.70",DLA Piper Uk LLP
Concessionary Fares- Over 60s,Pay to Pvte Contract,24/09/2010,5000103324,"2,581.20",DLA Piper Uk LLP
One School Pathfinder,Ext Design & Superv,20/07/2010,5000091431,860.10,Gardiner And Theobald Llp
One School Pathfinder,Ext Design & Superv,20/09/2010,5000102056,"1,057.50",Gardiner And Theobald Llp
Schools Reorganisation,Ext Design & Superv,06/07/2010,5105697814,500.16,Gardiner And Theobald Llp
Schools Reorganisation,Ext Design & Superv,06/07/2010,5105697814,500.18,Gardiner And Theobald Llp
Schools Reorganisation,Ext Design & Superv,06/07/2010,5105697814,500.18,Gardiner And Theobald Llp
Schools Reorganisation,Ext Design & Superv,06/07/2010,5105697814,500.18,Gardiner And Theobald Llp
Schools Reorganisation,Ext Design & Superv,09/08/2010,5105604828,609.12,Gardiner And Theobald Llp
Schools Reorganisation,Ext Design & Superv,09/08/2010,5105604828,609.12,Gardiner And Theobald Llp
Schools Reorganisation,Ext Design & Superv,09/08/2010,5105604828,609.12,Gardiner And Theobald Llp
Schools Reorganisation,Ext Design & Superv,07/07/2010,5105698071,778.32,Gardiner And Theobald Llp
Schools Reorganisation,Ext Design & Superv,07/07/2010,5105698071,778.32,Gardiner And Theobald Llp
Schools Reorganisation,Ext Design & Superv,07/07/2010,5105698071,778.32,Gardiner And Theobald Llp
Schools Reorganisation,Ext Design & Superv,06/07/2010,5105697814,"1,000.35",Gardiner And Theobald Llp
Schools Reorganisation,Ext Design & Superv,06/07/2010,5105697814,"1,000.35",Gardiner And Theobald Llp
Schools Reorganisation,Ext Design & Superv,06/07/2010,5105697814,"1,000.35",Gardiner And Theobald Llp
One School Pathfinder,Ext Design & Superv,13/07/2010,5000089760,"17,105.89",WYG MANAGEMENT SERVICES LTD
Highway Structures Capital,Cap Contractor Pmts,10/08/2010,1900214446,"10,584.48",Openreach B.T
Bus Infrastructure,Eligible Supp and Sv,31/08/2010,1900221566,"1,557.12",Openreach B.T
Organisational Development ? Leadership,Professional Service,28/07/2010,5000092957,"1,600.00",Insight People Development Ltd
Business Support Team,Train and Conference,16/08/2010,5000096082,"5,680.00",Logica Uk Limited
Business Systems Improvement Project,Consultants Fees,09/07/2010,5000089273,"2,100.00",Logica Uk Limited
Business Systems Improvement Project,Consultants Fees,21/07/2010,5000091497,"11,000.00",Logica Uk Limited
Business Systems Improvement Project,Consultants Fees,20/07/2010,5000091301,"12,726.00",Logica Uk Limited
Business Systems Improvement Project,Consultants Fees,31/08/2010,5000098458,"14,140.00",Logica Uk Limited
Business Systems Improvement Project,Consultants Fees,25/08/2010,5000097958,"15,554.00",Logica Uk Limited
Business Systems Improvement Project,Consultants Fees,26/07/2010,5000092480,"49,826.00",Logica Uk Limited
Local Development Framework,Consultants Fees,02/09/2010,5000099198,"-3,537.50",GEODATA INSTITUTE
Local Development Framework,Consultants Fees,06/08/2010,5000094785,"3,537.50",GEODATA INSTITUTE
Legal Services Section,Publications,24/08/2010,5000097519,"5,000.00",Practical Law Company
LPSA 2 Night Time Economy,Grants to Ext Bodies,10/09/2010,5000100642,"15,000.00",Isle Of Wight Street Pastors
SSEYCCG - 0-7 PARTNERSHIP PILOT,Professional Service,13/07/2010,5000089788,"1,140.60",ELIZABETH JARMAN LTD
October Walking Festival,Advertising & Public,29/09/2010,5000103913,"1,080.00",BAUER CONSUMER MEDIA LTD
Homelessness Prevention,Pay to Pvte Contract,11/08/2010,1900214464,560.00,REDACTED PERSONAL DATA
Homelessness Prevention,Pay to Pvte Contract,11/08/2010,1900214465,593.90,REDACTED PERSONAL DATA
Homelessness Prevention,Pay to Pvte Contract,15/07/2010,1900202679,"1,150.00",REDACTED PERSONAL DATA
One School Pathfinder,Consultants Fees,16/08/2010,5000096067,"1,001.00",Clarke Bond (south West & Wales)ltd
One School Pathfinder,Consultants Fees,16/08/2010,5000096066,"1,400.00",Clarke Bond (south West & Wales)ltd
One School Pathfinder,Ext Design & Superv,14/07/2010,5000090265,"1,841.00",Clarke Bond (south West & Wales)ltd
One School Pathfinder,Ext Design & Superv,16/09/2010,5000101624,"2,500.00",Clarke Bond (south West & Wales)ltd
One School Pathfinder,Ext Design & Superv,09/07/2010,5000089228,"4,935.00",Clarke Bond (south West & Wales)ltd
One School Pathfinder,Ext Design & Superv,14/07/2010,5000090265,"4,935.00",Clarke Bond (south West & Wales)ltd
Provision Of Meals,Professional Service,07/07/2010,5000088727,710.00,Cypad Ltd
Gateway and Specialised Diplomas,Professional Service,14/07/2010,5000090087,"8,698.64",Alkemygold Ltd
LAC Advocacy Contract,Grants to Ext Bodies,16/08/2010,5000096037,"12,620.00",NATIONAL YOUTH ADVOCACY SERVICE
Independent Sector Training,Train and Conference,18/08/2010,5000096629,565.00,MC TRAINING
Agency Placements,Pay to Vol and Other,15/07/2010,5000090353,"10,310.00",SERENDIPITY
LPSA2 Target 1 (Improve GCSE results),B/in Prof Svs - Curr,27/07/2010,5000092594,503.99,MOUCHEL MANAGEMENT CONSULTING LTD
LPSA2 Target 1 (Improve GCSE results),B/in Prof Svs - Curr,27/07/2010,5000092590,"3,246.00",MOUCHEL MANAGEMENT CONSULTING LTD
LPSA2 Target 1 (Improve GCSE results),B/in Prof Svs - Curr,27/07/2010,5000092594,"9,305.20",MOUCHEL MANAGEMENT CONSULTING LTD
Targeted Improvement Grant,B/in Prof Svs - Curr,02/09/2010,5000099141,"3,658.10",MOUCHEL MANAGEMENT CONSULTING LTD
One School Pathfinder,Ext Design & Superv,23/09/2010,5000103168,"2,835.00",Hlmad Limited
One School Pathfinder,Ext Design & Superv,08/07/2010,5000089074,"3,420.00",Hlmad Limited
One School Pathfinder,Ext Design & Superv,23/09/2010,5000103168,"14,220.00",Hlmad Limited
"Options,Prevention & Register Team",Pay to Pvte Contract,11/08/2010,1900214527,"1,100.00",Seafields
Homelessness,Accom Csts Serv Usrs,11/08/2010,1900214527,"1,100.00",Seafields
Homelessness Prevention,Accom Csts Serv Usrs,20/07/2010,1900203081,695.00,Seafields
Homelessness Prevention,Accom Csts Serv Usrs,30/09/2010,5000104231,"1,930.00",Seafields
Connexions Grant,Building & Room Rent,20/09/2010,5000102195,"3,750.00",NB REAL ESTATE
Wellbeing,Grants to Ext Bodies,13/09/2010,1900227325,516.00,CAROL MACARTNEY YOGA
SSEYCCG - CHILDREN INFORMATIO,Professional Service,09/08/2010,5000094973,"3,413.00",TRIBAL TECHNOLOGY LTD
The Heights,Pay to Pvte Contract,13/07/2010,5105699030,653.17,Emu Limited
Agency Placements,Pay to Vol and Other,02/09/2010,5105610955,"16,714.20",Tumblewood Project
Agency Placements,Pay to Vol and Other,02/09/2010,5105611022,"16,714.20",Tumblewood Project
Agency Placements,Pay to Vol and Other,06/07/2010,5105697906,"17,271.34",Tumblewood Project
Agency Placements,Pay to Vol and Other,06/07/2010,5105697907,"17,271.34",Tumblewood Project
Agency Placements,Pay to Vol and Other,11/08/2010,5105605414,"17,271.34",Tumblewood Project
Agency Placements,Pay to Vol and Other,11/08/2010,5105605415,"17,271.34",Tumblewood Project
Pupils with statements - Non-Maint Schs,Pay to Vol and Other,05/07/2010,5105697675,"80,705.71",The Wessex Autistic Society
Pupils with statements - Non-Maint Schs,Pay to Vol and Other,23/07/2010,5105601862,"80,705.71",The Wessex Autistic Society
School Music Service,Operational Equipmen,17/09/2010,5000101790,520.00,Rimmers Music Ltd
School Music Service,Operational Equipmen,17/09/2010,5000101790,"1,358.30",Rimmers Music Ltd
School Music Service,Operational Equipmen,17/09/2010,5000101790,"2,370.00",Rimmers Music Ltd
Music Instrument Purchase Scheme,Teaching Materials,28/09/2010,5000103627,575.00,Rimmers Music Ltd
Children's Services Strategic Management,B/in Prof Svs - Curr,11/08/2010,5000095468,"1,315.03",CAPITA RESOURCING LTD
Children's Services Strategic Management,B/in Prof Svs - Curr,30/07/2010,5000093535,"1,477.18",CAPITA RESOURCING LTD
Children's Services Strategic Management,B/in Prof Svs - Curr,21/09/2010,5000102527,"2,094.26",CAPITA RESOURCING LTD
Children's Services Strategic Management,B/in Prof Svs - Curr,11/08/2010,5000095468,"15,600.00",CAPITA RESOURCING LTD
Children's Services Strategic Management,B/in Prof Svs - Curr,30/07/2010,5000093535,"18,720.00",CAPITA RESOURCING LTD
Children's Services Strategic Management,B/in Prof Svs - Curr,21/09/2010,5000102527,"26,520.00",CAPITA RESOURCING LTD
Aiming High for Disabled Children,Grants to Ext Bodies,02/09/2010,1900226256,"2,500.00",NATIONAL AUTISTIC SOCIETY
Aiming High for Disabled Children,Grants to Ext Bodies,12/08/2010,1900214699,"10,000.00",NATIONAL AUTISTIC SOCIETY
Benefit Reviews & Overpayments,Train and Conference,21/09/2010,5000102357,"1,850.00",Canterbury City Council
Integrated Community Equipment Service,Operational Equipmen,21/07/2010,5000091611,669.00,JENX LIMITED
Integrated Community Equipment Service,Operational Equipmen,07/07/2010,5000088829,"1,105.00",JENX LIMITED
"Guildhall,Newport",Prop Svs - Bldg mtce,03/08/2010,5000093940,"1,128.41",SOUTHERN ELECTRIC
Youth- Newport,Prop Svs - Bldg mtce,15/07/2010,5000090370,"2,900.00",SOUTHERN ELECTRIC
Non-Delegated Building Maintenance,Prop Svs-Planned Mtc,09/08/2010,5000094854,612.53,SOUTHERN ELECTRIC
Non-Delegated Building Maintenance,Prop Svs-Planned Mtc,31/08/2010,5000098571,814.86,SOUTHERN ELECTRIC
Non-Delegated Building Maintenance,Prop Svs-Planned Mtc,31/08/2010,5000098565,940.59,SOUTHERN ELECTRIC
Non-Delegated Building Maintenance,Prop Svs-Planned Mtc,31/08/2010,5000098525,"1,050.15",SOUTHERN ELECTRIC
Non-Delegated Building Maintenance,Prop Svs-Planned Mtc,27/09/2010,5000103411,"9,853.28",SOUTHERN ELECTRIC
Northwood House Functions,Prop Svs-Planned Mtc,03/08/2010,5000093950,706.14,SOUTHERN ELECTRIC
CCTV - Control Room,Pay to Pvte Contract,02/07/2010,5000087938,520.00,SOUTHERN ELECTRIC
Electrical Rewiring Programme Non Educ,Cap Contractor Pmts,03/09/2010,5000099294,"4,757.20",SOUTHERN ELECTRIC
Education Fair Funding High Schools,Eligible Supp and Sv,24/08/2010,5000097594,"2,411.00",SOUTHERN ELECTRIC
HLF Ryde Cemetery,Operational Equipmen,16/09/2010,5000101603,"-3,927.62",THE CONSORTIUM
HLF Ryde Cemetery,Operational Equipmen,10/09/2010,5000100699,"3,927.62",THE CONSORTIUM
HLF Ryde Cemetery,Operational Equipmen,17/09/2010,5000101879,"3,927.62",THE CONSORTIUM
"St Francis VA Prim, Ventnor, New 1/9/10",Sch Lrn Res (not IT),17/08/2010,5000096471,559.60,THE CONSORTIUM
Payroll,Admin Fee Income,09/07/2010,1900202183,-833.24,UNISON
Payroll,Admin Fee Income,06/08/2010,1900214218,-833.24,UNISON
Payroll,Admin Fee Income,31/08/2010,1900221685,-816.15,UNISON
Crematorium,General Materials,29/07/2010,5000093355,"1,295.28",Ashdown Supplies
Practice Teaching Training,Train and Conference,05/07/2010,5000088261,"-2,479.26",GURNARD PINES
Library Mgmt & Central Support,Purchase of Books,01/09/2010,1900225665,"2,127.00",OXFORD UNIVERSITY PRESS
Cashiers,Pay to Pvte Contract,24/08/2010,5000097569,"1,149.00",SIGHTGUARD LTD
Cashiers,Pay to Pvte Contract,21/09/2010,5000102390,"1,149.00",SIGHTGUARD LTD
Ryde High Devolved Capital,Cap Contractor Pmts,21/09/2010,1900233023,"1,145.00",SIGHTGUARD LTD
Ryde High Devolved Capital,Cap Contractor Pmts,21/09/2010,1900233024,"1,190.00",SIGHTGUARD LTD
Integrated Community Equipment Service,Operational Equipmen,23/09/2010,5000103175,"1,275.00",MOUNTWAY LIMITED
Independent Sector Training,Train and Conference,06/07/2010,5000088680,"1,100.00",ISLECARE LTD
Integrated Community Equipment Service,Operational Equipmen,01/09/2010,5000098907,"1,140.00",EASYCARE SYSTEMS
Integrated Community Equipment Service,Operational Equipmen,14/07/2010,5000090246,"1,445.00",EASYCARE SYSTEMS
A.O.N.B.,Insurance Premiums P,07/09/2010,5000099637,635.26,ZURICH INSURANCE COMPANY
Early Years NEG Payments for 3yr olds,Pay to Vol and Other,23/08/2010,1900220683,"10,110.24",GATTEN & LAKE PRE-SCHOOL
Pre-school Special Educational Needs,Pay to Vol and Other,26/07/2010,1900208626,682.50,GATTEN & LAKE PRE-SCHOOL
SSEYCCG - 2 Yr Old Pilot,Pay to Vol and Other,27/07/2010,1900208685,645.05,GATTEN & LAKE PRE-SCHOOL
Childrens Service Centre,Catering Equipment,31/08/2010,5000098577,969.38,AQUAID (SOUTH COAST) FRANCHISE LTD
Miscellaneous Non-rechargeable,Med Fees & Staff Wel,23/07/2010,5000092038,"-10,543.20",PPC Worldwide Ltd
Miscellaneous Non-rechargeable,Med Fees & Staff Wel,17/08/2010,5000096454,"-10,469.60",PPC Worldwide Ltd
Miscellaneous Non-rechargeable,Med Fees & Staff Wel,23/07/2010,5000092042,"10,469.60",PPC Worldwide Ltd
Miscellaneous Non-rechargeable,Med Fees & Staff Wel,23/07/2010,5000092028,"10,543.20",PPC Worldwide Ltd
Miscellaneous Non-rechargeable,Med Fees & Staff Wel,17/08/2010,5000096457,"10,543.20",PPC Worldwide Ltd
Miscellaneous Non-rechargeable,Pay to Pvte Contract,26/08/2010,5000098119,960.30,Public Concern at Work
Local Land Charges,Train and Conference,14/07/2010,5000090272,745.00,Assoc. of Electoral Administrators
Electoral Registration Office,Conference Expenses,15/09/2010,5000101299,625.00,Assoc. of Electoral Administrators
Operations & Fire Resilience,Electricity,02/09/2010,1900226268,"1,707.02",KENT COUNTY COUNCIL
"29,High St,Newport",Gas,09/08/2010,1900214345,610.87,KENT COUNTY COUNCIL
Adelaide Resource Centre,Gas,09/08/2010,1900214295,638.11,KENT COUNTY COUNCIL
Crematorium,Gas,10/08/2010,1900214410,"2,155.93",KENT COUNTY COUNCIL
Crematorium,Gas,26/08/2010,1900221253,"2,455.09",KENT COUNTY COUNCIL
Crematorium,Gas,28/09/2010,1900233735,"2,666.43",KENT COUNTY COUNCIL
Gouldings Resource Centre,Gas,29/09/2010,1900238343,574.15,KENT COUNTY COUNCIL
Gouldings Resource Centre,Gas,26/08/2010,1900221296,725.92,KENT COUNTY COUNCIL
Gouldings Resource Centre,Gas,10/08/2010,1900214394,"1,129.09",KENT COUNTY COUNCIL
The Heights,Gas,26/08/2010,1900221295,748.80,KENT COUNTY COUNCIL
The Heights,Gas,29/09/2010,1900238344,787.22,KENT COUNTY COUNCIL
The Heights,Gas,10/08/2010,1900214395,"1,420.55",KENT COUNTY COUNCIL
Youth- Newport,Gas,10/08/2010,1900214401,533.14,KENT COUNTY COUNCIL
Youth- Yarmouth,Gas,09/08/2010,1900214310,698.31,KENT COUNTY COUNCIL
St Light - Energy,St Light Energy Cont,20/07/2010,5000091232,"35,613.40",KENT COUNTY COUNCIL
St Light - Energy,St Light Energy Cont,21/09/2010,5000102396,"35,613.40",KENT COUNTY COUNCIL
St Light - Energy,St Light Energy Cont,12/08/2010,5000095829,"37,987.61",KENT COUNTY COUNCIL
Highways Design Temporary Staff,Agency staff,17/09/2010,5000101870,984.20,HAYS CONSTRUCTION AND PROPERTY
Highways Design Temporary Staff,Agency staff,31/08/2010,5000098538,"1,377.88",HAYS CONSTRUCTION AND PROPERTY
Highways Design Temporary Staff,Agency staff,29/09/2010,5000104001,"1,481.48",HAYS CONSTRUCTION AND PROPERTY
Highways Design Temporary Staff,Agency staff,10/08/2010,5000095182,"1,574.72",HAYS CONSTRUCTION AND PROPERTY
Highways Design Temporary Staff,Agency staff,21/07/2010,5000091486,"1,626.52",HAYS CONSTRUCTION AND PROPERTY
Highways Design Temporary Staff,Agency staff,02/09/2010,5000099019,"1,626.52",HAYS CONSTRUCTION AND PROPERTY
Highways Design Temporary Staff,Agency staff,12/07/2010,5000089378,"1,657.60",HAYS CONSTRUCTION AND PROPERTY
Highways Design Temporary Staff,Agency staff,21/07/2010,5000091606,"1,657.60",HAYS CONSTRUCTION AND PROPERTY
Highways Design Temporary Staff,Agency staff,12/08/2010,5000095788,"1,657.60",HAYS CONSTRUCTION AND PROPERTY
Highways Design Temporary Staff,Agency staff,24/08/2010,5000097482,"1,657.60",HAYS CONSTRUCTION AND PROPERTY
Highways Design Temporary Staff,Agency staff,25/08/2010,5000097746,"1,657.60",HAYS CONSTRUCTION AND PROPERTY
Highways Design Temporary Staff,Agency staff,30/07/2010,5000093514,"1,719.76",HAYS CONSTRUCTION AND PROPERTY
Highways Design Temporary Staff,Agency staff,07/09/2010,5000099862,"1,833.72",HAYS CONSTRUCTION AND PROPERTY
Strategic Projects,ICT H/ware & S/ware,22/07/2010,1900208363,"8,060.00",CLARITY INFORMATION SOLUTIONS LTD
Image Campaign,Advertising & Public,28/07/2010,5000093198,"-3,489.75",LAWTON COMMUNICATIONS GROUP LTD
Image Campaign,Advertising & Public,17/09/2010,5000101766,"1,393.88",LAWTON COMMUNICATIONS GROUP LTD
Image Campaign,Advertising & Public,19/07/2010,5000090834,"2,668.00",LAWTON COMMUNICATIONS GROUP LTD
Image Campaign,Advertising & Public,18/08/2010,5000096566,"2,668.00",LAWTON COMMUNICATIONS GROUP LTD
Image Campaign,Advertising & Public,17/09/2010,5000101767,"2,754.71",LAWTON COMMUNICATIONS GROUP LTD
Image Campaign,Advertising & Public,28/07/2010,5000093067,"2,970.00",LAWTON COMMUNICATIONS GROUP LTD
Image Campaign,Advertising & Public,23/07/2010,5000092082,"9,631.58",LAWTON COMMUNICATIONS GROUP LTD
Image Campaign,Advertising & Public,19/08/2010,5000096803,"9,956.85",LAWTON COMMUNICATIONS GROUP LTD
